Workbook

Sheet Instructions
G1: Internal combustion engines air emissions calculator
O4: p-sbap5-25 • 9/3/19
B6: Instructions
B7: 1) Start with the Federal Standards tab to identify if a federal rule applies to your engine.
B8: 2) Use the blue tabs across the bottom to enter information for your engines. Use only one blue tab per engine.
B9: 3) The green tabs total potential and actual emissions from the information entered on the blue tabs.
B10: 4) The yellow 'Permits & Requirements' tab will help you decide which permit to apply for.
B11: 5) Later, you can use the blue tabs to calculate your actual emissions for the air emission inventory, which is due annually if you have an air permit.
B14: Color key
B15: Blue | C15: Enter information for your facility in the blue boxes.
B16: Orange | C16: Orange boxes are filled with standard values. You may change them if you have test results that provide specific data for your site.
B17: White | C17: Do not change the values or formulas in white boxes. White boxes contain intermediate calculations for determining emissions.
B18: Green | C18: Your emission totals are in green boxes. These are automatically calculated based on information entered in the blue boxes.
B19: Yellow | C19: Permit and insignificant activity thresholds
B20: Blue text | C20: Important tips
B23: Assistance
B24: This calculator was created by the Minnesota Pollution Control Agency's (MPCA) Business Assistance program.
B25: We provide free, confidential, environmental assistance to small businesses. For more information:
B26: Call: | C26: 651/282-6143 | E26: Email: | F26: smallbizhelp.pca@state.mn.us
C27: 800/657-3938
B29: Online at the MPCA website at: | E29: https://www.pca.state.mn.us/smallbizhelp
B31: More information on boiler requirements at: | F31: https://www.pca.state.mn.us/regulations/stationary-engines-or-generators

Sheet Federal Standards
B1: =Instructions!O4 -> p-sbap5-25 • 9/3/19
B2: U.S. EPA standards for reciprocating internal combustion engines (RICE)
B3: Applicability is determined separately for each engine. Each of your engines and any other air pollutant sources will need to be evaluated.
B4: New source performance standards (NSPS) require new emission sources to be less polluting than older sources. | I4: National emission standards for hazardous air pollutants (NESHAP) prevent or reduce emissions that have health impacts.
B7: ▪ | C7: Each NSPS or NESHAP describes specific equipment, processes, or industries.
B8: ▪ | C8: Multiple federal standards may apply to your business. It is possible that if you make a change at your business, a federal standard that did not previously apply now will, or the one you are already following may have additional requirements.
B10: ▪ | C10: Federal standards can determine whether you need a permit and what requirements you must follow. You may have to follow federal standard requirements in addition to state permit requirements. Below are some of the common federal standards that affect engines.
B14: New source performance standards (NSPS)
B15: Does one of the federal NSPS for engines apply to any of your engines? | N15: Choose Y/N
B16: The two most common NSPSs for engines are: | N16: =IF($N$15="Yes","You must follow NSPS requirements. Continue to the question below.",IF($N$15="No","Continue to the next question below.",IF($N$15="Choose Y/N"," "," "))) -> 
B17: 1) | C17: Standards of Performance for Compression Ignition Engines | I17: Full Text: | J17: 40 CFR 60, subp. IIII
B18: 2) | C18: Standards of Performance for Spark Ignition Engines | J18: 40 CFR 60, subp. JJJJ
C20: To help understand if this rule applies, use the Regulation Navigation Tool provided by EPA for NSPS IIII and JJJJ. | N20: =IF($N$15="Yes","Continue to the next question",IF($N$15="No","",IF($N$15="Choose Y/N"," "))) -> 
C21: https://www3.epa.gov/ttn/atw/ice/quiz.html
B23: National emission standard for hazardous air pollutants (NESHAP)
B24: Does the federal NESHAP for engines apply? | N24: Choose Y/N
B25: The most common NESHAP for engines is for: | N25: =IF($N$24="Yes","Follow NESHAP requirements. Assess emissions for permit thresholds.",IF($N$24="No","Continue to the information below.",IF($N$24="Choose Y/N"," "," "))) -> 
C26: Stationary Reciprocating Internal Combustion Engines | I26: Full Text: | J26: 40 CFR 63, subp. ZZZZ
C28: To help understand if this rule applies, use the Regulation Navigation Tool provided by EPA for NESHAP ZZZZ.
C29: https://www3.epa.gov/airtoxics/rice/output/quiz.html | N29: =IF($N$24="Yes","Continue to the information below.",IF($N$24="No","",IF($N$24="Choose Y/N"," "))) -> 
B31: See additional details at: | I31: https://www.pca.state.mn.us/air/engines
B33: Other NSPS or NESHAPs
B34: Even if the NSPS for spark or compression ignition engines does not apply to you, there are others which may apply to your facility. For example, there are performance standards for nonmetallic mineral processors, hospital waste incinerators, and sewage treatment plants. | I34: Even if the NESHAP for reciprocating internal combustion engines does not apply to you, there are others that might such as those for coating operations, metal fabrication and finishing, or asphalt processing.
C38: A list of NSPSs is found on the MPCA website at the end of the following document: | J38: A list of NESHAPs is found on the MPCA website at the end of the following document:
C40: https://www.pca.state.mn.us/sites/default/files/aq-f1-gi09d.doc | J40: https://www.pca.state.mn.us/sites/default/files/aq-f3-rp07.pdf
C41: If an NSPS applies, except as provided in Minn. R. 7007.0300, you need a permit. | J41: If a NESHAP applies, assess the facility-wide potential air emissions to see if a permit is required. Otherwise, comply with the NESHAP.
C43: Sources not required to obtain a permit: Minn. R. 7007.0300
B46: Construction, modification, or reconstruction
B47: If your business does an activity which is considered construction, modification, or reconstruction, as defined below or within the standard, the activity may cause an NSPS or NESHAP to apply to you or create the need for a permit amendment.
B49: ▪ | C49: Construction includes fabricating, erecting, or installing an engine
B50: ▪ | C50: Modification is a physical change or change in operations at an existing facility that increases the amount of an air pollutant or results in the emission of a new air pollutant.
B52: ▪ | C52: Reconstruction is the replacement of components at an existing facility that exceeds 50% of the cost required to build a new facility.
B54: The full definitions of construction and modification are available at: | I54: 40 CFR § 60.2 | K54: and reconstruction at: | N54: 40 CFR § 60.15

Sheet Engine 1
B1: =Instructions!O4 -> p-sbap5-25 • 9/3/19
B2: Air emissions from internal combustion engines
B3: Reciprocating internal combustion engine (RICE)
B5: Engine and fuel type | E5: Choose one | G5: Facility identifier for engine | I5: Engine 1
B6: Engine use | E6: Choose one | F6: If emergency engine is used for peak-shaving or contracted for >15 hr/yr, choose 'Routine.'
B7: =IF(E5='Data Validation'!A6," ",IF(OR(E5=rd,E5=rg),"Rated mechanical output",IF(OR(E5=ngl,OR(E5=ngr,OR(E5=tng,E5=ng2l))),"Rated fuel input"," "))) ->  | E7: 0 | F7: =IF(B7=" "," ",IF(B7="Rated mechanical output",'Data Validation'!A23,IF(B7="Rated fuel input",'Data Validation'!A24))) -> 
B8: Choose one to calculate actual emissions | E8: 0 | F8: =IF(B8='Data Validation'!B32," ",IF(B8='Data Validation'!B33,'Data Validation'!B38,IF(AND(B8='Data Validation'!B34,OR(E5=tng,OR(E5=ngl,OR(E5=ngr,OR(E5=ng2l))))),'Data Validation'!B39,IF(AND(B8='Data Validation'!B34,OR(E5=rd,OR(E5=rg))),'Data Validation'!B40," ")))) -> 
B9: =IF(F7=" "," ",IF(F7='Data Validation'!A23,'Data Validation'!A28,IF(F7='Data Validation'!A24,'Data Validation'!A29))) ->  | E9: =IF(E5='Data Validation'!A6," ",IF(E5=rd,'Engine Emission Factors'!F48,IF(E5=rg,'Engine Emission Factors'!F49,IF(OR(E5=ngl,OR(E5=ngr,OR(E5=tng,E5=ng2l))),'Engine Emission Factors'!G47," ")))) ->  | F9: =IF(B9=" "," ",IF(B9='Data Validation'!A28,"(Btu/HP-hr)",IF(B9='Data Validation'!A29,"Btu/scf"))) -> 
B10: =IF(E5='Data Validation'!A6," ",IF(E5=rd,"Heat value of fuel",IF(E5=rg,"Heat value of fuel"," "))) ->  | D10: Heat value of fuel | E10: =IF(E5=rd,'Engine Emission Factors'!H48,IF(E5=rg,'Engine Emission Factors'!H49," ")) ->  | F10: =IF(E5='Data Validation'!A6," ",IF(E5=rd,"(Btu/gal)",IF(E5=rg,"(Btu/gal)"," "))) -> 
B11: Sulfur content of the fuel | E11: =IF(AND(E5=rd,E7>=600),"0.0015",IF(E5=tng,"0.00065","NA")) -> NA | F11: %
B13: Internal combustion engine potential and actual emissions
C14: a | D14: b | E14: c | F14: d | G14: e
B15: Pollutant | C15: GWP1 | D15: Engine Rated Output | E15: Actual Annual Throughput | F15: Potential Annual Hours3 | G15: Emission Factor | H15: Potential Emissions | I15: Actual Emissions | K15: Insignificant Activity4 Limits
D17: (MMBtu/hr) | E17: (MMBtu/yr) | F17: (hr/yr) | G17: (lbs/MMBtu) | H17: (ton/yr) | I17: (tons/yr) | K17: (tons/yr)
D18: =IF(E5=select,0,IF(OR(E5=rd,E5=rg),(E7*E9/10^6),IF(OR(E5=ngl,OR(E5=ngr,OR(E5=tng,E5=ng2l))),(E7*E9/(10^6))))) -> 0 | E18: =IF(F8='Data Validation'!B39,E8,IF(AND(F8='Data Validation'!B40,E5=rd),(('Engine Emission Factors'!H48*E8)/1000000),IF(AND(F8='Data Validation'!B40,E5=rg),(('Engine Emission Factors'!H49*E8)/1000000),IF(F8='Data Validation'!B38,(E8*D18),IF(F8=" ",0))))) -> 0 | F18: =IF($E$6=so,0,IF($E$6=Routine,8760,IF($E$6=Emer,500))) -> 0 | G18: by pollutant | H18: (b * d * e) / 2000 | I18: (b * c * e) / 2000
B19: Criteria Air Pollutants | I19: see engine emission factors tab | J19: =SUM(J20:J26) -> 6
B20: PM | G20: =IF($E$5=rd,IF($E$7>=600,'Engine Emission Factors'!$C5,'Engine Emission Factors'!$B5),IF($E$5=rg,'Engine Emission Factors'!$E5,IF($E$5=tng,'Engine Emission Factors'!$D5,IF($E$5=ngr,'Engine Emission Factors'!$F5,IF($E$5=ngl,'Engine Emission Factors'!$G5,IF($E$5=ng2l,'Engine Emission Factors'!$H5,IF($E$5=select,'Engine Emission Factors'!$I6))))))) -> 0 | H20: =$D$18*$F$18*$G20/2000 -> 0 | I20: =IF(OR($F$8='Data Validation'!$B$39,'Data Validation'!$B$40),(($D$18*$E$18*$G20)/2000),IF($F$8='Data Validation'!$B$38,(($E$18*$G20)/2000),0)) -> 0 | J20: =IF(K20>H20,1,0) -> 1 | K20: 1
B21: PM10 | G21: =IF($E$5=rd,IF($E$7>=600,'Engine Emission Factors'!$C6,'Engine Emission Factors'!$B6),IF($E$5=rg,'Engine Emission Factors'!$E6,IF($E$5=tng,'Engine Emission Factors'!$D6,IF($E$5=ngr,'Engine Emission Factors'!$F6,IF($E$5=ngl,'Engine Emission Factors'!$G6,IF($E$5=ng2l,'Engine Emission Factors'!$H6,IF($E$5=select,'Engine Emission Factors'!$I7))))))) -> 0 | H21: =$D$18*$F$18*$G21/2000 -> 0 | I21: =IF(OR($F$8='Data Validation'!$B$39,'Data Validation'!$B$40),(($D$18*$E$18*$G21)/2000),IF($F$8='Data Validation'!$B$38,(($E$18*$G21)/2000),0)) -> 0 | J21: =IF(K21>H21,1,0) -> 1 | K21: 1
B22: PM2.5 | G22: =IF($E$5=rd,IF($E$7>=600,'Engine Emission Factors'!$C7,'Engine Emission Factors'!$B7),IF($E$5=rg,'Engine Emission Factors'!$E7,IF($E$5=tng,'Engine Emission Factors'!$D7,IF($E$5=ngr,'Engine Emission Factors'!$F7,IF($E$5=ngl,'Engine Emission Factors'!$G7,IF($E$5=ng2l,'Engine Emission Factors'!$H7,IF($E$5=select,'Engine Emission Factors'!$I8))))))) -> 0 | H22: 0 | I22: =IF(OR($F$8='Data Validation'!$B$39,'Data Validation'!$B$40),(($D$18*$E$18*$G22)/2000),IF($F$8='Data Validation'!$B$38,(($E$18*$G22)/2000),0)) -> 0
B23: SOx | G23: =IF($E$5=rd,IF($E$7>=600,'Engine Emission Factors'!$C8*E11,'Engine Emission Factors'!$B8),IF($E$5=rg,'Engine Emission Factors'!$E8,IF($E$5=tng,'Engine Emission Factors'!$D8*E11,IF($E$5=ngr,'Engine Emission Factors'!$F8,IF($E$5=ngl,'Engine Emission Factors'!$G8,IF($E$5=ng2l,'Engine Emission Factors'!$H8,IF($E$5=select,'Engine Emission Factors'!$I9))))))) -> 0 | H23: 0 | I23: =IF(OR($F$8='Data Validation'!$B$39,'Data Validation'!$B$40),(($D$18*$E$18*$G23)/2000),IF($F$8='Data Validation'!$B$38,(($E$18*$G23)/2000),0)) -> 0 | J23: 1 | K23: 1
B24: NOx | G24: =IF($E$5=rd,IF($E$7>=600,'Engine Emission Factors'!$C9,'Engine Emission Factors'!$B9),IF($E$5=rg,'Engine Emission Factors'!$E9,IF($E$5=tng,'Engine Emission Factors'!$D9,IF($E$5=ngr,'Engine Emission Factors'!$F9,IF($E$5=ngl,'Engine Emission Factors'!$G9,IF($E$5=ng2l,'Engine Emission Factors'!$H9,IF($E$5=select,'Engine Emission Factors'!$I10))))))) -> 0 | H24: 0 | I24: =IF(OR($F$8='Data Validation'!$B$39,'Data Validation'!$B$40),(($D$18*$E$18*$G24)/2000),IF($F$8='Data Validation'!$B$38,(($E$18*$G24)/2000),0)) -> 0 | J24: 1 | K24: 1
B25: VOC | G25: =IF($E$5=rd,IF($E$7>=600,'Engine Emission Factors'!$C10,'Engine Emission Factors'!$B10),IF($E$5=rg,'Engine Emission Factors'!$E10,IF($E$5=tng,'Engine Emission Factors'!$D10,IF($E$5=ngr,'Engine Emission Factors'!$F10,IF($E$5=ngl,'Engine Emission Factors'!$G10,IF($E$5=ng2l,'Engine Emission Factors'!$H10,IF($E$5=select,'Engine Emission Factors'!$I11))))))) -> 0 | H25: 0 | I25: =IF(OR($F$8='Data Validation'!$B$39,'Data Validation'!$B$40),(($D$18*$E$18*$G25)/2000),IF($F$8='Data Validation'!$B$38,(($E$18*$G25)/2000),0)) -> 0 | J25: 1 | K25: 1
B26: CO | G26: =IF($E$5=rd,IF($E$7>=600,'Engine Emission Factors'!$C11,'Engine Emission Factors'!$B11),IF($E$5=rg,'Engine Emission Factors'!$E11,IF($E$5=tng,'Engine Emission Factors'!$D11,IF($E$5=ngr,'Engine Emission Factors'!$F11,IF($E$5=ngl,'Engine Emission Factors'!$G11,IF($E$5=ng2l,'Engine Emission Factors'!$H11,IF($E$5=select,'Engine Emission Factors'!$I12))))))) -> 0 | H26: 0 | I26: =IF(OR($F$8='Data Validation'!$B$39,'Data Validation'!$B$40),(($D$18*$E$18*$G26)/2000),IF($F$8='Data Validation'!$B$38,(($E$18*$G26)/2000),0)) -> 0 | J26: 1 | K26: 2
B27: Lead | G27: n/a | J27: 0
B28: Greenhouse Gas Emissions | I28: Source: 40 CFR 98, Subp. C, Table C-1 and C-2 | J28: 0
B29: CO2 2 | C29: 1 | G29: =IF($E$5=rd,IF($E$7>=600,'Engine Emission Factors'!$C13,'Engine Emission Factors'!$B13),IF($E$5=rg,'Engine Emission Factors'!$E13,IF($E$5=tng,'Engine Emission Factors'!$D13,IF($E$5=ngr,'Engine Emission Factors'!$F13,IF($E$5=ngl,'Engine Emission Factors'!$G13,IF($E$5=ng2l,'Engine Emission Factors'!$H13,IF($E$5=select,'Engine Emission Factors'!$I13))))))) -> 0 | H29: =$D$18*$F$18*$G29/2000 -> 0 | I29: =IF(OR($F$8='Data Validation'!$B$39,'Data Validation'!$B$40),(($D$18*$E$18*$G29)/2000),IF($F$8='Data Validation'!$B$38,(($E$18*$G29)/2000),0)) -> 0 | J29: 0
B30: CH4 2 | C30: 25 | G30: =IF($E$5=rd,IF($E$7>=600,'Engine Emission Factors'!$C14,'Engine Emission Factors'!$B14),IF($E$5=rg,'Engine Emission Factors'!$E14,IF($E$5=tng,'Engine Emission Factors'!$D14,IF($E$5=ngr,'Engine Emission Factors'!$F14,IF($E$5=ngl,'Engine Emission Factors'!$G14,IF($E$5=ng2l,'Engine Emission Factors'!$H14,IF($E$5=select,'Engine Emission Factors'!$I14))))))) -> 0 | H30: =$D$18*$F$18*$G30/2000 -> 0 | I30: =IF(OR($F$8='Data Validation'!$B$39,'Data Validation'!$B$40),(($D$18*$E$18*$G30)/2000),IF($F$8='Data Validation'!$B$38,(($E$18*$G30)/2000),0)) -> 0 | J30: 0
B31: N2O 2 | C31: 298 | G31: =IF($E$5=rd,IF($E$7>=600,'Engine Emission Factors'!$C15,'Engine Emission Factors'!$B15),IF($E$5=rg,'Engine Emission Factors'!$E15,IF($E$5=tng,'Engine Emission Factors'!$D15,IF($E$5=ngr,'Engine Emission Factors'!$F15,IF($E$5=ngl,'Engine Emission Factors'!$G15,IF($E$5=ng2l,'Engine Emission Factors'!$H15,IF($E$5=select,'Engine Emission Factors'!$I15))))))) -> 0 | H31: =$D$18*$F$18*$G31/2000 -> 0 | I31: =IF(OR($F$8='Data Validation'!$B$39,'Data Validation'!$B$40),(($D$18*$E$18*$G31)/2000),IF($F$8='Data Validation'!$B$38,(($E$18*$G31)/2000),0)) -> 0 | J31: 0
F32: GHG total (CO2e) 2 | H32: =(C29*H29)+(C30*H30)+(C31*H31) -> 0 | I32: =(C29*I29)+(C30*I30)+(C31*I31) -> 0 | J32: 1 | K32: 1000
B33: Hazardous Air Pollutants | G33: see engine emission factors tab
B34: 1,1,2,2-tetrachloroethane | G34: =IF($E$5=rd,IF($E$7>=600,'Engine Emission Factors'!$C17,'Engine Emission Factors'!$B17),IF($E$5=rg,'Engine Emission Factors'!$E17,IF($E$5=tng,'Engine Emission Factors'!$D17,IF($E$5=ngr,'Engine Emission Factors'!$F17,IF($E$5=ngl,'Engine Emission Factors'!$G17,IF($E$5=ng2l,'Engine Emission Factors'!$H17,IF($E$5=select,'Engine Emission Factors'!$I17))))))) -> 0 | H34: =$D$18*$F$18*$G34/2000 -> 0 | I34: =IF(OR($F$8='Data Validation'!$B$39,'Data Validation'!$B$40),(($D$18*$E$18*$G34)/2000),IF($F$8='Data Validation'!$B$38,(($E$18*$G34)/2000),0)) -> 0
B35: 1,1,2-trichloroethane | G35: =IF($E$5=rd,IF($E$7>=600,'Engine Emission Factors'!$C18,'Engine Emission Factors'!$B18),IF($E$5=rg,'Engine Emission Factors'!$E18,IF($E$5=tng,'Engine Emission Factors'!$D18,IF($E$5=ngr,'Engine Emission Factors'!$F18,IF($E$5=ngl,'Engine Emission Factors'!$G18,IF($E$5=ng2l,'Engine Emission Factors'!$H18,IF($E$5=select,'Engine Emission Factors'!$I18))))))) -> 0 | H35: 0 | I35: =IF(OR($F$8='Data Validation'!$B$39,'Data Validation'!$B$40),(($D$18*$E$18*$G35)/2000),IF($F$8='Data Validation'!$B$38,(($E$18*$G35)/2000),0)) -> 0
B36: 1,3-butadiene | G36: =IF($E$5=rd,IF($E$7>=600,'Engine Emission Factors'!$C19,'Engine Emission Factors'!$B19),IF($E$5=rg,'Engine Emission Factors'!$E19,IF($E$5=tng,'Engine Emission Factors'!$D19,IF($E$5=ngr,'Engine Emission Factors'!$F19,IF($E$5=ngl,'Engine Emission Factors'!$G19,IF($E$5=ng2l,'Engine Emission Factors'!$H19,IF($E$5=select,'Engine Emission Factors'!$I19))))))) -> 0 | H36: 0 | I36: =IF(OR($F$8='Data Validation'!$B$39,'Data Validation'!$B$40),(($D$18*$E$18*$G36)/2000),IF($F$8='Data Validation'!$B$38,(($E$18*$G36)/2000),0)) -> 0
B37: 1,3-dichloropropene | G37: =IF($E$5=rd,IF($E$7>=600,'Engine Emission Factors'!$C20,'Engine Emission Factors'!$B20),IF($E$5=rg,'Engine Emission Factors'!$E20,IF($E$5=tng,'Engine Emission Factors'!$D20,IF($E$5=ngr,'Engine Emission Factors'!$F20,IF($E$5=ngl,'Engine Emission Factors'!$G20,IF($E$5=ng2l,'Engine Emission Factors'!$H20,IF($E$5=select,'Engine Emission Factors'!$I20))))))) -> 0 | H37: 0 | I37: =IF(OR($F$8='Data Validation'!$B$39,'Data Validation'!$B$40),(($D$18*$E$18*$G37)/2000),IF($F$8='Data Validation'!$B$38,(($E$18*$G37)/2000),0)) -> 0
B38: Acetaldehyde | G38: =IF($E$5=rd,IF($E$7>=600,'Engine Emission Factors'!$C21,'Engine Emission Factors'!$B21),IF($E$5=rg,'Engine Emission Factors'!$E21,IF($E$5=tng,'Engine Emission Factors'!$D21,IF($E$5=ngr,'Engine Emission Factors'!$F21,IF($E$5=ngl,'Engine Emission Factors'!$G21,IF($E$5=ng2l,'Engine Emission Factors'!$H21,IF($E$5=select,'Engine Emission Factors'!$I21))))))) -> 0 | H38: 0 | I38: =IF(OR($F$8='Data Validation'!$B$39,'Data Validation'!$B$40),(($D$18*$E$18*$G38)/2000),IF($F$8='Data Validation'!$B$38,(($E$18*$G38)/2000),0)) -> 0
B39: Acrolein | G39: =IF($E$5=rd,IF($E$7>=600,'Engine Emission Factors'!$C22,'Engine Emission Factors'!$B22),IF($E$5=rg,'Engine Emission Factors'!$E22,IF($E$5=tng,'Engine Emission Factors'!$D22,IF($E$5=ngr,'Engine Emission Factors'!$F22,IF($E$5=ngl,'Engine Emission Factors'!$G22,IF($E$5=ng2l,'Engine Emission Factors'!$H22,IF($E$5=select,'Engine Emission Factors'!$I22))))))) -> 0 | H39: 0 | I39: =IF(OR($F$8='Data Validation'!$B$39,'Data Validation'!$B$40),(($D$18*$E$18*$G39)/2000),IF($F$8='Data Validation'!$B$38,(($E$18*$G39)/2000),0)) -> 0
B40: Benzene | G40: =IF($E$5=rd,IF($E$7>=600,'Engine Emission Factors'!$C23,'Engine Emission Factors'!$B23),IF($E$5=rg,'Engine Emission Factors'!$E23,IF($E$5=tng,'Engine Emission Factors'!$D23,IF($E$5=ngr,'Engine Emission Factors'!$F23,IF($E$5=ngl,'Engine Emission Factors'!$G23,IF($E$5=ng2l,'Engine Emission Factors'!$H23,IF($E$5=select,'Engine Emission Factors'!$I23))))))) -> 0 | H40: 0 | I40: =IF(OR($F$8='Data Validation'!$B$39,'Data Validation'!$B$40),(($D$18*$E$18*$G40)/2000),IF($F$8='Data Validation'!$B$38,(($E$18*$G40)/2000),0)) -> 0
B41: Biphenyl | G41: =IF($E$5=rd,IF($E$7>=600,'Engine Emission Factors'!$C24,'Engine Emission Factors'!$B24),IF($E$5=rg,'Engine Emission Factors'!$E24,IF($E$5=tng,'Engine Emission Factors'!$D24,IF($E$5=ngr,'Engine Emission Factors'!$F24,IF($E$5=ngl,'Engine Emission Factors'!$G24,IF($E$5=ng2l,'Engine Emission Factors'!$H24,IF($E$5=select,'Engine Emission Factors'!$I24))))))) -> 0 | H41: 0 | I41: =IF(OR($F$8='Data Validation'!$B$39,'Data Validation'!$B$40),(($D$18*$E$18*$G41)/2000),IF($F$8='Data Validation'!$B$38,(($E$18*$G41)/2000),0)) -> 0
B42: Carbon tetrachloride | G42: =IF($E$5=rd,IF($E$7>=600,'Engine Emission Factors'!$C25,'Engine Emission Factors'!$B25),IF($E$5=rg,'Engine Emission Factors'!$E25,IF($E$5=tng,'Engine Emission Factors'!$D25,IF($E$5=ngr,'Engine Emission Factors'!$F25,IF($E$5=ngl,'Engine Emission Factors'!$G25,IF($E$5=ng2l,'Engine Emission Factors'!$H25,IF($E$5=select,'Engine Emission Factors'!$I25))))))) -> 0 | H42: 0 | I42: =IF(OR($F$8='Data Validation'!$B$39,'Data Validation'!$B$40),(($D$18*$E$18*$G42)/2000),IF($F$8='Data Validation'!$B$38,(($E$18*$G42)/2000),0)) -> 0
B43: Chlorobenzene | G43: =IF($E$5=rd,IF($E$7>=600,'Engine Emission Factors'!$C26,'Engine Emission Factors'!$B26),IF($E$5=rg,'Engine Emission Factors'!$E26,IF($E$5=tng,'Engine Emission Factors'!$D26,IF($E$5=ngr,'Engine Emission Factors'!$F26,IF($E$5=ngl,'Engine Emission Factors'!$G26,IF($E$5=ng2l,'Engine Emission Factors'!$H26,IF($E$5=select,'Engine Emission Factors'!$I26))))))) -> 0 | H43: 0 | I43: =IF(OR($F$8='Data Validation'!$B$39,'Data Validation'!$B$40),(($D$18*$E$18*$G43)/2000),IF($F$8='Data Validation'!$B$38,(($E$18*$G43)/2000),0)) -> 0
B44: Chloroform | G44: =IF($E$5=rd,IF($E$7>=600,'Engine Emission Factors'!$C27,'Engine Emission Factors'!$B27),IF($E$5=rg,'Engine Emission Factors'!$E27,IF($E$5=tng,'Engine Emission Factors'!$D27,IF($E$5=ngr,'Engine Emission Factors'!$F27,IF($E$5=ngl,'Engine Emission Factors'!$G27,IF($E$5=ng2l,'Engine Emission Factors'!$H27,IF($E$5=select,'Engine Emission Factors'!$I27))))))) -> 0 | H44: 0 | I44: =IF(OR($F$8='Data Validation'!$B$39,'Data Validation'!$B$40),(($D$18*$E$18*$G44)/2000),IF($F$8='Data Validation'!$B$38,(($E$18*$G44)/2000),0)) -> 0
B45: Ethylbenzene | G45: =IF($E$5=rd,IF($E$7>=600,'Engine Emission Factors'!$C28,'Engine Emission Factors'!$B28),IF($E$5=rg,'Engine Emission Factors'!$E28,IF($E$5=tng,'Engine Emission Factors'!$D28,IF($E$5=ngr,'Engine Emission Factors'!$F28,IF($E$5=ngl,'Engine Emission Factors'!$G28,IF($E$5=ng2l,'Engine Emission Factors'!$H28,IF($E$5=select,'Engine Emission Factors'!$I28))))))) -> 0 | H45: 0 | I45: =IF(OR($F$8='Data Validation'!$B$39,'Data Validation'!$B$40),(($D$18*$E$18*$G45)/2000),IF($F$8='Data Validation'!$B$38,(($E$18*$G45)/2000),0)) -> 0
B46: Ethylene dibromide | G46: =IF($E$5=rd,IF($E$7>=600,'Engine Emission Factors'!$C29,'Engine Emission Factors'!$B29),IF($E$5=rg,'Engine Emission Factors'!$E29,IF($E$5=tng,'Engine Emission Factors'!$D29,IF($E$5=ngr,'Engine Emission Factors'!$F29,IF($E$5=ngl,'Engine Emission Factors'!$G29,IF($E$5=ng2l,'Engine Emission Factors'!$H29,IF($E$5=select,'Engine Emission Factors'!$I29))))))) -> 0 | H46: 0 | I46: =IF(OR($F$8='Data Validation'!$B$39,'Data Validation'!$B$40),(($D$18*$E$18*$G46)/2000),IF($F$8='Data Validation'!$B$38,(($E$18*$G46)/2000),0)) -> 0
B47: Formaldehyde | G47: =IF($E$5=rd,IF($E$7>=600,'Engine Emission Factors'!$C30,'Engine Emission Factors'!$B30),IF($E$5=rg,'Engine Emission Factors'!$E30,IF($E$5=tng,'Engine Emission Factors'!$D30,IF($E$5=ngr,'Engine Emission Factors'!$F30,IF($E$5=ngl,'Engine Emission Factors'!$G30,IF($E$5=ng2l,'Engine Emission Factors'!$H30,IF($E$5=select,'Engine Emission Factors'!$I30))))))) -> 0 | H47: 0 | I47: =IF(OR($F$8='Data Validation'!$B$39,'Data Validation'!$B$40),(($D$18*$E$18*$G47)/2000),IF($F$8='Data Validation'!$B$38,(($E$18*$G47)/2000),0)) -> 0
B48: Hexane | G48: =IF($E$5=rd,IF($E$7>=600,'Engine Emission Factors'!$C31,'Engine Emission Factors'!$B31),IF($E$5=rg,'Engine Emission Factors'!$E31,IF($E$5=tng,'Engine Emission Factors'!$D31,IF($E$5=ngr,'Engine Emission Factors'!$F31,IF($E$5=ngl,'Engine Emission Factors'!$G31,IF($E$5=ng2l,'Engine Emission Factors'!$H31,IF($E$5=select,'Engine Emission Factors'!$I31))))))) -> 0 | H48: 0 | I48: =IF(OR($F$8='Data Validation'!$B$39,'Data Validation'!$B$40),(($D$18*$E$18*$G48)/2000),IF($F$8='Data Validation'!$B$38,(($E$18*$G48)/2000),0)) -> 0
B49: Methanol | G49: =IF($E$5=rd,IF($E$7>=600,'Engine Emission Factors'!$C32,'Engine Emission Factors'!$B32),IF($E$5=rg,'Engine Emission Factors'!$E32,IF($E$5=tng,'Engine Emission Factors'!$D32,IF($E$5=ngr,'Engine Emission Factors'!$F32,IF($E$5=ngl,'Engine Emission Factors'!$G32,IF($E$5=ng2l,'Engine Emission Factors'!$H32,IF($E$5=select,'Engine Emission Factors'!$I32))))))) -> 0 | H49: 0 | I49: =IF(OR($F$8='Data Validation'!$B$39,'Data Validation'!$B$40),(($D$18*$E$18*$G49)/2000),IF($F$8='Data Validation'!$B$38,(($E$18*$G49)/2000),0)) -> 0
B50: Methylene chloride | G50: =IF($E$5=rd,IF($E$7>=600,'Engine Emission Factors'!$C33,'Engine Emission Factors'!$B33),IF($E$5=rg,'Engine Emission Factors'!$E33,IF($E$5=tng,'Engine Emission Factors'!$D33,IF($E$5=ngr,'Engine Emission Factors'!$F33,IF($E$5=ngl,'Engine Emission Factors'!$G33,IF($E$5=ng2l,'Engine Emission Factors'!$H33,IF($E$5=select,'Engine Emission Factors'!$I33))))))) -> 0 | H50: 0 | I50: =IF(OR($F$8='Data Validation'!$B$39,'Data Validation'!$B$40),(($D$18*$E$18*$G50)/2000),IF($F$8='Data Validation'!$B$38,(($E$18*$G50)/2000),0)) -> 0
B51: Naphthalene | G51: =IF($E$5=rd,IF($E$7>=600,'Engine Emission Factors'!$C34,'Engine Emission Factors'!$B34),IF($E$5=rg,'Engine Emission Factors'!$E34,IF($E$5=tng,'Engine Emission Factors'!$D34,IF($E$5=ngr,'Engine Emission Factors'!$F34,IF($E$5=ngl,'Engine Emission Factors'!$G34,IF($E$5=ng2l,'Engine Emission Factors'!$H34,IF($E$5=select,'Engine Emission Factors'!$I34))))))) -> 0 | H51: 0 | I51: =IF(OR($F$8='Data Validation'!$B$39,'Data Validation'!$B$40),(($D$18*$E$18*$G51)/2000),IF($F$8='Data Validation'!$B$38,(($E$18*$G51)/2000),0)) -> 0
B52: PAH | G52: =IF($E$5=rd,IF($E$7>=600,'Engine Emission Factors'!$C35,'Engine Emission Factors'!$B35),IF($E$5=rg,'Engine Emission Factors'!$E35,IF($E$5=tng,'Engine Emission Factors'!$D35,IF($E$5=ngr,'Engine Emission Factors'!$F35,IF($E$5=ngl,'Engine Emission Factors'!$G35,IF($E$5=ng2l,'Engine Emission Factors'!$H35,IF($E$5=select,'Engine Emission Factors'!$I35))))))) -> 0 | H52: 0 | I52: =IF(OR($F$8='Data Validation'!$B$39,'Data Validation'!$B$40),(($D$18*$E$18*$G52)/2000),IF($F$8='Data Validation'!$B$38,(($E$18*$G52)/2000),0)) -> 0
B53: Phenol | G53: =IF($E$5=rd,IF($E$7>=600,'Engine Emission Factors'!$C36,'Engine Emission Factors'!$B36),IF($E$5=rg,'Engine Emission Factors'!$E36,IF($E$5=tng,'Engine Emission Factors'!$D36,IF($E$5=ngr,'Engine Emission Factors'!$F36,IF($E$5=ngl,'Engine Emission Factors'!$G36,IF($E$5=ng2l,'Engine Emission Factors'!$H36,IF($E$5=select,'Engine Emission Factors'!$I36))))))) -> 0 | H53: 0 | I53: =IF(OR($F$8='Data Validation'!$B$39,'Data Validation'!$B$40),(($D$18*$E$18*$G53)/2000),IF($F$8='Data Validation'!$B$38,(($E$18*$G53)/2000),0)) -> 0
B54: Styrene | G54: =IF($E$5=rd,IF($E$7>=600,'Engine Emission Factors'!$C37,'Engine Emission Factors'!$B37),IF($E$5=rg,'Engine Emission Factors'!$E37,IF($E$5=tng,'Engine Emission Factors'!$D37,IF($E$5=ngr,'Engine Emission Factors'!$F37,IF($E$5=ngl,'Engine Emission Factors'!$G37,IF($E$5=ng2l,'Engine Emission Factors'!$H37,IF($E$5=select,'Engine Emission Factors'!$I37))))))) -> 0 | H54: 0 | I54: =IF(OR($F$8='Data Validation'!$B$39,'Data Validation'!$B$40),(($D$18*$E$18*$G54)/2000),IF($F$8='Data Validation'!$B$38,(($E$18*$G54)/2000),0)) -> 0
B55: Tetrachloroethane | G55: =IF($E$5=rd,IF($E$7>=600,'Engine Emission Factors'!$C38,'Engine Emission Factors'!$B38),IF($E$5=rg,'Engine Emission Factors'!$E38,IF($E$5=tng,'Engine Emission Factors'!$D38,IF($E$5=ngr,'Engine Emission Factors'!$F38,IF($E$5=ngl,'Engine Emission Factors'!$G38,IF($E$5=ng2l,'Engine Emission Factors'!$H38,IF($E$5=select,'Engine Emission Factors'!$I38))))))) -> 0 | H55: 0 | I55: =IF(OR($F$8='Data Validation'!$B$39,'Data Validation'!$B$40),(($D$18*$E$18*$G55)/2000),IF($F$8='Data Validation'!$B$38,(($E$18*$G55)/2000),0)) -> 0
B56: Toluene | G56: =IF($E$5=rd,IF($E$7>=600,'Engine Emission Factors'!$C39,'Engine Emission Factors'!$B39),IF($E$5=rg,'Engine Emission Factors'!$E39,IF($E$5=tng,'Engine Emission Factors'!$D39,IF($E$5=ngr,'Engine Emission Factors'!$F39,IF($E$5=ngl,'Engine Emission Factors'!$G39,IF($E$5=ng2l,'Engine Emission Factors'!$H39,IF($E$5=select,'Engine Emission Factors'!$I39))))))) -> 0 | H56: 0 | I56: =IF(OR($F$8='Data Validation'!$B$39,'Data Validation'!$B$40),(($D$18*$E$18*$G56)/2000),IF($F$8='Data Validation'!$B$38,(($E$18*$G56)/2000),0)) -> 0
B57: Vinyl chloride | G57: =IF($E$5=rd,IF($E$7>=600,'Engine Emission Factors'!$C40,'Engine Emission Factors'!$B40),IF($E$5=rg,'Engine Emission Factors'!$E40,IF($E$5=tng,'Engine Emission Factors'!$D40,IF($E$5=ngr,'Engine Emission Factors'!$F40,IF($E$5=ngl,'Engine Emission Factors'!$G40,IF($E$5=ng2l,'Engine Emission Factors'!$H40,IF($E$5=select,'Engine Emission Factors'!$I40))))))) -> 0 | H57: 0 | I57: =IF(OR($F$8='Data Validation'!$B$39,'Data Validation'!$B$40),(($D$18*$E$18*$G57)/2000),IF($F$8='Data Validation'!$B$38,(($E$18*$G57)/2000),0)) -> 0
B58: Xylene | G58: =IF($E$5=rd,IF($E$7>=600,'Engine Emission Factors'!$C41,'Engine Emission Factors'!$B41),IF($E$5=rg,'Engine Emission Factors'!$E41,IF($E$5=tng,'Engine Emission Factors'!$D41,IF($E$5=ngr,'Engine Emission Factors'!$F41,IF($E$5=ngl,'Engine Emission Factors'!$G41,IF($E$5=ng2l,'Engine Emission Factors'!$H41,IF($E$5=select,'Engine Emission Factors'!$I41))))))) -> 0 | H58: 0 | I58: =IF(OR($F$8='Data Validation'!$B$39,'Data Validation'!$B$40),(($D$18*$E$18*$G58)/2000),IF($F$8='Data Validation'!$B$38,(($E$18*$G58)/2000),0)) -> 0
F59: HAP total | H59: =SUM(H34:H58) -> 0 | I59: =SUM(I34:I58) -> 0
B60: 1 Global Warming Potential from 40 CFR Part 98, Subpart A, Table A-1 | F60: 4 See information on insignficnat activities at Minn. R. 7007.1300 and on the 'Permits & Requirements' tab.
B61: 2 CO2e = carbon dioxide equivalents
B62: 3 Routine = 24 hr/day * 365 day/yr or 8760 hr/yr; Emergency = 500 hr/yr | F62: Minn. R. 7007.1300

Sheet Engine 2
B1: =Instructions!O4 -> p-sbap5-25 • 9/3/19
B2: Air emissions from internal combustion engines
B3: Reciprocating internal combustion engine (RICE)
B5: Engine and fuel type | E5: Choose one | G5: Facility identifier for engine | I5: Engine 2
B6: Engine use | E6: Choose one | F6: If emergency engine is used for peak-shaving or contracted for >15 hr/yr, choose 'Routine.'
B7: =IF(E5='Data Validation'!A6," ",IF(OR(E5=rd,E5=rg),"Rated mechanical output",IF(OR(E5=ngl,OR(E5=ngr,OR(E5=tng,E5=ng2l))),"Rated fuel input"," "))) ->  | E7: 0 | F7: =IF(B7=" "," ",IF(B7="Rated mechanical output",'Data Validation'!A23,IF(B7="Rated fuel input",'Data Validation'!A24))) -> 
B8: Choose one to calculate actual emissions | E8: 0 | F8: =IF(B8='Data Validation'!B32," ",IF(B8='Data Validation'!B33,'Data Validation'!B38,IF(AND(B8='Data Validation'!B34,OR(E5=tng,OR(E5=ngl,OR(E5=ngr,OR(E5=ng2l))))),'Data Validation'!B39,IF(AND(B8='Data Validation'!B34,OR(E5=rd,OR(E5=rg))),'Data Validation'!B40," ")))) -> 
B9: =IF(F7=" "," ",IF(F7='Data Validation'!A23,'Data Validation'!A28,IF(F7='Data Validation'!A24,'Data Validation'!A29))) ->  | E9: =IF(E5='Data Validation'!A6," ",IF(E5=rd,'Engine Emission Factors'!F48,IF(E5=rg,'Engine Emission Factors'!F49,IF(OR(E5=ngl,OR(E5=ngr,OR(E5=tng,E5=ng2l))),'Engine Emission Factors'!G47," ")))) ->  | F9: =IF(B9=" "," ",IF(B9='Data Validation'!A28,"(Btu/HP-hr)",IF(B9='Data Validation'!A29,"Btu/scf"))) -> 
B10: =IF(E5='Data Validation'!A6," ",IF(E5=rd,"Heat value of fuel",IF(E5=rg,"Heat value of fuel"," "))) ->  | D10: Heat value of fuel | E10: =IF(E5=rd,'Engine Emission Factors'!H48,IF(E5=rg,'Engine Emission Factors'!H49," ")) ->  | F10: =IF(E5='Data Validation'!A6," ",IF(E5=rd,"(Btu/gal)",IF(E5=rg,"(Btu/gal)"," "))) -> 
B11: Sulfur content of the fuel | E11: =IF(AND(E5=rd,E7>=600),"0.0015",IF(E5=tng,"0.00065","NA")) -> NA | F11: %
B13: Internal combustion engine potential and actual emissions
C14: a | D14: b | E14: c | F14: d | G14: e
B15: Pollutant | C15: GWP1 | D15: Engine Rated Output | E15: Actual Annual Throughput | F15: Potential Annual Hours3 | G15: Emission Factor | H15: Potential Emissions | I15: Actual Emissions | K15: Insignificant Activity4 Limits
D17: (MMBtu/hr) | E17: (MMBtu/yr) | F17: (hr/yr) | G17: (lbs/MMBtu) | H17: (ton/yr) | I17: (tons/yr) | K17: (tons/yr)
D18: =IF(E5=select,0,IF(OR(E5=rd,E5=rg),(E7*E9/10^6),IF(OR(E5=ngl,OR(E5=ngr,OR(E5=tng,E5=ng2l))),(E7*E9/(10^6))))) -> 0 | E18: =IF(F8='Data Validation'!B39,E8,IF(AND(F8='Data Validation'!B40,E5=rd),(('Engine Emission Factors'!H48*E8)/1000000),IF(AND(F8='Data Validation'!B40,E5=rg),(('Engine Emission Factors'!H49*E8)/1000000),IF(F8='Data Validation'!B38,(E8*D18),IF(F8=" ",0))))) -> 0 | F18: =IF($E$6=so,0,IF($E$6=Routine,8760,IF($E$6=Emer,500))) -> 0 | G18: by pollutant | H18: (b * d * e) / 2000 | I18: (b * c * e) / 2000
B19: Criteria Air Pollutants | I19: see engine emission factors tab | J19: =SUM(J20:J26) -> 6
B20: PM | G20: =IF($E$5=rd,IF($E$7>=600,'Engine Emission Factors'!$C5,'Engine Emission Factors'!$B5),IF($E$5=rg,'Engine Emission Factors'!$E5,IF($E$5=tng,'Engine Emission Factors'!$D5,IF($E$5=ngr,'Engine Emission Factors'!$F5,IF($E$5=ngl,'Engine Emission Factors'!$G5,IF($E$5=ng2l,'Engine Emission Factors'!$H5,IF($E$5=select,'Engine Emission Factors'!$I6))))))) -> 0 | H20: =$D$18*$F$18*$G20/2000 -> 0 | I20: =IF(OR($F$8='Data Validation'!$B$39,'Data Validation'!$B$40),(($D$18*$E$18*$G20)/2000),IF($F$8='Data Validation'!$B$38,(($E$18*$G20)/2000),0)) -> 0 | J20: =IF(K20>H20,1,0) -> 1 | K20: 1
B21: PM10 | G21: =IF($E$5=rd,IF($E$7>=600,'Engine Emission Factors'!$C6,'Engine Emission Factors'!$B6),IF($E$5=rg,'Engine Emission Factors'!$E6,IF($E$5=tng,'Engine Emission Factors'!$D6,IF($E$5=ngr,'Engine Emission Factors'!$F6,IF($E$5=ngl,'Engine Emission Factors'!$G6,IF($E$5=ng2l,'Engine Emission Factors'!$H6,IF($E$5=select,'Engine Emission Factors'!$I7))))))) -> 0 | H21: =$D$18*$F$18*$G21/2000 -> 0 | I21: =IF(OR($F$8='Data Validation'!$B$39,'Data Validation'!$B$40),(($D$18*$E$18*$G21)/2000),IF($F$8='Data Validation'!$B$38,(($E$18*$G21)/2000),0)) -> 0 | J21: =IF(K21>H21,1,0) -> 1 | K21: 1
B22: PM2.5 | G22: =IF($E$5=rd,IF($E$7>=600,'Engine Emission Factors'!$C7,'Engine Emission Factors'!$B7),IF($E$5=rg,'Engine Emission Factors'!$E7,IF($E$5=tng,'Engine Emission Factors'!$D7,IF($E$5=ngr,'Engine Emission Factors'!$F7,IF($E$5=ngl,'Engine Emission Factors'!$G7,IF($E$5=ng2l,'Engine Emission Factors'!$H7,IF($E$5=select,'Engine Emission Factors'!$I8))))))) -> 0 | H22: 0 | I22: =IF(OR($F$8='Data Validation'!$B$39,'Data Validation'!$B$40),(($D$18*$E$18*$G22)/2000),IF($F$8='Data Validation'!$B$38,(($E$18*$G22)/2000),0)) -> 0
B23: SOx | G23: =IF($E$5=rd,IF($E$7>=600,'Engine Emission Factors'!$C8*E11,'Engine Emission Factors'!$B8),IF($E$5=rg,'Engine Emission Factors'!$E8,IF($E$5=tng,'Engine Emission Factors'!$D8*E11,IF($E$5=ngr,'Engine Emission Factors'!$F8,IF($E$5=ngl,'Engine Emission Factors'!$G8,IF($E$5=ng2l,'Engine Emission Factors'!$H8,IF($E$5=select,'Engine Emission Factors'!$I9))))))) -> 0 | H23: 0 | I23: =IF(OR($F$8='Data Validation'!$B$39,'Data Validation'!$B$40),(($D$18*$E$18*$G23)/2000),IF($F$8='Data Validation'!$B$38,(($E$18*$G23)/2000),0)) -> 0 | J23: 1 | K23: 1
B24: NOx | G24: =IF($E$5=rd,IF($E$7>=600,'Engine Emission Factors'!$C9,'Engine Emission Factors'!$B9),IF($E$5=rg,'Engine Emission Factors'!$E9,IF($E$5=tng,'Engine Emission Factors'!$D9,IF($E$5=ngr,'Engine Emission Factors'!$F9,IF($E$5=ngl,'Engine Emission Factors'!$G9,IF($E$5=ng2l,'Engine Emission Factors'!$H9,IF($E$5=select,'Engine Emission Factors'!$I10))))))) -> 0 | H24: 0 | I24: =IF(OR($F$8='Data Validation'!$B$39,'Data Validation'!$B$40),(($D$18*$E$18*$G24)/2000),IF($F$8='Data Validation'!$B$38,(($E$18*$G24)/2000),0)) -> 0 | J24: 1 | K24: 1
B25: VOC | G25: =IF($E$5=rd,IF($E$7>=600,'Engine Emission Factors'!$C10,'Engine Emission Factors'!$B10),IF($E$5=rg,'Engine Emission Factors'!$E10,IF($E$5=tng,'Engine Emission Factors'!$D10,IF($E$5=ngr,'Engine Emission Factors'!$F10,IF($E$5=ngl,'Engine Emission Factors'!$G10,IF($E$5=ng2l,'Engine Emission Factors'!$H10,IF($E$5=select,'Engine Emission Factors'!$I11))))))) -> 0 | H25: 0 | I25: =IF(OR($F$8='Data Validation'!$B$39,'Data Validation'!$B$40),(($D$18*$E$18*$G25)/2000),IF($F$8='Data Validation'!$B$38,(($E$18*$G25)/2000),0)) -> 0 | J25: 1 | K25: 1
B26: CO | G26: =IF($E$5=rd,IF($E$7>=600,'Engine Emission Factors'!$C11,'Engine Emission Factors'!$B11),IF($E$5=rg,'Engine Emission Factors'!$E11,IF($E$5=tng,'Engine Emission Factors'!$D11,IF($E$5=ngr,'Engine Emission Factors'!$F11,IF($E$5=ngl,'Engine Emission Factors'!$G11,IF($E$5=ng2l,'Engine Emission Factors'!$H11,IF($E$5=select,'Engine Emission Factors'!$I12))))))) -> 0 | H26: 0 | I26: =IF(OR($F$8='Data Validation'!$B$39,'Data Validation'!$B$40),(($D$18*$E$18*$G26)/2000),IF($F$8='Data Validation'!$B$38,(($E$18*$G26)/2000),0)) -> 0 | J26: 1 | K26: 2
B27: Lead | G27: n/a | J27: 0
B28: Greenhouse Gas Emissions | I28: Source: 40 CFR 98, Subp. C, Table C-1 and C-2 | J28: 0
B29: CO2 2 | C29: 1 | G29: =IF($E$5=rd,IF($E$7>=600,'Engine Emission Factors'!$C13,'Engine Emission Factors'!$B13),IF($E$5=rg,'Engine Emission Factors'!$E13,IF($E$5=tng,'Engine Emission Factors'!$D13,IF($E$5=ngr,'Engine Emission Factors'!$F13,IF($E$5=ngl,'Engine Emission Factors'!$G13,IF($E$5=ng2l,'Engine Emission Factors'!$H13,IF($E$5=select,'Engine Emission Factors'!$I13))))))) -> 0 | H29: =$D$18*$F$18*$G29/2000 -> 0 | I29: =IF(OR($F$8='Data Validation'!$B$39,'Data Validation'!$B$40),(($D$18*$E$18*$G29)/2000),IF($F$8='Data Validation'!$B$38,(($E$18*$G29)/2000),0)) -> 0 | J29: 0
B30: CH4 2 | C30: 25 | G30: =IF($E$5=rd,IF($E$7>=600,'Engine Emission Factors'!$C14,'Engine Emission Factors'!$B14),IF($E$5=rg,'Engine Emission Factors'!$E14,IF($E$5=tng,'Engine Emission Factors'!$D14,IF($E$5=ngr,'Engine Emission Factors'!$F14,IF($E$5=ngl,'Engine Emission Factors'!$G14,IF($E$5=ng2l,'Engine Emission Factors'!$H14,IF($E$5=select,'Engine Emission Factors'!$I14))))))) -> 0 | H30: =$D$18*$F$18*$G30/2000 -> 0 | I30: =IF(OR($F$8='Data Validation'!$B$39,'Data Validation'!$B$40),(($D$18*$E$18*$G30)/2000),IF($F$8='Data Validation'!$B$38,(($E$18*$G30)/2000),0)) -> 0 | J30: 0
B31: N2O 2 | C31: 298 | G31: =IF($E$5=rd,IF($E$7>=600,'Engine Emission Factors'!$C15,'Engine Emission Factors'!$B15),IF($E$5=rg,'Engine Emission Factors'!$E15,IF($E$5=tng,'Engine Emission Factors'!$D15,IF($E$5=ngr,'Engine Emission Factors'!$F15,IF($E$5=ngl,'Engine Emission Factors'!$G15,IF($E$5=ng2l,'Engine Emission Factors'!$H15,IF($E$5=select,'Engine Emission Factors'!$I15))))))) -> 0 | H31: =$D$18*$F$18*$G31/2000 -> 0 | I31: =IF(OR($F$8='Data Validation'!$B$39,'Data Validation'!$B$40),(($D$18*$E$18*$G31)/2000),IF($F$8='Data Validation'!$B$38,(($E$18*$G31)/2000),0)) -> 0 | J31: 0
F32: GHG total (CO2e) 2 | H32: =(C29*H29)+(C30*H30)+(C31*H31) -> 0 | I32: =(C29*I29)+(C30*I30)+(C31*I31) -> 0 | J32: 1 | K32: 1000
B33: Hazardous Air Pollutants | G33: see engine emission factors tab
B34: 1,1,2,2-tetrachloroethane | G34: =IF($E$5=rd,IF($E$7>=600,'Engine Emission Factors'!$C17,'Engine Emission Factors'!$B17),IF($E$5=rg,'Engine Emission Factors'!$E17,IF($E$5=tng,'Engine Emission Factors'!$D17,IF($E$5=ngr,'Engine Emission Factors'!$F17,IF($E$5=ngl,'Engine Emission Factors'!$G17,IF($E$5=ng2l,'Engine Emission Factors'!$H17,IF($E$5=select,'Engine Emission Factors'!$I17))))))) -> 0 | H34: =$D$18*$F$18*$G34/2000 -> 0 | I34: =IF(OR($F$8='Data Validation'!$B$39,'Data Validation'!$B$40),(($D$18*$E$18*$G34)/2000),IF($F$8='Data Validation'!$B$38,(($E$18*$G34)/2000),0)) -> 0
B35: 1,1,2-trichloroethane | G35: =IF($E$5=rd,IF($E$7>=600,'Engine Emission Factors'!$C18,'Engine Emission Factors'!$B18),IF($E$5=rg,'Engine Emission Factors'!$E18,IF($E$5=tng,'Engine Emission Factors'!$D18,IF($E$5=ngr,'Engine Emission Factors'!$F18,IF($E$5=ngl,'Engine Emission Factors'!$G18,IF($E$5=ng2l,'Engine Emission Factors'!$H18,IF($E$5=select,'Engine Emission Factors'!$I18))))))) -> 0 | H35: 0 | I35: =IF(OR($F$8='Data Validation'!$B$39,'Data Validation'!$B$40),(($D$18*$E$18*$G35)/2000),IF($F$8='Data Validation'!$B$38,(($E$18*$G35)/2000),0)) -> 0
B36: 1,3-butadiene | G36: =IF($E$5=rd,IF($E$7>=600,'Engine Emission Factors'!$C19,'Engine Emission Factors'!$B19),IF($E$5=rg,'Engine Emission Factors'!$E19,IF($E$5=tng,'Engine Emission Factors'!$D19,IF($E$5=ngr,'Engine Emission Factors'!$F19,IF($E$5=ngl,'Engine Emission Factors'!$G19,IF($E$5=ng2l,'Engine Emission Factors'!$H19,IF($E$5=select,'Engine Emission Factors'!$I19))))))) -> 0 | H36: 0 | I36: =IF(OR($F$8='Data Validation'!$B$39,'Data Validation'!$B$40),(($D$18*$E$18*$G36)/2000),IF($F$8='Data Validation'!$B$38,(($E$18*$G36)/2000),0)) -> 0
B37: 1,3-dichloropropene | G37: =IF($E$5=rd,IF($E$7>=600,'Engine Emission Factors'!$C20,'Engine Emission Factors'!$B20),IF($E$5=rg,'Engine Emission Factors'!$E20,IF($E$5=tng,'Engine Emission Factors'!$D20,IF($E$5=ngr,'Engine Emission Factors'!$F20,IF($E$5=ngl,'Engine Emission Factors'!$G20,IF($E$5=ng2l,'Engine Emission Factors'!$H20,IF($E$5=select,'Engine Emission Factors'!$I20))))))) -> 0 | H37: 0 | I37: =IF(OR($F$8='Data Validation'!$B$39,'Data Validation'!$B$40),(($D$18*$E$18*$G37)/2000),IF($F$8='Data Validation'!$B$38,(($E$18*$G37)/2000),0)) -> 0
B38: Acetaldehyde | G38: =IF($E$5=rd,IF($E$7>=600,'Engine Emission Factors'!$C21,'Engine Emission Factors'!$B21),IF($E$5=rg,'Engine Emission Factors'!$E21,IF($E$5=tng,'Engine Emission Factors'!$D21,IF($E$5=ngr,'Engine Emission Factors'!$F21,IF($E$5=ngl,'Engine Emission Factors'!$G21,IF($E$5=ng2l,'Engine Emission Factors'!$H21,IF($E$5=select,'Engine Emission Factors'!$I21))))))) -> 0 | H38: 0 | I38: =IF(OR($F$8='Data Validation'!$B$39,'Data Validation'!$B$40),(($D$18*$E$18*$G38)/2000),IF($F$8='Data Validation'!$B$38,(($E$18*$G38)/2000),0)) -> 0
B39: Acrolein | G39: =IF($E$5=rd,IF($E$7>=600,'Engine Emission Factors'!$C22,'Engine Emission Factors'!$B22),IF($E$5=rg,'Engine Emission Factors'!$E22,IF($E$5=tng,'Engine Emission Factors'!$D22,IF($E$5=ngr,'Engine Emission Factors'!$F22,IF($E$5=ngl,'Engine Emission Factors'!$G22,IF($E$5=ng2l,'Engine Emission Factors'!$H22,IF($E$5=select,'Engine Emission Factors'!$I22))))))) -> 0 | H39: 0 | I39: =IF(OR($F$8='Data Validation'!$B$39,'Data Validation'!$B$40),(($D$18*$E$18*$G39)/2000),IF($F$8='Data Validation'!$B$38,(($E$18*$G39)/2000),0)) -> 0
B40: Benzene | G40: =IF($E$5=rd,IF($E$7>=600,'Engine Emission Factors'!$C23,'Engine Emission Factors'!$B23),IF($E$5=rg,'Engine Emission Factors'!$E23,IF($E$5=tng,'Engine Emission Factors'!$D23,IF($E$5=ngr,'Engine Emission Factors'!$F23,IF($E$5=ngl,'Engine Emission Factors'!$G23,IF($E$5=ng2l,'Engine Emission Factors'!$H23,IF($E$5=select,'Engine Emission Factors'!$I23))))))) -> 0 | H40: 0 | I40: =IF(OR($F$8='Data Validation'!$B$39,'Data Validation'!$B$40),(($D$18*$E$18*$G40)/2000),IF($F$8='Data Validation'!$B$38,(($E$18*$G40)/2000),0)) -> 0
B41: Biphenyl | G41: =IF($E$5=rd,IF($E$7>=600,'Engine Emission Factors'!$C24,'Engine Emission Factors'!$B24),IF($E$5=rg,'Engine Emission Factors'!$E24,IF($E$5=tng,'Engine Emission Factors'!$D24,IF($E$5=ngr,'Engine Emission Factors'!$F24,IF($E$5=ngl,'Engine Emission Factors'!$G24,IF($E$5=ng2l,'Engine Emission Factors'!$H24,IF($E$5=select,'Engine Emission Factors'!$I24))))))) -> 0 | H41: 0 | I41: =IF(OR($F$8='Data Validation'!$B$39,'Data Validation'!$B$40),(($D$18*$E$18*$G41)/2000),IF($F$8='Data Validation'!$B$38,(($E$18*$G41)/2000),0)) -> 0
B42: Carbon tetrachloride | G42: =IF($E$5=rd,IF($E$7>=600,'Engine Emission Factors'!$C25,'Engine Emission Factors'!$B25),IF($E$5=rg,'Engine Emission Factors'!$E25,IF($E$5=tng,'Engine Emission Factors'!$D25,IF($E$5=ngr,'Engine Emission Factors'!$F25,IF($E$5=ngl,'Engine Emission Factors'!$G25,IF($E$5=ng2l,'Engine Emission Factors'!$H25,IF($E$5=select,'Engine Emission Factors'!$I25))))))) -> 0 | H42: 0 | I42: =IF(OR($F$8='Data Validation'!$B$39,'Data Validation'!$B$40),(($D$18*$E$18*$G42)/2000),IF($F$8='Data Validation'!$B$38,(($E$18*$G42)/2000),0)) -> 0
B43: Chlorobenzene | G43: =IF($E$5=rd,IF($E$7>=600,'Engine Emission Factors'!$C26,'Engine Emission Factors'!$B26),IF($E$5=rg,'Engine Emission Factors'!$E26,IF($E$5=tng,'Engine Emission Factors'!$D26,IF($E$5=ngr,'Engine Emission Factors'!$F26,IF($E$5=ngl,'Engine Emission Factors'!$G26,IF($E$5=ng2l,'Engine Emission Factors'!$H26,IF($E$5=select,'Engine Emission Factors'!$I26))))))) -> 0 | H43: 0 | I43: =IF(OR($F$8='Data Validation'!$B$39,'Data Validation'!$B$40),(($D$18*$E$18*$G43)/2000),IF($F$8='Data Validation'!$B$38,(($E$18*$G43)/2000),0)) -> 0
B44: Chloroform | G44: =IF($E$5=rd,IF($E$7>=600,'Engine Emission Factors'!$C27,'Engine Emission Factors'!$B27),IF($E$5=rg,'Engine Emission Factors'!$E27,IF($E$5=tng,'Engine Emission Factors'!$D27,IF($E$5=ngr,'Engine Emission Factors'!$F27,IF($E$5=ngl,'Engine Emission Factors'!$G27,IF($E$5=ng2l,'Engine Emission Factors'!$H27,IF($E$5=select,'Engine Emission Factors'!$I27))))))) -> 0 | H44: 0 | I44: =IF(OR($F$8='Data Validation'!$B$39,'Data Validation'!$B$40),(($D$18*$E$18*$G44)/2000),IF($F$8='Data Validation'!$B$38,(($E$18*$G44)/2000),0)) -> 0
B45: Ethylbenzene | G45: =IF($E$5=rd,IF($E$7>=600,'Engine Emission Factors'!$C28,'Engine Emission Factors'!$B28),IF($E$5=rg,'Engine Emission Factors'!$E28,IF($E$5=tng,'Engine Emission Factors'!$D28,IF($E$5=ngr,'Engine Emission Factors'!$F28,IF($E$5=ngl,'Engine Emission Factors'!$G28,IF($E$5=ng2l,'Engine Emission Factors'!$H28,IF($E$5=select,'Engine Emission Factors'!$I28))))))) -> 0 | H45: 0 | I45: =IF(OR($F$8='Data Validation'!$B$39,'Data Validation'!$B$40),(($D$18*$E$18*$G45)/2000),IF($F$8='Data Validation'!$B$38,(($E$18*$G45)/2000),0)) -> 0
B46: Ethylene dibromide | G46: =IF($E$5=rd,IF($E$7>=600,'Engine Emission Factors'!$C29,'Engine Emission Factors'!$B29),IF($E$5=rg,'Engine Emission Factors'!$E29,IF($E$5=tng,'Engine Emission Factors'!$D29,IF($E$5=ngr,'Engine Emission Factors'!$F29,IF($E$5=ngl,'Engine Emission Factors'!$G29,IF($E$5=ng2l,'Engine Emission Factors'!$H29,IF($E$5=select,'Engine Emission Factors'!$I29))))))) -> 0 | H46: 0 | I46: =IF(OR($F$8='Data Validation'!$B$39,'Data Validation'!$B$40),(($D$18*$E$18*$G46)/2000),IF($F$8='Data Validation'!$B$38,(($E$18*$G46)/2000),0)) -> 0
B47: Formaldehyde | G47: =IF($E$5=rd,IF($E$7>=600,'Engine Emission Factors'!$C30,'Engine Emission Factors'!$B30),IF($E$5=rg,'Engine Emission Factors'!$E30,IF($E$5=tng,'Engine Emission Factors'!$D30,IF($E$5=ngr,'Engine Emission Factors'!$F30,IF($E$5=ngl,'Engine Emission Factors'!$G30,IF($E$5=ng2l,'Engine Emission Factors'!$H30,IF($E$5=select,'Engine Emission Factors'!$I30))))))) -> 0 | H47: 0 | I47: =IF(OR($F$8='Data Validation'!$B$39,'Data Validation'!$B$40),(($D$18*$E$18*$G47)/2000),IF($F$8='Data Validation'!$B$38,(($E$18*$G47)/2000),0)) -> 0
B48: Hexane | G48: =IF($E$5=rd,IF($E$7>=600,'Engine Emission Factors'!$C31,'Engine Emission Factors'!$B31),IF($E$5=rg,'Engine Emission Factors'!$E31,IF($E$5=tng,'Engine Emission Factors'!$D31,IF($E$5=ngr,'Engine Emission Factors'!$F31,IF($E$5=ngl,'Engine Emission Factors'!$G31,IF($E$5=ng2l,'Engine Emission Factors'!$H31,IF($E$5=select,'Engine Emission Factors'!$I31))))))) -> 0 | H48: 0 | I48: =IF(OR($F$8='Data Validation'!$B$39,'Data Validation'!$B$40),(($D$18*$E$18*$G48)/2000),IF($F$8='Data Validation'!$B$38,(($E$18*$G48)/2000),0)) -> 0
B49: Methanol | G49: =IF($E$5=rd,IF($E$7>=600,'Engine Emission Factors'!$C32,'Engine Emission Factors'!$B32),IF($E$5=rg,'Engine Emission Factors'!$E32,IF($E$5=tng,'Engine Emission Factors'!$D32,IF($E$5=ngr,'Engine Emission Factors'!$F32,IF($E$5=ngl,'Engine Emission Factors'!$G32,IF($E$5=ng2l,'Engine Emission Factors'!$H32,IF($E$5=select,'Engine Emission Factors'!$I32))))))) -> 0 | H49: 0 | I49: =IF(OR($F$8='Data Validation'!$B$39,'Data Validation'!$B$40),(($D$18*$E$18*$G49)/2000),IF($F$8='Data Validation'!$B$38,(($E$18*$G49)/2000),0)) -> 0
B50: Methylene chloride | G50: =IF($E$5=rd,IF($E$7>=600,'Engine Emission Factors'!$C33,'Engine Emission Factors'!$B33),IF($E$5=rg,'Engine Emission Factors'!$E33,IF($E$5=tng,'Engine Emission Factors'!$D33,IF($E$5=ngr,'Engine Emission Factors'!$F33,IF($E$5=ngl,'Engine Emission Factors'!$G33,IF($E$5=ng2l,'Engine Emission Factors'!$H33,IF($E$5=select,'Engine Emission Factors'!$I33))))))) -> 0 | H50: 0 | I50: =IF(OR($F$8='Data Validation'!$B$39,'Data Validation'!$B$40),(($D$18*$E$18*$G50)/2000),IF($F$8='Data Validation'!$B$38,(($E$18*$G50)/2000),0)) -> 0
B51: Naphthalene | G51: =IF($E$5=rd,IF($E$7>=600,'Engine Emission Factors'!$C34,'Engine Emission Factors'!$B34),IF($E$5=rg,'Engine Emission Factors'!$E34,IF($E$5=tng,'Engine Emission Factors'!$D34,IF($E$5=ngr,'Engine Emission Factors'!$F34,IF($E$5=ngl,'Engine Emission Factors'!$G34,IF($E$5=ng2l,'Engine Emission Factors'!$H34,IF($E$5=select,'Engine Emission Factors'!$I34))))))) -> 0 | H51: 0 | I51: =IF(OR($F$8='Data Validation'!$B$39,'Data Validation'!$B$40),(($D$18*$E$18*$G51)/2000),IF($F$8='Data Validation'!$B$38,(($E$18*$G51)/2000),0)) -> 0
B52: PAH | G52: =IF($E$5=rd,IF($E$7>=600,'Engine Emission Factors'!$C35,'Engine Emission Factors'!$B35),IF($E$5=rg,'Engine Emission Factors'!$E35,IF($E$5=tng,'Engine Emission Factors'!$D35,IF($E$5=ngr,'Engine Emission Factors'!$F35,IF($E$5=ngl,'Engine Emission Factors'!$G35,IF($E$5=ng2l,'Engine Emission Factors'!$H35,IF($E$5=select,'Engine Emission Factors'!$I35))))))) -> 0 | H52: 0 | I52: =IF(OR($F$8='Data Validation'!$B$39,'Data Validation'!$B$40),(($D$18*$E$18*$G52)/2000),IF($F$8='Data Validation'!$B$38,(($E$18*$G52)/2000),0)) -> 0
B53: Phenol | G53: =IF($E$5=rd,IF($E$7>=600,'Engine Emission Factors'!$C36,'Engine Emission Factors'!$B36),IF($E$5=rg,'Engine Emission Factors'!$E36,IF($E$5=tng,'Engine Emission Factors'!$D36,IF($E$5=ngr,'Engine Emission Factors'!$F36,IF($E$5=ngl,'Engine Emission Factors'!$G36,IF($E$5=ng2l,'Engine Emission Factors'!$H36,IF($E$5=select,'Engine Emission Factors'!$I36))))))) -> 0 | H53: 0 | I53: =IF(OR($F$8='Data Validation'!$B$39,'Data Validation'!$B$40),(($D$18*$E$18*$G53)/2000),IF($F$8='Data Validation'!$B$38,(($E$18*$G53)/2000),0)) -> 0
B54: Styrene | G54: =IF($E$5=rd,IF($E$7>=600,'Engine Emission Factors'!$C37,'Engine Emission Factors'!$B37),IF($E$5=rg,'Engine Emission Factors'!$E37,IF($E$5=tng,'Engine Emission Factors'!$D37,IF($E$5=ngr,'Engine Emission Factors'!$F37,IF($E$5=ngl,'Engine Emission Factors'!$G37,IF($E$5=ng2l,'Engine Emission Factors'!$H37,IF($E$5=select,'Engine Emission Factors'!$I37))))))) -> 0 | H54: 0 | I54: =IF(OR($F$8='Data Validation'!$B$39,'Data Validation'!$B$40),(($D$18*$E$18*$G54)/2000),IF($F$8='Data Validation'!$B$38,(($E$18*$G54)/2000),0)) -> 0
B55: Tetrachloroethane | G55: =IF($E$5=rd,IF($E$7>=600,'Engine Emission Factors'!$C38,'Engine Emission Factors'!$B38),IF($E$5=rg,'Engine Emission Factors'!$E38,IF($E$5=tng,'Engine Emission Factors'!$D38,IF($E$5=ngr,'Engine Emission Factors'!$F38,IF($E$5=ngl,'Engine Emission Factors'!$G38,IF($E$5=ng2l,'Engine Emission Factors'!$H38,IF($E$5=select,'Engine Emission Factors'!$I38))))))) -> 0 | H55: 0 | I55: =IF(OR($F$8='Data Validation'!$B$39,'Data Validation'!$B$40),(($D$18*$E$18*$G55)/2000),IF($F$8='Data Validation'!$B$38,(($E$18*$G55)/2000),0)) -> 0
B56: Toluene | G56: =IF($E$5=rd,IF($E$7>=600,'Engine Emission Factors'!$C39,'Engine Emission Factors'!$B39),IF($E$5=rg,'Engine Emission Factors'!$E39,IF($E$5=tng,'Engine Emission Factors'!$D39,IF($E$5=ngr,'Engine Emission Factors'!$F39,IF($E$5=ngl,'Engine Emission Factors'!$G39,IF($E$5=ng2l,'Engine Emission Factors'!$H39,IF($E$5=select,'Engine Emission Factors'!$I39))))))) -> 0 | H56: 0 | I56: =IF(OR($F$8='Data Validation'!$B$39,'Data Validation'!$B$40),(($D$18*$E$18*$G56)/2000),IF($F$8='Data Validation'!$B$38,(($E$18*$G56)/2000),0)) -> 0
B57: Vinyl chloride | G57: =IF($E$5=rd,IF($E$7>=600,'Engine Emission Factors'!$C40,'Engine Emission Factors'!$B40),IF($E$5=rg,'Engine Emission Factors'!$E40,IF($E$5=tng,'Engine Emission Factors'!$D40,IF($E$5=ngr,'Engine Emission Factors'!$F40,IF($E$5=ngl,'Engine Emission Factors'!$G40,IF($E$5=ng2l,'Engine Emission Factors'!$H40,IF($E$5=select,'Engine Emission Factors'!$I40))))))) -> 0 | H57: 0 | I57: =IF(OR($F$8='Data Validation'!$B$39,'Data Validation'!$B$40),(($D$18*$E$18*$G57)/2000),IF($F$8='Data Validation'!$B$38,(($E$18*$G57)/2000),0)) -> 0
B58: Xylene | G58: =IF($E$5=rd,IF($E$7>=600,'Engine Emission Factors'!$C41,'Engine Emission Factors'!$B41),IF($E$5=rg,'Engine Emission Factors'!$E41,IF($E$5=tng,'Engine Emission Factors'!$D41,IF($E$5=ngr,'Engine Emission Factors'!$F41,IF($E$5=ngl,'Engine Emission Factors'!$G41,IF($E$5=ng2l,'Engine Emission Factors'!$H41,IF($E$5=select,'Engine Emission Factors'!$I41))))))) -> 0 | H58: 0 | I58: =IF(OR($F$8='Data Validation'!$B$39,'Data Validation'!$B$40),(($D$18*$E$18*$G58)/2000),IF($F$8='Data Validation'!$B$38,(($E$18*$G58)/2000),0)) -> 0
F59: HAP total | H59: =SUM(H34:H58) -> 0 | I59: =SUM(I34:I58) -> 0
B60: 1 Global Warming Potential from 40 CFR Part 98, Subpart A, Table A-1 | F60: 4 See information on insignficant activities at Minn. R. 7007.1300 and on the 'Permits & Requirements' tab.
B61: 2 CO2e = carbon dioxide equivalents
B62: 3 Routine = 24 hr/day * 365 day/yr or 8760 hr/yr; Emergency = 500 hr/yr | F62: Minn. R. 7007.1300

Sheet Engine 3
B1: =Instructions!O4 -> p-sbap5-25 • 9/3/19
B2: Air emissions from internal combustion engines
B3: Reciprocating internal combustion engine (RICE)
B5: Engine and fuel type | E5: Choose one | G5: Facility identifier for engine | I5: Engine 3
B6: Engine use | E6: Choose one | F6: If emergency engine is used for peak-shaving or contracted for >15 hr/yr, choose 'Routine.'
B7: =IF(E5='Data Validation'!A6," ",IF(OR(E5=rd,E5=rg),"Rated mechanical output",IF(OR(E5=ngl,OR(E5=ngr,OR(E5=tng,E5=ng2l))),"Rated fuel input"," "))) ->  | E7: 0 | F7: =IF(B7=" "," ",IF(B7="Rated mechanical output",'Data Validation'!A23,IF(B7="Rated fuel input",'Data Validation'!A24))) -> 
B8: Choose one to calculate actual emissions | E8: 0 | F8: =IF(B8='Data Validation'!B32," ",IF(B8='Data Validation'!B33,'Data Validation'!B38,IF(AND(B8='Data Validation'!B34,OR(E5=tng,OR(E5=ngl,OR(E5=ngr,OR(E5=ng2l))))),'Data Validation'!B39,IF(AND(B8='Data Validation'!B34,OR(E5=rd,OR(E5=rg))),'Data Validation'!B40," ")))) -> 
B9: =IF(F7=" "," ",IF(F7='Data Validation'!A23,'Data Validation'!A28,IF(F7='Data Validation'!A24,'Data Validation'!A29))) ->  | E9: =IF(E5='Data Validation'!A6," ",IF(E5=rd,'Engine Emission Factors'!F48,IF(E5=rg,'Engine Emission Factors'!F49,IF(OR(E5=ngl,OR(E5=ngr,OR(E5=tng,E5=ng2l))),'Engine Emission Factors'!G47," ")))) ->  | F9: =IF(B9=" "," ",IF(B9='Data Validation'!A28,"(Btu/HP-hr)",IF(B9='Data Validation'!A29,"Btu/scf"))) -> 
B10: =IF(E5='Data Validation'!A6," ",IF(E5=rd,"Heat value of fuel",IF(E5=rg,"Heat value of fuel"," "))) ->  | D10: Heat value of fuel | E10: =IF(E5=rd,'Engine Emission Factors'!H48,IF(E5=rg,'Engine Emission Factors'!H49," ")) ->  | F10: =IF(E5='Data Validation'!A6," ",IF(E5=rd,"(Btu/gal)",IF(E5=rg,"(Btu/gal)"," "))) -> 
B11: Sulfur content of the fuel | E11: =IF(AND(E5=rd,E7>=600),"0.0015",IF(E5=tng,"0.00065","NA")) -> NA | F11: %
B13: Internal combustion engine potential and actual emissions
C14: a | D14: b | E14: c | F14: d | G14: e
B15: Pollutant | C15: GWP1 | D15: Engine Rated Output | E15: Actual Annual Throughput | F15: Potential Annual Hours3 | G15: Emission Factor | H15: Potential Emissions | I15: Actual Emissions | K15: Insignificant Activity4 Limits
D17: (MMBtu/hr) | E17: (MMBtu/yr) | F17: (hr/yr) | G17: (lbs/MMBtu) | H17: (ton/yr) | I17: (tons/yr) | K17: (tons/yr)
D18: =IF(E5=select,0,IF(OR(E5=rd,E5=rg),(E7*E9/10^6),IF(OR(E5=ngl,OR(E5=ngr,OR(E5=tng,E5=ng2l))),(E7*E9/(10^6))))) -> 0 | E18: =IF(F8='Data Validation'!B39,E8,IF(AND(F8='Data Validation'!B40,E5=rd),(('Engine Emission Factors'!H48*E8)/1000000),IF(AND(F8='Data Validation'!B40,E5=rg),(('Engine Emission Factors'!H49*E8)/1000000),IF(F8='Data Validation'!B38,(E8*D18),IF(F8=" ",0))))) -> 0 | F18: =IF($E$6=so,0,IF($E$6=Routine,8760,IF($E$6=Emer,500))) -> 0 | G18: by pollutant | H18: (b * d * e) / 2000 | I18: (b * c * e) / 2000
B19: Criteria Air Pollutants | I19: see engine emission factors tab | J19: =SUM(J20:J26) -> 6
B20: PM | G20: =IF($E$5=rd,IF($E$7>=600,'Engine Emission Factors'!$C5,'Engine Emission Factors'!$B5),IF($E$5=rg,'Engine Emission Factors'!$E5,IF($E$5=tng,'Engine Emission Factors'!$D5,IF($E$5=ngr,'Engine Emission Factors'!$F5,IF($E$5=ngl,'Engine Emission Factors'!$G5,IF($E$5=ng2l,'Engine Emission Factors'!$H5,IF($E$5=select,'Engine Emission Factors'!$I6))))))) -> 0 | H20: =$D$18*$F$18*$G20/2000 -> 0 | I20: =IF(OR($F$8='Data Validation'!$B$39,'Data Validation'!$B$40),(($D$18*$E$18*$G20)/2000),IF($F$8='Data Validation'!$B$38,(($E$18*$G20)/2000),0)) -> 0 | J20: =IF(K20>H20,1,0) -> 1 | K20: 1
B21: PM10 | G21: =IF($E$5=rd,IF($E$7>=600,'Engine Emission Factors'!$C6,'Engine Emission Factors'!$B6),IF($E$5=rg,'Engine Emission Factors'!$E6,IF($E$5=tng,'Engine Emission Factors'!$D6,IF($E$5=ngr,'Engine Emission Factors'!$F6,IF($E$5=ngl,'Engine Emission Factors'!$G6,IF($E$5=ng2l,'Engine Emission Factors'!$H6,IF($E$5=select,'Engine Emission Factors'!$I7))))))) -> 0 | H21: =$D$18*$F$18*$G21/2000 -> 0 | I21: =IF(OR($F$8='Data Validation'!$B$39,'Data Validation'!$B$40),(($D$18*$E$18*$G21)/2000),IF($F$8='Data Validation'!$B$38,(($E$18*$G21)/2000),0)) -> 0 | J21: =IF(K21>H21,1,0) -> 1 | K21: 1
B22: PM2.5 | G22: =IF($E$5=rd,IF($E$7>=600,'Engine Emission Factors'!$C7,'Engine Emission Factors'!$B7),IF($E$5=rg,'Engine Emission Factors'!$E7,IF($E$5=tng,'Engine Emission Factors'!$D7,IF($E$5=ngr,'Engine Emission Factors'!$F7,IF($E$5=ngl,'Engine Emission Factors'!$G7,IF($E$5=ng2l,'Engine Emission Factors'!$H7,IF($E$5=select,'Engine Emission Factors'!$I8))))))) -> 0 | H22: 0 | I22: =IF(OR($F$8='Data Validation'!$B$39,'Data Validation'!$B$40),(($D$18*$E$18*$G22)/2000),IF($F$8='Data Validation'!$B$38,(($E$18*$G22)/2000),0)) -> 0
B23: SOx | G23: =IF($E$5=rd,IF($E$7>=600,'Engine Emission Factors'!$C8*E11,'Engine Emission Factors'!$B8),IF($E$5=rg,'Engine Emission Factors'!$E8,IF($E$5=tng,'Engine Emission Factors'!$D8*E11,IF($E$5=ngr,'Engine Emission Factors'!$F8,IF($E$5=ngl,'Engine Emission Factors'!$G8,IF($E$5=ng2l,'Engine Emission Factors'!$H8,IF($E$5=select,'Engine Emission Factors'!$I9))))))) -> 0 | H23: 0 | I23: =IF(OR($F$8='Data Validation'!$B$39,'Data Validation'!$B$40),(($D$18*$E$18*$G23)/2000),IF($F$8='Data Validation'!$B$38,(($E$18*$G23)/2000),0)) -> 0 | J23: 1 | K23: 1
B24: NOx | G24: =IF($E$5=rd,IF($E$7>=600,'Engine Emission Factors'!$C9,'Engine Emission Factors'!$B9),IF($E$5=rg,'Engine Emission Factors'!$E9,IF($E$5=tng,'Engine Emission Factors'!$D9,IF($E$5=ngr,'Engine Emission Factors'!$F9,IF($E$5=ngl,'Engine Emission Factors'!$G9,IF($E$5=ng2l,'Engine Emission Factors'!$H9,IF($E$5=select,'Engine Emission Factors'!$I10))))))) -> 0 | H24: 0 | I24: =IF(OR($F$8='Data Validation'!$B$39,'Data Validation'!$B$40),(($D$18*$E$18*$G24)/2000),IF($F$8='Data Validation'!$B$38,(($E$18*$G24)/2000),0)) -> 0 | J24: 1 | K24: 1
B25: VOC | G25: =IF($E$5=rd,IF($E$7>=600,'Engine Emission Factors'!$C10,'Engine Emission Factors'!$B10),IF($E$5=rg,'Engine Emission Factors'!$E10,IF($E$5=tng,'Engine Emission Factors'!$D10,IF($E$5=ngr,'Engine Emission Factors'!$F10,IF($E$5=ngl,'Engine Emission Factors'!$G10,IF($E$5=ng2l,'Engine Emission Factors'!$H10,IF($E$5=select,'Engine Emission Factors'!$I11))))))) -> 0 | H25: 0 | I25: =IF(OR($F$8='Data Validation'!$B$39,'Data Validation'!$B$40),(($D$18*$E$18*$G25)/2000),IF($F$8='Data Validation'!$B$38,(($E$18*$G25)/2000),0)) -> 0 | J25: 1 | K25: 1
B26: CO | G26: =IF($E$5=rd,IF($E$7>=600,'Engine Emission Factors'!$C11,'Engine Emission Factors'!$B11),IF($E$5=rg,'Engine Emission Factors'!$E11,IF($E$5=tng,'Engine Emission Factors'!$D11,IF($E$5=ngr,'Engine Emission Factors'!$F11,IF($E$5=ngl,'Engine Emission Factors'!$G11,IF($E$5=ng2l,'Engine Emission Factors'!$H11,IF($E$5=select,'Engine Emission Factors'!$I12))))))) -> 0 | H26: 0 | I26: =IF(OR($F$8='Data Validation'!$B$39,'Data Validation'!$B$40),(($D$18*$E$18*$G26)/2000),IF($F$8='Data Validation'!$B$38,(($E$18*$G26)/2000),0)) -> 0 | J26: 1 | K26: 2
B27: Lead | G27: n/a | J27: 0
B28: Greenhouse Gas Emissions | I28: Source: 40 CFR 98, Subp. C, Table C-1 and C-2 | J28: 0
B29: CO2 2 | C29: 1 | G29: =IF($E$5=rd,IF($E$7>=600,'Engine Emission Factors'!$C13,'Engine Emission Factors'!$B13),IF($E$5=rg,'Engine Emission Factors'!$E13,IF($E$5=tng,'Engine Emission Factors'!$D13,IF($E$5=ngr,'Engine Emission Factors'!$F13,IF($E$5=ngl,'Engine Emission Factors'!$G13,IF($E$5=ng2l,'Engine Emission Factors'!$H13,IF($E$5=select,'Engine Emission Factors'!$I13))))))) -> 0 | H29: =$D$18*$F$18*$G29/2000 -> 0 | I29: =IF(OR($F$8='Data Validation'!$B$39,'Data Validation'!$B$40),(($D$18*$E$18*$G29)/2000),IF($F$8='Data Validation'!$B$38,(($E$18*$G29)/2000),0)) -> 0 | J29: 0
B30: CH4 2 | C30: 25 | G30: =IF($E$5=rd,IF($E$7>=600,'Engine Emission Factors'!$C14,'Engine Emission Factors'!$B14),IF($E$5=rg,'Engine Emission Factors'!$E14,IF($E$5=tng,'Engine Emission Factors'!$D14,IF($E$5=ngr,'Engine Emission Factors'!$F14,IF($E$5=ngl,'Engine Emission Factors'!$G14,IF($E$5=ng2l,'Engine Emission Factors'!$H14,IF($E$5=select,'Engine Emission Factors'!$I14))))))) -> 0 | H30: =$D$18*$F$18*$G30/2000 -> 0 | I30: =IF(OR($F$8='Data Validation'!$B$39,'Data Validation'!$B$40),(($D$18*$E$18*$G30)/2000),IF($F$8='Data Validation'!$B$38,(($E$18*$G30)/2000),0)) -> 0 | J30: 0
B31: N2O 2 | C31: 298 | G31: =IF($E$5=rd,IF($E$7>=600,'Engine Emission Factors'!$C15,'Engine Emission Factors'!$B15),IF($E$5=rg,'Engine Emission Factors'!$E15,IF($E$5=tng,'Engine Emission Factors'!$D15,IF($E$5=ngr,'Engine Emission Factors'!$F15,IF($E$5=ngl,'Engine Emission Factors'!$G15,IF($E$5=ng2l,'Engine Emission Factors'!$H15,IF($E$5=select,'Engine Emission Factors'!$I15))))))) -> 0 | H31: =$D$18*$F$18*$G31/2000 -> 0 | I31: =IF(OR($F$8='Data Validation'!$B$39,'Data Validation'!$B$40),(($D$18*$E$18*$G31)/2000),IF($F$8='Data Validation'!$B$38,(($E$18*$G31)/2000),0)) -> 0 | J31: 0
F32: GHG total (CO2e) 2 | H32: =(C29*H29)+(C30*H30)+(C31*H31) -> 0 | I32: =(C29*I29)+(C30*I30)+(C31*I31) -> 0 | J32: 1 | K32: 1000
B33: Hazardous Air Pollutants | G33: see engine emission factors tab
B34: 1,1,2,2-tetrachloroethane | G34: =IF($E$5=rd,IF($E$7>=600,'Engine Emission Factors'!$C17,'Engine Emission Factors'!$B17),IF($E$5=rg,'Engine Emission Factors'!$E17,IF($E$5=tng,'Engine Emission Factors'!$D17,IF($E$5=ngr,'Engine Emission Factors'!$F17,IF($E$5=ngl,'Engine Emission Factors'!$G17,IF($E$5=ng2l,'Engine Emission Factors'!$H17,IF($E$5=select,'Engine Emission Factors'!$I17))))))) -> 0 | H34: =$D$18*$F$18*$G34/2000 -> 0 | I34: =IF(OR($F$8='Data Validation'!$B$39,'Data Validation'!$B$40),(($D$18*$E$18*$G34)/2000),IF($F$8='Data Validation'!$B$38,(($E$18*$G34)/2000),0)) -> 0
B35: 1,1,2-trichloroethane | G35: =IF($E$5=rd,IF($E$7>=600,'Engine Emission Factors'!$C18,'Engine Emission Factors'!$B18),IF($E$5=rg,'Engine Emission Factors'!$E18,IF($E$5=tng,'Engine Emission Factors'!$D18,IF($E$5=ngr,'Engine Emission Factors'!$F18,IF($E$5=ngl,'Engine Emission Factors'!$G18,IF($E$5=ng2l,'Engine Emission Factors'!$H18,IF($E$5=select,'Engine Emission Factors'!$I18))))))) -> 0 | H35: 0 | I35: =IF(OR($F$8='Data Validation'!$B$39,'Data Validation'!$B$40),(($D$18*$E$18*$G35)/2000),IF($F$8='Data Validation'!$B$38,(($E$18*$G35)/2000),0)) -> 0
B36: 1,3-butadiene | G36: =IF($E$5=rd,IF($E$7>=600,'Engine Emission Factors'!$C19,'Engine Emission Factors'!$B19),IF($E$5=rg,'Engine Emission Factors'!$E19,IF($E$5=tng,'Engine Emission Factors'!$D19,IF($E$5=ngr,'Engine Emission Factors'!$F19,IF($E$5=ngl,'Engine Emission Factors'!$G19,IF($E$5=ng2l,'Engine Emission Factors'!$H19,IF($E$5=select,'Engine Emission Factors'!$I19))))))) -> 0 | H36: 0 | I36: =IF(OR($F$8='Data Validation'!$B$39,'Data Validation'!$B$40),(($D$18*$E$18*$G36)/2000),IF($F$8='Data Validation'!$B$38,(($E$18*$G36)/2000),0)) -> 0
B37: 1,3-dichloropropene | G37: =IF($E$5=rd,IF($E$7>=600,'Engine Emission Factors'!$C20,'Engine Emission Factors'!$B20),IF($E$5=rg,'Engine Emission Factors'!$E20,IF($E$5=tng,'Engine Emission Factors'!$D20,IF($E$5=ngr,'Engine Emission Factors'!$F20,IF($E$5=ngl,'Engine Emission Factors'!$G20,IF($E$5=ng2l,'Engine Emission Factors'!$H20,IF($E$5=select,'Engine Emission Factors'!$I20))))))) -> 0 | H37: 0 | I37: =IF(OR($F$8='Data Validation'!$B$39,'Data Validation'!$B$40),(($D$18*$E$18*$G37)/2000),IF($F$8='Data Validation'!$B$38,(($E$18*$G37)/2000),0)) -> 0
B38: Acetaldehyde | G38: =IF($E$5=rd,IF($E$7>=600,'Engine Emission Factors'!$C21,'Engine Emission Factors'!$B21),IF($E$5=rg,'Engine Emission Factors'!$E21,IF($E$5=tng,'Engine Emission Factors'!$D21,IF($E$5=ngr,'Engine Emission Factors'!$F21,IF($E$5=ngl,'Engine Emission Factors'!$G21,IF($E$5=ng2l,'Engine Emission Factors'!$H21,IF($E$5=select,'Engine Emission Factors'!$I21))))))) -> 0 | H38: 0 | I38: =IF(OR($F$8='Data Validation'!$B$39,'Data Validation'!$B$40),(($D$18*$E$18*$G38)/2000),IF($F$8='Data Validation'!$B$38,(($E$18*$G38)/2000),0)) -> 0
B39: Acrolein | G39: =IF($E$5=rd,IF($E$7>=600,'Engine Emission Factors'!$C22,'Engine Emission Factors'!$B22),IF($E$5=rg,'Engine Emission Factors'!$E22,IF($E$5=tng,'Engine Emission Factors'!$D22,IF($E$5=ngr,'Engine Emission Factors'!$F22,IF($E$5=ngl,'Engine Emission Factors'!$G22,IF($E$5=ng2l,'Engine Emission Factors'!$H22,IF($E$5=select,'Engine Emission Factors'!$I22))))))) -> 0 | H39: 0 | I39: =IF(OR($F$8='Data Validation'!$B$39,'Data Validation'!$B$40),(($D$18*$E$18*$G39)/2000),IF($F$8='Data Validation'!$B$38,(($E$18*$G39)/2000),0)) -> 0
B40: Benzene | G40: =IF($E$5=rd,IF($E$7>=600,'Engine Emission Factors'!$C23,'Engine Emission Factors'!$B23),IF($E$5=rg,'Engine Emission Factors'!$E23,IF($E$5=tng,'Engine Emission Factors'!$D23,IF($E$5=ngr,'Engine Emission Factors'!$F23,IF($E$5=ngl,'Engine Emission Factors'!$G23,IF($E$5=ng2l,'Engine Emission Factors'!$H23,IF($E$5=select,'Engine Emission Factors'!$I23))))))) -> 0 | H40: 0 | I40: =IF(OR($F$8='Data Validation'!$B$39,'Data Validation'!$B$40),(($D$18*$E$18*$G40)/2000),IF($F$8='Data Validation'!$B$38,(($E$18*$G40)/2000),0)) -> 0
B41: Biphenyl | G41: =IF($E$5=rd,IF($E$7>=600,'Engine Emission Factors'!$C24,'Engine Emission Factors'!$B24),IF($E$5=rg,'Engine Emission Factors'!$E24,IF($E$5=tng,'Engine Emission Factors'!$D24,IF($E$5=ngr,'Engine Emission Factors'!$F24,IF($E$5=ngl,'Engine Emission Factors'!$G24,IF($E$5=ng2l,'Engine Emission Factors'!$H24,IF($E$5=select,'Engine Emission Factors'!$I24))))))) -> 0 | H41: 0 | I41: =IF(OR($F$8='Data Validation'!$B$39,'Data Validation'!$B$40),(($D$18*$E$18*$G41)/2000),IF($F$8='Data Validation'!$B$38,(($E$18*$G41)/2000),0)) -> 0
B42: Carbon tetrachloride | G42: =IF($E$5=rd,IF($E$7>=600,'Engine Emission Factors'!$C25,'Engine Emission Factors'!$B25),IF($E$5=rg,'Engine Emission Factors'!$E25,IF($E$5=tng,'Engine Emission Factors'!$D25,IF($E$5=ngr,'Engine Emission Factors'!$F25,IF($E$5=ngl,'Engine Emission Factors'!$G25,IF($E$5=ng2l,'Engine Emission Factors'!$H25,IF($E$5=select,'Engine Emission Factors'!$I25))))))) -> 0 | H42: 0 | I42: =IF(OR($F$8='Data Validation'!$B$39,'Data Validation'!$B$40),(($D$18*$E$18*$G42)/2000),IF($F$8='Data Validation'!$B$38,(($E$18*$G42)/2000),0)) -> 0
B43: Chlorobenzene | G43: =IF($E$5=rd,IF($E$7>=600,'Engine Emission Factors'!$C26,'Engine Emission Factors'!$B26),IF($E$5=rg,'Engine Emission Factors'!$E26,IF($E$5=tng,'Engine Emission Factors'!$D26,IF($E$5=ngr,'Engine Emission Factors'!$F26,IF($E$5=ngl,'Engine Emission Factors'!$G26,IF($E$5=ng2l,'Engine Emission Factors'!$H26,IF($E$5=select,'Engine Emission Factors'!$I26))))))) -> 0 | H43: 0 | I43: =IF(OR($F$8='Data Validation'!$B$39,'Data Validation'!$B$40),(($D$18*$E$18*$G43)/2000),IF($F$8='Data Validation'!$B$38,(($E$18*$G43)/2000),0)) -> 0
B44: Chloroform | G44: =IF($E$5=rd,IF($E$7>=600,'Engine Emission Factors'!$C27,'Engine Emission Factors'!$B27),IF($E$5=rg,'Engine Emission Factors'!$E27,IF($E$5=tng,'Engine Emission Factors'!$D27,IF($E$5=ngr,'Engine Emission Factors'!$F27,IF($E$5=ngl,'Engine Emission Factors'!$G27,IF($E$5=ng2l,'Engine Emission Factors'!$H27,IF($E$5=select,'Engine Emission Factors'!$I27))))))) -> 0 | H44: 0 | I44: =IF(OR($F$8='Data Validation'!$B$39,'Data Validation'!$B$40),(($D$18*$E$18*$G44)/2000),IF($F$8='Data Validation'!$B$38,(($E$18*$G44)/2000),0)) -> 0
B45: Ethylbenzene | G45: =IF($E$5=rd,IF($E$7>=600,'Engine Emission Factors'!$C28,'Engine Emission Factors'!$B28),IF($E$5=rg,'Engine Emission Factors'!$E28,IF($E$5=tng,'Engine Emission Factors'!$D28,IF($E$5=ngr,'Engine Emission Factors'!$F28,IF($E$5=ngl,'Engine Emission Factors'!$G28,IF($E$5=ng2l,'Engine Emission Factors'!$H28,IF($E$5=select,'Engine Emission Factors'!$I28))))))) -> 0 | H45: 0 | I45: =IF(OR($F$8='Data Validation'!$B$39,'Data Validation'!$B$40),(($D$18*$E$18*$G45)/2000),IF($F$8='Data Validation'!$B$38,(($E$18*$G45)/2000),0)) -> 0
B46: Ethylene dibromide | G46: =IF($E$5=rd,IF($E$7>=600,'Engine Emission Factors'!$C29,'Engine Emission Factors'!$B29),IF($E$5=rg,'Engine Emission Factors'!$E29,IF($E$5=tng,'Engine Emission Factors'!$D29,IF($E$5=ngr,'Engine Emission Factors'!$F29,IF($E$5=ngl,'Engine Emission Factors'!$G29,IF($E$5=ng2l,'Engine Emission Factors'!$H29,IF($E$5=select,'Engine Emission Factors'!$I29))))))) -> 0 | H46: 0 | I46: =IF(OR($F$8='Data Validation'!$B$39,'Data Validation'!$B$40),(($D$18*$E$18*$G46)/2000),IF($F$8='Data Validation'!$B$38,(($E$18*$G46)/2000),0)) -> 0
B47: Formaldehyde | G47: =IF($E$5=rd,IF($E$7>=600,'Engine Emission Factors'!$C30,'Engine Emission Factors'!$B30),IF($E$5=rg,'Engine Emission Factors'!$E30,IF($E$5=tng,'Engine Emission Factors'!$D30,IF($E$5=ngr,'Engine Emission Factors'!$F30,IF($E$5=ngl,'Engine Emission Factors'!$G30,IF($E$5=ng2l,'Engine Emission Factors'!$H30,IF($E$5=select,'Engine Emission Factors'!$I30))))))) -> 0 | H47: 0 | I47: =IF(OR($F$8='Data Validation'!$B$39,'Data Validation'!$B$40),(($D$18*$E$18*$G47)/2000),IF($F$8='Data Validation'!$B$38,(($E$18*$G47)/2000),0)) -> 0
B48: Hexane | G48: =IF($E$5=rd,IF($E$7>=600,'Engine Emission Factors'!$C31,'Engine Emission Factors'!$B31),IF($E$5=rg,'Engine Emission Factors'!$E31,IF($E$5=tng,'Engine Emission Factors'!$D31,IF($E$5=ngr,'Engine Emission Factors'!$F31,IF($E$5=ngl,'Engine Emission Factors'!$G31,IF($E$5=ng2l,'Engine Emission Factors'!$H31,IF($E$5=select,'Engine Emission Factors'!$I31))))))) -> 0 | H48: 0 | I48: =IF(OR($F$8='Data Validation'!$B$39,'Data Validation'!$B$40),(($D$18*$E$18*$G48)/2000),IF($F$8='Data Validation'!$B$38,(($E$18*$G48)/2000),0)) -> 0
B49: Methanol | G49: =IF($E$5=rd,IF($E$7>=600,'Engine Emission Factors'!$C32,'Engine Emission Factors'!$B32),IF($E$5=rg,'Engine Emission Factors'!$E32,IF($E$5=tng,'Engine Emission Factors'!$D32,IF($E$5=ngr,'Engine Emission Factors'!$F32,IF($E$5=ngl,'Engine Emission Factors'!$G32,IF($E$5=ng2l,'Engine Emission Factors'!$H32,IF($E$5=select,'Engine Emission Factors'!$I32))))))) -> 0 | H49: 0 | I49: =IF(OR($F$8='Data Validation'!$B$39,'Data Validation'!$B$40),(($D$18*$E$18*$G49)/2000),IF($F$8='Data Validation'!$B$38,(($E$18*$G49)/2000),0)) -> 0
B50: Methylene chloride | G50: =IF($E$5=rd,IF($E$7>=600,'Engine Emission Factors'!$C33,'Engine Emission Factors'!$B33),IF($E$5=rg,'Engine Emission Factors'!$E33,IF($E$5=tng,'Engine Emission Factors'!$D33,IF($E$5=ngr,'Engine Emission Factors'!$F33,IF($E$5=ngl,'Engine Emission Factors'!$G33,IF($E$5=ng2l,'Engine Emission Factors'!$H33,IF($E$5=select,'Engine Emission Factors'!$I33))))))) -> 0 | H50: 0 | I50: =IF(OR($F$8='Data Validation'!$B$39,'Data Validation'!$B$40),(($D$18*$E$18*$G50)/2000),IF($F$8='Data Validation'!$B$38,(($E$18*$G50)/2000),0)) -> 0
B51: Naphthalene | G51: =IF($E$5=rd,IF($E$7>=600,'Engine Emission Factors'!$C34,'Engine Emission Factors'!$B34),IF($E$5=rg,'Engine Emission Factors'!$E34,IF($E$5=tng,'Engine Emission Factors'!$D34,IF($E$5=ngr,'Engine Emission Factors'!$F34,IF($E$5=ngl,'Engine Emission Factors'!$G34,IF($E$5=ng2l,'Engine Emission Factors'!$H34,IF($E$5=select,'Engine Emission Factors'!$I34))))))) -> 0 | H51: 0 | I51: =IF(OR($F$8='Data Validation'!$B$39,'Data Validation'!$B$40),(($D$18*$E$18*$G51)/2000),IF($F$8='Data Validation'!$B$38,(($E$18*$G51)/2000),0)) -> 0
B52: PAH | G52: =IF($E$5=rd,IF($E$7>=600,'Engine Emission Factors'!$C35,'Engine Emission Factors'!$B35),IF($E$5=rg,'Engine Emission Factors'!$E35,IF($E$5=tng,'Engine Emission Factors'!$D35,IF($E$5=ngr,'Engine Emission Factors'!$F35,IF($E$5=ngl,'Engine Emission Factors'!$G35,IF($E$5=ng2l,'Engine Emission Factors'!$H35,IF($E$5=select,'Engine Emission Factors'!$I35))))))) -> 0 | H52: 0 | I52: =IF(OR($F$8='Data Validation'!$B$39,'Data Validation'!$B$40),(($D$18*$E$18*$G52)/2000),IF($F$8='Data Validation'!$B$38,(($E$18*$G52)/2000),0)) -> 0
B53: Phenol | G53: =IF($E$5=rd,IF($E$7>=600,'Engine Emission Factors'!$C36,'Engine Emission Factors'!$B36),IF($E$5=rg,'Engine Emission Factors'!$E36,IF($E$5=tng,'Engine Emission Factors'!$D36,IF($E$5=ngr,'Engine Emission Factors'!$F36,IF($E$5=ngl,'Engine Emission Factors'!$G36,IF($E$5=ng2l,'Engine Emission Factors'!$H36,IF($E$5=select,'Engine Emission Factors'!$I36))))))) -> 0 | H53: 0 | I53: =IF(OR($F$8='Data Validation'!$B$39,'Data Validation'!$B$40),(($D$18*$E$18*$G53)/2000),IF($F$8='Data Validation'!$B$38,(($E$18*$G53)/2000),0)) -> 0
B54: Styrene | G54: =IF($E$5=rd,IF($E$7>=600,'Engine Emission Factors'!$C37,'Engine Emission Factors'!$B37),IF($E$5=rg,'Engine Emission Factors'!$E37,IF($E$5=tng,'Engine Emission Factors'!$D37,IF($E$5=ngr,'Engine Emission Factors'!$F37,IF($E$5=ngl,'Engine Emission Factors'!$G37,IF($E$5=ng2l,'Engine Emission Factors'!$H37,IF($E$5=select,'Engine Emission Factors'!$I37))))))) -> 0 | H54: 0 | I54: =IF(OR($F$8='Data Validation'!$B$39,'Data Validation'!$B$40),(($D$18*$E$18*$G54)/2000),IF($F$8='Data Validation'!$B$38,(($E$18*$G54)/2000),0)) -> 0
B55: Tetrachloroethane | G55: =IF($E$5=rd,IF($E$7>=600,'Engine Emission Factors'!$C38,'Engine Emission Factors'!$B38),IF($E$5=rg,'Engine Emission Factors'!$E38,IF($E$5=tng,'Engine Emission Factors'!$D38,IF($E$5=ngr,'Engine Emission Factors'!$F38,IF($E$5=ngl,'Engine Emission Factors'!$G38,IF($E$5=ng2l,'Engine Emission Factors'!$H38,IF($E$5=select,'Engine Emission Factors'!$I38))))))) -> 0 | H55: 0 | I55: =IF(OR($F$8='Data Validation'!$B$39,'Data Validation'!$B$40),(($D$18*$E$18*$G55)/2000),IF($F$8='Data Validation'!$B$38,(($E$18*$G55)/2000),0)) -> 0
B56: Toluene | G56: =IF($E$5=rd,IF($E$7>=600,'Engine Emission Factors'!$C39,'Engine Emission Factors'!$B39),IF($E$5=rg,'Engine Emission Factors'!$E39,IF($E$5=tng,'Engine Emission Factors'!$D39,IF($E$5=ngr,'Engine Emission Factors'!$F39,IF($E$5=ngl,'Engine Emission Factors'!$G39,IF($E$5=ng2l,'Engine Emission Factors'!$H39,IF($E$5=select,'Engine Emission Factors'!$I39))))))) -> 0 | H56: 0 | I56: =IF(OR($F$8='Data Validation'!$B$39,'Data Validation'!$B$40),(($D$18*$E$18*$G56)/2000),IF($F$8='Data Validation'!$B$38,(($E$18*$G56)/2000),0)) -> 0
B57: Vinyl chloride | G57: =IF($E$5=rd,IF($E$7>=600,'Engine Emission Factors'!$C40,'Engine Emission Factors'!$B40),IF($E$5=rg,'Engine Emission Factors'!$E40,IF($E$5=tng,'Engine Emission Factors'!$D40,IF($E$5=ngr,'Engine Emission Factors'!$F40,IF($E$5=ngl,'Engine Emission Factors'!$G40,IF($E$5=ng2l,'Engine Emission Factors'!$H40,IF($E$5=select,'Engine Emission Factors'!$I40))))))) -> 0 | H57: 0 | I57: =IF(OR($F$8='Data Validation'!$B$39,'Data Validation'!$B$40),(($D$18*$E$18*$G57)/2000),IF($F$8='Data Validation'!$B$38,(($E$18*$G57)/2000),0)) -> 0
B58: Xylene | G58: =IF($E$5=rd,IF($E$7>=600,'Engine Emission Factors'!$C41,'Engine Emission Factors'!$B41),IF($E$5=rg,'Engine Emission Factors'!$E41,IF($E$5=tng,'Engine Emission Factors'!$D41,IF($E$5=ngr,'Engine Emission Factors'!$F41,IF($E$5=ngl,'Engine Emission Factors'!$G41,IF($E$5=ng2l,'Engine Emission Factors'!$H41,IF($E$5=select,'Engine Emission Factors'!$I41))))))) -> 0 | H58: 0 | I58: =IF(OR($F$8='Data Validation'!$B$39,'Data Validation'!$B$40),(($D$18*$E$18*$G58)/2000),IF($F$8='Data Validation'!$B$38,(($E$18*$G58)/2000),0)) -> 0
F59: HAP total | H59: =SUM(H34:H58) -> 0 | I59: =SUM(I34:I58) -> 0
B60: 1 Global Warming Potential from 40 CFR Part 98, Subpart A, Table A-1 | F60: 4 See information on insignficant activities at Minn. R. 7007.1300 and on the 'Permits & Requirements' tab.
B61: 2 CO2e = carbon dioxide equivalents
B62: 3 Routine = 24 hr/day * 365 day/yr or 8760 hr/yr; Emergency = 500 hr/yr | F62: Minn. R. 7007.1300

Sheet Engine 4
B1: =Instructions!O4 -> p-sbap5-25 • 9/3/19
B2: Air emissions from internal combustion engines
B3: Reciprocating internal combustion engine (RICE)
B5: Engine and fuel type | E5: Choose one | G5: Facility identifier for engine | I5: Engine 4
B6: Engine use | E6: Choose one | F6: If emergency engine is used for peak-shaving or contracted for >15 hr/yr, choose 'Routine.'
B7: =IF(E5='Data Validation'!A6," ",IF(OR(E5=rd,E5=rg),"Rated mechanical output",IF(OR(E5=ngl,OR(E5=ngr,OR(E5=tng,E5=ng2l))),"Rated fuel input"," "))) ->  | E7: 0 | F7: =IF(B7=" "," ",IF(B7="Rated mechanical output",'Data Validation'!A23,IF(B7="Rated fuel input",'Data Validation'!A24))) -> 
B8: Choose one to calculate actual emissions | E8: 0 | F8: =IF(B8='Data Validation'!B32," ",IF(B8='Data Validation'!B33,'Data Validation'!B38,IF(AND(B8='Data Validation'!B34,OR(E5=tng,OR(E5=ngl,OR(E5=ngr,OR(E5=ng2l))))),'Data Validation'!B39,IF(AND(B8='Data Validation'!B34,OR(E5=rd,OR(E5=rg))),'Data Validation'!B40," ")))) -> 
B9: =IF(F7=" "," ",IF(F7='Data Validation'!A23,'Data Validation'!A28,IF(F7='Data Validation'!A24,'Data Validation'!A29))) ->  | E9: =IF(E5='Data Validation'!A6," ",IF(E5=rd,'Engine Emission Factors'!F48,IF(E5=rg,'Engine Emission Factors'!F49,IF(OR(E5=ngl,OR(E5=ngr,OR(E5=tng,E5=ng2l))),'Engine Emission Factors'!G47," ")))) ->  | F9: =IF(B9=" "," ",IF(B9='Data Validation'!A28,"(Btu/HP-hr)",IF(B9='Data Validation'!A29,"Btu/scf"))) -> 
B10: =IF(E5='Data Validation'!A6," ",IF(E5=rd,"Heat value of fuel",IF(E5=rg,"Heat value of fuel"," "))) ->  | D10: Heat value of fuel | E10: =IF(E5=rd,'Engine Emission Factors'!H48,IF(E5=rg,'Engine Emission Factors'!H49," ")) ->  | F10: =IF(E5='Data Validation'!A6," ",IF(E5=rd,"(Btu/gal)",IF(E5=rg,"(Btu/gal)"," "))) -> 
B11: Sulfur content of the fuel | E11: =IF(AND(E5=rd,E7>=600),"0.0015",IF(E5=tng,"0.00065","NA")) -> NA | F11: %
B13: Internal combustion engine potential and actual emissions
C14: a | D14: b | E14: c | F14: d | G14: e
B15: Pollutant | C15: GWP1 | D15: Engine Rated Output | E15: Actual Annual Throughput | F15: Potential Annual Hours3 | G15: Emission Factor | H15: Potential Emissions | I15: Actual Emissions | K15: Insignificant Activity4 Limits
D17: (MMBtu/hr) | E17: (MMBtu/yr) | F17: (hr/yr) | G17: (lbs/MMBtu) | H17: (ton/yr) | I17: (tons/yr) | K17: (tons/yr)
D18: =IF(E5=select,0,IF(OR(E5=rd,E5=rg),(E7*E9/10^6),IF(OR(E5=ngl,OR(E5=ngr,OR(E5=tng,E5=ng2l))),(E7*E9/(10^6))))) -> 0 | E18: =IF(F8='Data Validation'!B39,E8,IF(AND(F8='Data Validation'!B40,E5=rd),(('Engine Emission Factors'!H48*E8)/1000000),IF(AND(F8='Data Validation'!B40,E5=rg),(('Engine Emission Factors'!H49*E8)/1000000),IF(F8='Data Validation'!B38,(E8*D18),IF(F8=" ",0))))) -> 0 | F18: =IF($E$6=so,0,IF($E$6=Routine,8760,IF($E$6=Emer,500))) -> 0 | G18: by pollutant | H18: (b * d * e) / 2000 | I18: (b * c * e) / 2000
B19: Criteria Air Pollutants | I19: see engine emission factors tab | J19: =SUM(J20:J26) -> 6
B20: PM | G20: =IF($E$5=rd,IF($E$7>=600,'Engine Emission Factors'!$C5,'Engine Emission Factors'!$B5),IF($E$5=rg,'Engine Emission Factors'!$E5,IF($E$5=tng,'Engine Emission Factors'!$D5,IF($E$5=ngr,'Engine Emission Factors'!$F5,IF($E$5=ngl,'Engine Emission Factors'!$G5,IF($E$5=ng2l,'Engine Emission Factors'!$H5,IF($E$5=select,'Engine Emission Factors'!$I6))))))) -> 0 | H20: =$D$18*$F$18*$G20/2000 -> 0 | I20: =IF(OR($F$8='Data Validation'!$B$39,'Data Validation'!$B$40),(($D$18*$E$18*$G20)/2000),IF($F$8='Data Validation'!$B$38,(($E$18*$G20)/2000),0)) -> 0 | J20: =IF(K20>H20,1,0) -> 1 | K20: 1
B21: PM10 | G21: =IF($E$5=rd,IF($E$7>=600,'Engine Emission Factors'!$C6,'Engine Emission Factors'!$B6),IF($E$5=rg,'Engine Emission Factors'!$E6,IF($E$5=tng,'Engine Emission Factors'!$D6,IF($E$5=ngr,'Engine Emission Factors'!$F6,IF($E$5=ngl,'Engine Emission Factors'!$G6,IF($E$5=ng2l,'Engine Emission Factors'!$H6,IF($E$5=select,'Engine Emission Factors'!$I7))))))) -> 0 | H21: =$D$18*$F$18*$G21/2000 -> 0 | I21: =IF(OR($F$8='Data Validation'!$B$39,'Data Validation'!$B$40),(($D$18*$E$18*$G21)/2000),IF($F$8='Data Validation'!$B$38,(($E$18*$G21)/2000),0)) -> 0 | J21: =IF(K21>H21,1,0) -> 1 | K21: 1
B22: PM2.5 | G22: =IF($E$5=rd,IF($E$7>=600,'Engine Emission Factors'!$C7,'Engine Emission Factors'!$B7),IF($E$5=rg,'Engine Emission Factors'!$E7,IF($E$5=tng,'Engine Emission Factors'!$D7,IF($E$5=ngr,'Engine Emission Factors'!$F7,IF($E$5=ngl,'Engine Emission Factors'!$G7,IF($E$5=ng2l,'Engine Emission Factors'!$H7,IF($E$5=select,'Engine Emission Factors'!$I8))))))) -> 0 | H22: 0 | I22: =IF(OR($F$8='Data Validation'!$B$39,'Data Validation'!$B$40),(($D$18*$E$18*$G22)/2000),IF($F$8='Data Validation'!$B$38,(($E$18*$G22)/2000),0)) -> 0
B23: SOx | G23: =IF($E$5=rd,IF($E$7>=600,'Engine Emission Factors'!$C8*E11,'Engine Emission Factors'!$B8),IF($E$5=rg,'Engine Emission Factors'!$E8,IF($E$5=tng,'Engine Emission Factors'!$D8*E11,IF($E$5=ngr,'Engine Emission Factors'!$F8,IF($E$5=ngl,'Engine Emission Factors'!$G8,IF($E$5=ng2l,'Engine Emission Factors'!$H8,IF($E$5=select,'Engine Emission Factors'!$I9))))))) -> 0 | H23: 0 | I23: =IF(OR($F$8='Data Validation'!$B$39,'Data Validation'!$B$40),(($D$18*$E$18*$G23)/2000),IF($F$8='Data Validation'!$B$38,(($E$18*$G23)/2000),0)) -> 0 | J23: 1 | K23: 1
B24: NOx | G24: =IF($E$5=rd,IF($E$7>=600,'Engine Emission Factors'!$C9,'Engine Emission Factors'!$B9),IF($E$5=rg,'Engine Emission Factors'!$E9,IF($E$5=tng,'Engine Emission Factors'!$D9,IF($E$5=ngr,'Engine Emission Factors'!$F9,IF($E$5=ngl,'Engine Emission Factors'!$G9,IF($E$5=ng2l,'Engine Emission Factors'!$H9,IF($E$5=select,'Engine Emission Factors'!$I10))))))) -> 0 | H24: 0 | I24: =IF(OR($F$8='Data Validation'!$B$39,'Data Validation'!$B$40),(($D$18*$E$18*$G24)/2000),IF($F$8='Data Validation'!$B$38,(($E$18*$G24)/2000),0)) -> 0 | J24: 1 | K24: 1
B25: VOC | G25: =IF($E$5=rd,IF($E$7>=600,'Engine Emission Factors'!$C10,'Engine Emission Factors'!$B10),IF($E$5=rg,'Engine Emission Factors'!$E10,IF($E$5=tng,'Engine Emission Factors'!$D10,IF($E$5=ngr,'Engine Emission Factors'!$F10,IF($E$5=ngl,'Engine Emission Factors'!$G10,IF($E$5=ng2l,'Engine Emission Factors'!$H10,IF($E$5=select,'Engine Emission Factors'!$I11))))))) -> 0 | H25: 0 | I25: =IF(OR($F$8='Data Validation'!$B$39,'Data Validation'!$B$40),(($D$18*$E$18*$G25)/2000),IF($F$8='Data Validation'!$B$38,(($E$18*$G25)/2000),0)) -> 0 | J25: 1 | K25: 1
B26: CO | G26: =IF($E$5=rd,IF($E$7>=600,'Engine Emission Factors'!$C11,'Engine Emission Factors'!$B11),IF($E$5=rg,'Engine Emission Factors'!$E11,IF($E$5=tng,'Engine Emission Factors'!$D11,IF($E$5=ngr,'Engine Emission Factors'!$F11,IF($E$5=ngl,'Engine Emission Factors'!$G11,IF($E$5=ng2l,'Engine Emission Factors'!$H11,IF($E$5=select,'Engine Emission Factors'!$I12))))))) -> 0 | H26: 0 | I26: =IF(OR($F$8='Data Validation'!$B$39,'Data Validation'!$B$40),(($D$18*$E$18*$G26)/2000),IF($F$8='Data Validation'!$B$38,(($E$18*$G26)/2000),0)) -> 0 | J26: 1 | K26: 2
B27: Lead | G27: n/a | J27: 0
B28: Greenhouse Gas Emissions | I28: Source: 40 CFR 98, Subp. C, Table C-1 and C-2 | J28: 0
B29: CO2 2 | C29: 1 | G29: =IF($E$5=rd,IF($E$7>=600,'Engine Emission Factors'!$C13,'Engine Emission Factors'!$B13),IF($E$5=rg,'Engine Emission Factors'!$E13,IF($E$5=tng,'Engine Emission Factors'!$D13,IF($E$5=ngr,'Engine Emission Factors'!$F13,IF($E$5=ngl,'Engine Emission Factors'!$G13,IF($E$5=ng2l,'Engine Emission Factors'!$H13,IF($E$5=select,'Engine Emission Factors'!$I13))))))) -> 0 | H29: =$D$18*$F$18*$G29/2000 -> 0 | I29: =IF(OR($F$8='Data Validation'!$B$39,'Data Validation'!$B$40),(($D$18*$E$18*$G29)/2000),IF($F$8='Data Validation'!$B$38,(($E$18*$G29)/2000),0)) -> 0 | J29: 0
B30: CH4 2 | C30: 25 | G30: =IF($E$5=rd,IF($E$7>=600,'Engine Emission Factors'!$C14,'Engine Emission Factors'!$B14),IF($E$5=rg,'Engine Emission Factors'!$E14,IF($E$5=tng,'Engine Emission Factors'!$D14,IF($E$5=ngr,'Engine Emission Factors'!$F14,IF($E$5=ngl,'Engine Emission Factors'!$G14,IF($E$5=ng2l,'Engine Emission Factors'!$H14,IF($E$5=select,'Engine Emission Factors'!$I14))))))) -> 0 | H30: =$D$18*$F$18*$G30/2000 -> 0 | I30: =IF(OR($F$8='Data Validation'!$B$39,'Data Validation'!$B$40),(($D$18*$E$18*$G30)/2000),IF($F$8='Data Validation'!$B$38,(($E$18*$G30)/2000),0)) -> 0 | J30: 0
B31: N2O 2 | C31: 298 | G31: =IF($E$5=rd,IF($E$7>=600,'Engine Emission Factors'!$C15,'Engine Emission Factors'!$B15),IF($E$5=rg,'Engine Emission Factors'!$E15,IF($E$5=tng,'Engine Emission Factors'!$D15,IF($E$5=ngr,'Engine Emission Factors'!$F15,IF($E$5=ngl,'Engine Emission Factors'!$G15,IF($E$5=ng2l,'Engine Emission Factors'!$H15,IF($E$5=select,'Engine Emission Factors'!$I15))))))) -> 0 | H31: =$D$18*$F$18*$G31/2000 -> 0 | I31: =IF(OR($F$8='Data Validation'!$B$39,'Data Validation'!$B$40),(($D$18*$E$18*$G31)/2000),IF($F$8='Data Validation'!$B$38,(($E$18*$G31)/2000),0)) -> 0 | J31: 0
F32: GHG total (CO2e) 2 | H32: =(C29*H29)+(C30*H30)+(C31*H31) -> 0 | I32: =(C29*I29)+(C30*I30)+(C31*I31) -> 0 | J32: 1 | K32: 1000
B33: Hazardous Air Pollutants | G33: see engine emission factors tab
B34: 1,1,2,2-tetrachloroethane | G34: =IF($E$5=rd,IF($E$7>=600,'Engine Emission Factors'!$C17,'Engine Emission Factors'!$B17),IF($E$5=rg,'Engine Emission Factors'!$E17,IF($E$5=tng,'Engine Emission Factors'!$D17,IF($E$5=ngr,'Engine Emission Factors'!$F17,IF($E$5=ngl,'Engine Emission Factors'!$G17,IF($E$5=ng2l,'Engine Emission Factors'!$H17,IF($E$5=select,'Engine Emission Factors'!$I17))))))) -> 0 | H34: =$D$18*$F$18*$G34/2000 -> 0 | I34: =IF(OR($F$8='Data Validation'!$B$39,'Data Validation'!$B$40),(($D$18*$E$18*$G34)/2000),IF($F$8='Data Validation'!$B$38,(($E$18*$G34)/2000),0)) -> 0
B35: 1,1,2-trichloroethane | G35: =IF($E$5=rd,IF($E$7>=600,'Engine Emission Factors'!$C18,'Engine Emission Factors'!$B18),IF($E$5=rg,'Engine Emission Factors'!$E18,IF($E$5=tng,'Engine Emission Factors'!$D18,IF($E$5=ngr,'Engine Emission Factors'!$F18,IF($E$5=ngl,'Engine Emission Factors'!$G18,IF($E$5=ng2l,'Engine Emission Factors'!$H18,IF($E$5=select,'Engine Emission Factors'!$I18))))))) -> 0 | H35: 0 | I35: =IF(OR($F$8='Data Validation'!$B$39,'Data Validation'!$B$40),(($D$18*$E$18*$G35)/2000),IF($F$8='Data Validation'!$B$38,(($E$18*$G35)/2000),0)) -> 0
B36: 1,3-butadiene | G36: =IF($E$5=rd,IF($E$7>=600,'Engine Emission Factors'!$C19,'Engine Emission Factors'!$B19),IF($E$5=rg,'Engine Emission Factors'!$E19,IF($E$5=tng,'Engine Emission Factors'!$D19,IF($E$5=ngr,'Engine Emission Factors'!$F19,IF($E$5=ngl,'Engine Emission Factors'!$G19,IF($E$5=ng2l,'Engine Emission Factors'!$H19,IF($E$5=select,'Engine Emission Factors'!$I19))))))) -> 0 | H36: 0 | I36: =IF(OR($F$8='Data Validation'!$B$39,'Data Validation'!$B$40),(($D$18*$E$18*$G36)/2000),IF($F$8='Data Validation'!$B$38,(($E$18*$G36)/2000),0)) -> 0
B37: 1,3-dichloropropene | G37: =IF($E$5=rd,IF($E$7>=600,'Engine Emission Factors'!$C20,'Engine Emission Factors'!$B20),IF($E$5=rg,'Engine Emission Factors'!$E20,IF($E$5=tng,'Engine Emission Factors'!$D20,IF($E$5=ngr,'Engine Emission Factors'!$F20,IF($E$5=ngl,'Engine Emission Factors'!$G20,IF($E$5=ng2l,'Engine Emission Factors'!$H20,IF($E$5=select,'Engine Emission Factors'!$I20))))))) -> 0 | H37: 0 | I37: =IF(OR($F$8='Data Validation'!$B$39,'Data Validation'!$B$40),(($D$18*$E$18*$G37)/2000),IF($F$8='Data Validation'!$B$38,(($E$18*$G37)/2000),0)) -> 0
B38: Acetaldehyde | G38: =IF($E$5=rd,IF($E$7>=600,'Engine Emission Factors'!$C21,'Engine Emission Factors'!$B21),IF($E$5=rg,'Engine Emission Factors'!$E21,IF($E$5=tng,'Engine Emission Factors'!$D21,IF($E$5=ngr,'Engine Emission Factors'!$F21,IF($E$5=ngl,'Engine Emission Factors'!$G21,IF($E$5=ng2l,'Engine Emission Factors'!$H21,IF($E$5=select,'Engine Emission Factors'!$I21))))))) -> 0 | H38: 0 | I38: =IF(OR($F$8='Data Validation'!$B$39,'Data Validation'!$B$40),(($D$18*$E$18*$G38)/2000),IF($F$8='Data Validation'!$B$38,(($E$18*$G38)/2000),0)) -> 0
B39: Acrolein | G39: =IF($E$5=rd,IF($E$7>=600,'Engine Emission Factors'!$C22,'Engine Emission Factors'!$B22),IF($E$5=rg,'Engine Emission Factors'!$E22,IF($E$5=tng,'Engine Emission Factors'!$D22,IF($E$5=ngr,'Engine Emission Factors'!$F22,IF($E$5=ngl,'Engine Emission Factors'!$G22,IF($E$5=ng2l,'Engine Emission Factors'!$H22,IF($E$5=select,'Engine Emission Factors'!$I22))))))) -> 0 | H39: 0 | I39: =IF(OR($F$8='Data Validation'!$B$39,'Data Validation'!$B$40),(($D$18*$E$18*$G39)/2000),IF($F$8='Data Validation'!$B$38,(($E$18*$G39)/2000),0)) -> 0
B40: Benzene | G40: =IF($E$5=rd,IF($E$7>=600,'Engine Emission Factors'!$C23,'Engine Emission Factors'!$B23),IF($E$5=rg,'Engine Emission Factors'!$E23,IF($E$5=tng,'Engine Emission Factors'!$D23,IF($E$5=ngr,'Engine Emission Factors'!$F23,IF($E$5=ngl,'Engine Emission Factors'!$G23,IF($E$5=ng2l,'Engine Emission Factors'!$H23,IF($E$5=select,'Engine Emission Factors'!$I23))))))) -> 0 | H40: 0 | I40: =IF(OR($F$8='Data Validation'!$B$39,'Data Validation'!$B$40),(($D$18*$E$18*$G40)/2000),IF($F$8='Data Validation'!$B$38,(($E$18*$G40)/2000),0)) -> 0
B41: Biphenyl | G41: =IF($E$5=rd,IF($E$7>=600,'Engine Emission Factors'!$C24,'Engine Emission Factors'!$B24),IF($E$5=rg,'Engine Emission Factors'!$E24,IF($E$5=tng,'Engine Emission Factors'!$D24,IF($E$5=ngr,'Engine Emission Factors'!$F24,IF($E$5=ngl,'Engine Emission Factors'!$G24,IF($E$5=ng2l,'Engine Emission Factors'!$H24,IF($E$5=select,'Engine Emission Factors'!$I24))))))) -> 0 | H41: 0 | I41: =IF(OR($F$8='Data Validation'!$B$39,'Data Validation'!$B$40),(($D$18*$E$18*$G41)/2000),IF($F$8='Data Validation'!$B$38,(($E$18*$G41)/2000),0)) -> 0
B42: Carbon tetrachloride | G42: =IF($E$5=rd,IF($E$7>=600,'Engine Emission Factors'!$C25,'Engine Emission Factors'!$B25),IF($E$5=rg,'Engine Emission Factors'!$E25,IF($E$5=tng,'Engine Emission Factors'!$D25,IF($E$5=ngr,'Engine Emission Factors'!$F25,IF($E$5=ngl,'Engine Emission Factors'!$G25,IF($E$5=ng2l,'Engine Emission Factors'!$H25,IF($E$5=select,'Engine Emission Factors'!$I25))))))) -> 0 | H42: 0 | I42: =IF(OR($F$8='Data Validation'!$B$39,'Data Validation'!$B$40),(($D$18*$E$18*$G42)/2000),IF($F$8='Data Validation'!$B$38,(($E$18*$G42)/2000),0)) -> 0
B43: Chlorobenzene | G43: =IF($E$5=rd,IF($E$7>=600,'Engine Emission Factors'!$C26,'Engine Emission Factors'!$B26),IF($E$5=rg,'Engine Emission Factors'!$E26,IF($E$5=tng,'Engine Emission Factors'!$D26,IF($E$5=ngr,'Engine Emission Factors'!$F26,IF($E$5=ngl,'Engine Emission Factors'!$G26,IF($E$5=ng2l,'Engine Emission Factors'!$H26,IF($E$5=select,'Engine Emission Factors'!$I26))))))) -> 0 | H43: 0 | I43: =IF(OR($F$8='Data Validation'!$B$39,'Data Validation'!$B$40),(($D$18*$E$18*$G43)/2000),IF($F$8='Data Validation'!$B$38,(($E$18*$G43)/2000),0)) -> 0
B44: Chloroform | G44: =IF($E$5=rd,IF($E$7>=600,'Engine Emission Factors'!$C27,'Engine Emission Factors'!$B27),IF($E$5=rg,'Engine Emission Factors'!$E27,IF($E$5=tng,'Engine Emission Factors'!$D27,IF($E$5=ngr,'Engine Emission Factors'!$F27,IF($E$5=ngl,'Engine Emission Factors'!$G27,IF($E$5=ng2l,'Engine Emission Factors'!$H27,IF($E$5=select,'Engine Emission Factors'!$I27))))))) -> 0 | H44: 0 | I44: =IF(OR($F$8='Data Validation'!$B$39,'Data Validation'!$B$40),(($D$18*$E$18*$G44)/2000),IF($F$8='Data Validation'!$B$38,(($E$18*$G44)/2000),0)) -> 0
B45: Ethylbenzene | G45: =IF($E$5=rd,IF($E$7>=600,'Engine Emission Factors'!$C28,'Engine Emission Factors'!$B28),IF($E$5=rg,'Engine Emission Factors'!$E28,IF($E$5=tng,'Engine Emission Factors'!$D28,IF($E$5=ngr,'Engine Emission Factors'!$F28,IF($E$5=ngl,'Engine Emission Factors'!$G28,IF($E$5=ng2l,'Engine Emission Factors'!$H28,IF($E$5=select,'Engine Emission Factors'!$I28))))))) -> 0 | H45: 0 | I45: =IF(OR($F$8='Data Validation'!$B$39,'Data Validation'!$B$40),(($D$18*$E$18*$G45)/2000),IF($F$8='Data Validation'!$B$38,(($E$18*$G45)/2000),0)) -> 0
B46: Ethylene dibromide | G46: =IF($E$5=rd,IF($E$7>=600,'Engine Emission Factors'!$C29,'Engine Emission Factors'!$B29),IF($E$5=rg,'Engine Emission Factors'!$E29,IF($E$5=tng,'Engine Emission Factors'!$D29,IF($E$5=ngr,'Engine Emission Factors'!$F29,IF($E$5=ngl,'Engine Emission Factors'!$G29,IF($E$5=ng2l,'Engine Emission Factors'!$H29,IF($E$5=select,'Engine Emission Factors'!$I29))))))) -> 0 | H46: 0 | I46: =IF(OR($F$8='Data Validation'!$B$39,'Data Validation'!$B$40),(($D$18*$E$18*$G46)/2000),IF($F$8='Data Validation'!$B$38,(($E$18*$G46)/2000),0)) -> 0
B47: Formaldehyde | G47: =IF($E$5=rd,IF($E$7>=600,'Engine Emission Factors'!$C30,'Engine Emission Factors'!$B30),IF($E$5=rg,'Engine Emission Factors'!$E30,IF($E$5=tng,'Engine Emission Factors'!$D30,IF($E$5=ngr,'Engine Emission Factors'!$F30,IF($E$5=ngl,'Engine Emission Factors'!$G30,IF($E$5=ng2l,'Engine Emission Factors'!$H30,IF($E$5=select,'Engine Emission Factors'!$I30))))))) -> 0 | H47: 0 | I47: =IF(OR($F$8='Data Validation'!$B$39,'Data Validation'!$B$40),(($D$18*$E$18*$G47)/2000),IF($F$8='Data Validation'!$B$38,(($E$18*$G47)/2000),0)) -> 0
B48: Hexane | G48: =IF($E$5=rd,IF($E$7>=600,'Engine Emission Factors'!$C31,'Engine Emission Factors'!$B31),IF($E$5=rg,'Engine Emission Factors'!$E31,IF($E$5=tng,'Engine Emission Factors'!$D31,IF($E$5=ngr,'Engine Emission Factors'!$F31,IF($E$5=ngl,'Engine Emission Factors'!$G31,IF($E$5=ng2l,'Engine Emission Factors'!$H31,IF($E$5=select,'Engine Emission Factors'!$I31))))))) -> 0 | H48: 0 | I48: =IF(OR($F$8='Data Validation'!$B$39,'Data Validation'!$B$40),(($D$18*$E$18*$G48)/2000),IF($F$8='Data Validation'!$B$38,(($E$18*$G48)/2000),0)) -> 0
B49: Methanol | G49: =IF($E$5=rd,IF($E$7>=600,'Engine Emission Factors'!$C32,'Engine Emission Factors'!$B32),IF($E$5=rg,'Engine Emission Factors'!$E32,IF($E$5=tng,'Engine Emission Factors'!$D32,IF($E$5=ngr,'Engine Emission Factors'!$F32,IF($E$5=ngl,'Engine Emission Factors'!$G32,IF($E$5=ng2l,'Engine Emission Factors'!$H32,IF($E$5=select,'Engine Emission Factors'!$I32))))))) -> 0 | H49: 0 | I49: =IF(OR($F$8='Data Validation'!$B$39,'Data Validation'!$B$40),(($D$18*$E$18*$G49)/2000),IF($F$8='Data Validation'!$B$38,(($E$18*$G49)/2000),0)) -> 0
B50: Methylene chloride | G50: =IF($E$5=rd,IF($E$7>=600,'Engine Emission Factors'!$C33,'Engine Emission Factors'!$B33),IF($E$5=rg,'Engine Emission Factors'!$E33,IF($E$5=tng,'Engine Emission Factors'!$D33,IF($E$5=ngr,'Engine Emission Factors'!$F33,IF($E$5=ngl,'Engine Emission Factors'!$G33,IF($E$5=ng2l,'Engine Emission Factors'!$H33,IF($E$5=select,'Engine Emission Factors'!$I33))))))) -> 0 | H50: 0 | I50: =IF(OR($F$8='Data Validation'!$B$39,'Data Validation'!$B$40),(($D$18*$E$18*$G50)/2000),IF($F$8='Data Validation'!$B$38,(($E$18*$G50)/2000),0)) -> 0
B51: Naphthalene | G51: =IF($E$5=rd,IF($E$7>=600,'Engine Emission Factors'!$C34,'Engine Emission Factors'!$B34),IF($E$5=rg,'Engine Emission Factors'!$E34,IF($E$5=tng,'Engine Emission Factors'!$D34,IF($E$5=ngr,'Engine Emission Factors'!$F34,IF($E$5=ngl,'Engine Emission Factors'!$G34,IF($E$5=ng2l,'Engine Emission Factors'!$H34,IF($E$5=select,'Engine Emission Factors'!$I34))))))) -> 0 | H51: 0 | I51: =IF(OR($F$8='Data Validation'!$B$39,'Data Validation'!$B$40),(($D$18*$E$18*$G51)/2000),IF($F$8='Data Validation'!$B$38,(($E$18*$G51)/2000),0)) -> 0
B52: PAH | G52: =IF($E$5=rd,IF($E$7>=600,'Engine Emission Factors'!$C35,'Engine Emission Factors'!$B35),IF($E$5=rg,'Engine Emission Factors'!$E35,IF($E$5=tng,'Engine Emission Factors'!$D35,IF($E$5=ngr,'Engine Emission Factors'!$F35,IF($E$5=ngl,'Engine Emission Factors'!$G35,IF($E$5=ng2l,'Engine Emission Factors'!$H35,IF($E$5=select,'Engine Emission Factors'!$I35))))))) -> 0 | H52: 0 | I52: =IF(OR($F$8='Data Validation'!$B$39,'Data Validation'!$B$40),(($D$18*$E$18*$G52)/2000),IF($F$8='Data Validation'!$B$38,(($E$18*$G52)/2000),0)) -> 0
B53: Phenol | G53: =IF($E$5=rd,IF($E$7>=600,'Engine Emission Factors'!$C36,'Engine Emission Factors'!$B36),IF($E$5=rg,'Engine Emission Factors'!$E36,IF($E$5=tng,'Engine Emission Factors'!$D36,IF($E$5=ngr,'Engine Emission Factors'!$F36,IF($E$5=ngl,'Engine Emission Factors'!$G36,IF($E$5=ng2l,'Engine Emission Factors'!$H36,IF($E$5=select,'Engine Emission Factors'!$I36))))))) -> 0 | H53: 0 | I53: =IF(OR($F$8='Data Validation'!$B$39,'Data Validation'!$B$40),(($D$18*$E$18*$G53)/2000),IF($F$8='Data Validation'!$B$38,(($E$18*$G53)/2000),0)) -> 0
B54: Styrene | G54: =IF($E$5=rd,IF($E$7>=600,'Engine Emission Factors'!$C37,'Engine Emission Factors'!$B37),IF($E$5=rg,'Engine Emission Factors'!$E37,IF($E$5=tng,'Engine Emission Factors'!$D37,IF($E$5=ngr,'Engine Emission Factors'!$F37,IF($E$5=ngl,'Engine Emission Factors'!$G37,IF($E$5=ng2l,'Engine Emission Factors'!$H37,IF($E$5=select,'Engine Emission Factors'!$I37))))))) -> 0 | H54: 0 | I54: =IF(OR($F$8='Data Validation'!$B$39,'Data Validation'!$B$40),(($D$18*$E$18*$G54)/2000),IF($F$8='Data Validation'!$B$38,(($E$18*$G54)/2000),0)) -> 0
B55: Tetrachloroethane | G55: =IF($E$5=rd,IF($E$7>=600,'Engine Emission Factors'!$C38,'Engine Emission Factors'!$B38),IF($E$5=rg,'Engine Emission Factors'!$E38,IF($E$5=tng,'Engine Emission Factors'!$D38,IF($E$5=ngr,'Engine Emission Factors'!$F38,IF($E$5=ngl,'Engine Emission Factors'!$G38,IF($E$5=ng2l,'Engine Emission Factors'!$H38,IF($E$5=select,'Engine Emission Factors'!$I38))))))) -> 0 | H55: 0 | I55: =IF(OR($F$8='Data Validation'!$B$39,'Data Validation'!$B$40),(($D$18*$E$18*$G55)/2000),IF($F$8='Data Validation'!$B$38,(($E$18*$G55)/2000),0)) -> 0
B56: Toluene | G56: =IF($E$5=rd,IF($E$7>=600,'Engine Emission Factors'!$C39,'Engine Emission Factors'!$B39),IF($E$5=rg,'Engine Emission Factors'!$E39,IF($E$5=tng,'Engine Emission Factors'!$D39,IF($E$5=ngr,'Engine Emission Factors'!$F39,IF($E$5=ngl,'Engine Emission Factors'!$G39,IF($E$5=ng2l,'Engine Emission Factors'!$H39,IF($E$5=select,'Engine Emission Factors'!$I39))))))) -> 0 | H56: 0 | I56: =IF(OR($F$8='Data Validation'!$B$39,'Data Validation'!$B$40),(($D$18*$E$18*$G56)/2000),IF($F$8='Data Validation'!$B$38,(($E$18*$G56)/2000),0)) -> 0
B57: Vinyl chloride | G57: =IF($E$5=rd,IF($E$7>=600,'Engine Emission Factors'!$C40,'Engine Emission Factors'!$B40),IF($E$5=rg,'Engine Emission Factors'!$E40,IF($E$5=tng,'Engine Emission Factors'!$D40,IF($E$5=ngr,'Engine Emission Factors'!$F40,IF($E$5=ngl,'Engine Emission Factors'!$G40,IF($E$5=ng2l,'Engine Emission Factors'!$H40,IF($E$5=select,'Engine Emission Factors'!$I40))))))) -> 0 | H57: 0 | I57: =IF(OR($F$8='Data Validation'!$B$39,'Data Validation'!$B$40),(($D$18*$E$18*$G57)/2000),IF($F$8='Data Validation'!$B$38,(($E$18*$G57)/2000),0)) -> 0
B58: Xylene | G58: =IF($E$5=rd,IF($E$7>=600,'Engine Emission Factors'!$C41,'Engine Emission Factors'!$B41),IF($E$5=rg,'Engine Emission Factors'!$E41,IF($E$5=tng,'Engine Emission Factors'!$D41,IF($E$5=ngr,'Engine Emission Factors'!$F41,IF($E$5=ngl,'Engine Emission Factors'!$G41,IF($E$5=ng2l,'Engine Emission Factors'!$H41,IF($E$5=select,'Engine Emission Factors'!$I41))))))) -> 0 | H58: 0 | I58: =IF(OR($F$8='Data Validation'!$B$39,'Data Validation'!$B$40),(($D$18*$E$18*$G58)/2000),IF($F$8='Data Validation'!$B$38,(($E$18*$G58)/2000),0)) -> 0
F59: HAP total | H59: =SUM(H34:H58) -> 0 | I59: =SUM(I34:I58) -> 0
B60: 1 Global Warming Potential from 40 CFR Part 98, Subpart A, Table A-1 | F60: 4 See information on insignficant activities at Minn. R. 7007.1300 and on the 'Permits & Requirements' tab.
B61: 2 CO2e = carbon dioxide equivalents
B62: 3 Routine = 24 hr/day * 365 day/yr or 8760 hr/yr; Emergency = 500 hr/yr | F62: Minn. R. 7007.1300

Sheet Engine 5
B1: =Instructions!O4 -> p-sbap5-25 • 9/3/19
B2: Air emissions from internal combustion engines
B3: Reciprocating internal combustion engine (RICE)
B5: Engine and fuel type | E5: Choose one | G5: Facility identifier for engine | I5: Engine 5
B6: Engine use | E6: Choose one | F6: If emergency engine is used for peak-shaving or contracted for >15 hr/yr, choose 'Routine.'
B7: =IF(E5='Data Validation'!A6," ",IF(OR(E5=rd,E5=rg),"Rated mechanical output",IF(OR(E5=ngl,OR(E5=ngr,OR(E5=tng,E5=ng2l))),"Rated fuel input"," "))) ->  | E7: 0 | F7: =IF(B7=" "," ",IF(B7="Rated mechanical output",'Data Validation'!A23,IF(B7="Rated fuel input",'Data Validation'!A24))) -> 
B8: Choose one to calculate actual emissions | E8: 0 | F8: =IF(B8='Data Validation'!B32," ",IF(B8='Data Validation'!B33,'Data Validation'!B38,IF(AND(B8='Data Validation'!B34,OR(E5=tng,OR(E5=ngl,OR(E5=ngr,OR(E5=ng2l))))),'Data Validation'!B39,IF(AND(B8='Data Validation'!B34,OR(E5=rd,OR(E5=rg))),'Data Validation'!B40," ")))) -> 
B9: =IF(F7=" "," ",IF(F7='Data Validation'!A23,'Data Validation'!A28,IF(F7='Data Validation'!A24,'Data Validation'!A29))) ->  | E9: =IF(E5='Data Validation'!A6," ",IF(E5=rd,'Engine Emission Factors'!F48,IF(E5=rg,'Engine Emission Factors'!F49,IF(OR(E5=ngl,OR(E5=ngr,OR(E5=tng,E5=ng2l))),'Engine Emission Factors'!G47," ")))) ->  | F9: =IF(B9=" "," ",IF(B9='Data Validation'!A28,"(Btu/HP-hr)",IF(B9='Data Validation'!A29,"Btu/scf"))) -> 
B10: =IF(E5='Data Validation'!A6," ",IF(E5=rd,"Heat value of fuel",IF(E5=rg,"Heat value of fuel"," "))) ->  | D10: Heat value of fuel | E10: =IF(E5=rd,'Engine Emission Factors'!H48,IF(E5=rg,'Engine Emission Factors'!H49," ")) ->  | F10: =IF(E5='Data Validation'!A6," ",IF(E5=rd,"(Btu/gal)",IF(E5=rg,"(Btu/gal)"," "))) -> 
B11: Sulfur content of the fuel | E11: =IF(AND(E5=rd,E7>=600),"0.0015",IF(E5=tng,"0.00065","NA")) -> NA | F11: %
B13: Internal combustion engine potential and actual emissions
C14: a | D14: b | E14: c | F14: d | G14: e
B15: Pollutant | C15: GWP1 | D15: Engine Rated Output | E15: Actual Annual Throughput | F15: Potential Annual Hours3 | G15: Emission Factor | H15: Potential Emissions | I15: Actual Emissions | K15: Insignificant Activity4 Limits
D17: (MMBtu/hr) | E17: (MMBtu/yr) | F17: (hr/yr) | G17: (lbs/MMBtu) | H17: (ton/yr) | I17: (tons/yr) | K17: (tons/yr)
D18: =IF(E5=select,0,IF(OR(E5=rd,E5=rg),(E7*E9/10^6),IF(OR(E5=ngl,OR(E5=ngr,OR(E5=tng,E5=ng2l))),(E7*E9/(10^6))))) -> 0 | E18: =IF(F8='Data Validation'!B39,E8,IF(AND(F8='Data Validation'!B40,E5=rd),(('Engine Emission Factors'!H48*E8)/1000000),IF(AND(F8='Data Validation'!B40,E5=rg),(('Engine Emission Factors'!H49*E8)/1000000),IF(F8='Data Validation'!B38,(E8*D18),IF(F8=" ",0))))) -> 0 | F18: =IF($E$6=so,0,IF($E$6=Routine,8760,IF($E$6=Emer,500))) -> 0 | G18: by pollutant | H18: (b * d * e) / 2000 | I18: (b * c * e) / 2000
B19: Criteria Air Pollutants | I19: see engine emission factors tab | J19: =SUM(J20:J26) -> 6
B20: PM | G20: =IF($E$5=rd,IF($E$7>=600,'Engine Emission Factors'!$C5,'Engine Emission Factors'!$B5),IF($E$5=rg,'Engine Emission Factors'!$E5,IF($E$5=tng,'Engine Emission Factors'!$D5,IF($E$5=ngr,'Engine Emission Factors'!$F5,IF($E$5=ngl,'Engine Emission Factors'!$G5,IF($E$5=ng2l,'Engine Emission Factors'!$H5,IF($E$5=select,'Engine Emission Factors'!$I6))))))) -> 0 | H20: =$D$18*$F$18*$G20/2000 -> 0 | I20: =IF(OR($F$8='Data Validation'!$B$39,'Data Validation'!$B$40),(($D$18*$E$18*$G20)/2000),IF($F$8='Data Validation'!$B$38,(($E$18*$G20)/2000),0)) -> 0 | J20: =IF(K20>H20,1,0) -> 1 | K20: 1
B21: PM10 | G21: =IF($E$5=rd,IF($E$7>=600,'Engine Emission Factors'!$C6,'Engine Emission Factors'!$B6),IF($E$5=rg,'Engine Emission Factors'!$E6,IF($E$5=tng,'Engine Emission Factors'!$D6,IF($E$5=ngr,'Engine Emission Factors'!$F6,IF($E$5=ngl,'Engine Emission Factors'!$G6,IF($E$5=ng2l,'Engine Emission Factors'!$H6,IF($E$5=select,'Engine Emission Factors'!$I7))))))) -> 0 | H21: =$D$18*$F$18*$G21/2000 -> 0 | I21: =IF(OR($F$8='Data Validation'!$B$39,'Data Validation'!$B$40),(($D$18*$E$18*$G21)/2000),IF($F$8='Data Validation'!$B$38,(($E$18*$G21)/2000),0)) -> 0 | J21: =IF(K21>H21,1,0) -> 1 | K21: 1
B22: PM2.5 | G22: =IF($E$5=rd,IF($E$7>=600,'Engine Emission Factors'!$C7,'Engine Emission Factors'!$B7),IF($E$5=rg,'Engine Emission Factors'!$E7,IF($E$5=tng,'Engine Emission Factors'!$D7,IF($E$5=ngr,'Engine Emission Factors'!$F7,IF($E$5=ngl,'Engine Emission Factors'!$G7,IF($E$5=ng2l,'Engine Emission Factors'!$H7,IF($E$5=select,'Engine Emission Factors'!$I8))))))) -> 0 | H22: 0 | I22: =IF(OR($F$8='Data Validation'!$B$39,'Data Validation'!$B$40),(($D$18*$E$18*$G22)/2000),IF($F$8='Data Validation'!$B$38,(($E$18*$G22)/2000),0)) -> 0
B23: SOx | G23: =IF($E$5=rd,IF($E$7>=600,'Engine Emission Factors'!$C8*E11,'Engine Emission Factors'!$B8),IF($E$5=rg,'Engine Emission Factors'!$E8,IF($E$5=tng,'Engine Emission Factors'!$D8*E11,IF($E$5=ngr,'Engine Emission Factors'!$F8,IF($E$5=ngl,'Engine Emission Factors'!$G8,IF($E$5=ng2l,'Engine Emission Factors'!$H8,IF($E$5=select,'Engine Emission Factors'!$I9))))))) -> 0 | H23: 0 | I23: =IF(OR($F$8='Data Validation'!$B$39,'Data Validation'!$B$40),(($D$18*$E$18*$G23)/2000),IF($F$8='Data Validation'!$B$38,(($E$18*$G23)/2000),0)) -> 0 | J23: 1 | K23: 1
B24: NOx | G24: =IF($E$5=rd,IF($E$7>=600,'Engine Emission Factors'!$C9,'Engine Emission Factors'!$B9),IF($E$5=rg,'Engine Emission Factors'!$E9,IF($E$5=tng,'Engine Emission Factors'!$D9,IF($E$5=ngr,'Engine Emission Factors'!$F9,IF($E$5=ngl,'Engine Emission Factors'!$G9,IF($E$5=ng2l,'Engine Emission Factors'!$H9,IF($E$5=select,'Engine Emission Factors'!$I10))))))) -> 0 | H24: 0 | I24: =IF(OR($F$8='Data Validation'!$B$39,'Data Validation'!$B$40),(($D$18*$E$18*$G24)/2000),IF($F$8='Data Validation'!$B$38,(($E$18*$G24)/2000),0)) -> 0 | J24: 1 | K24: 1
B25: VOC | G25: =IF($E$5=rd,IF($E$7>=600,'Engine Emission Factors'!$C10,'Engine Emission Factors'!$B10),IF($E$5=rg,'Engine Emission Factors'!$E10,IF($E$5=tng,'Engine Emission Factors'!$D10,IF($E$5=ngr,'Engine Emission Factors'!$F10,IF($E$5=ngl,'Engine Emission Factors'!$G10,IF($E$5=ng2l,'Engine Emission Factors'!$H10,IF($E$5=select,'Engine Emission Factors'!$I11))))))) -> 0 | H25: 0 | I25: =IF(OR($F$8='Data Validation'!$B$39,'Data Validation'!$B$40),(($D$18*$E$18*$G25)/2000),IF($F$8='Data Validation'!$B$38,(($E$18*$G25)/2000),0)) -> 0 | J25: 1 | K25: 1
B26: CO | G26: =IF($E$5=rd,IF($E$7>=600,'Engine Emission Factors'!$C11,'Engine Emission Factors'!$B11),IF($E$5=rg,'Engine Emission Factors'!$E11,IF($E$5=tng,'Engine Emission Factors'!$D11,IF($E$5=ngr,'Engine Emission Factors'!$F11,IF($E$5=ngl,'Engine Emission Factors'!$G11,IF($E$5=ng2l,'Engine Emission Factors'!$H11,IF($E$5=select,'Engine Emission Factors'!$I12))))))) -> 0 | H26: 0 | I26: =IF(OR($F$8='Data Validation'!$B$39,'Data Validation'!$B$40),(($D$18*$E$18*$G26)/2000),IF($F$8='Data Validation'!$B$38,(($E$18*$G26)/2000),0)) -> 0 | J26: 1 | K26: 2
B27: Lead | G27: n/a | J27: 0
B28: Greenhouse Gas Emissions | I28: Source: 40 CFR 98, Subp. C, Table C-1 and C-2 | J28: 0
B29: CO2 2 | C29: 1 | G29: =IF($E$5=rd,IF($E$7>=600,'Engine Emission Factors'!$C13,'Engine Emission Factors'!$B13),IF($E$5=rg,'Engine Emission Factors'!$E13,IF($E$5=tng,'Engine Emission Factors'!$D13,IF($E$5=ngr,'Engine Emission Factors'!$F13,IF($E$5=ngl,'Engine Emission Factors'!$G13,IF($E$5=ng2l,'Engine Emission Factors'!$H13,IF($E$5=select,'Engine Emission Factors'!$I13))))))) -> 0 | H29: =$D$18*$F$18*$G29/2000 -> 0 | I29: =IF(OR($F$8='Data Validation'!$B$39,'Data Validation'!$B$40),(($D$18*$E$18*$G29)/2000),IF($F$8='Data Validation'!$B$38,(($E$18*$G29)/2000),0)) -> 0 | J29: 0
B30: CH4 2 | C30: 25 | G30: =IF($E$5=rd,IF($E$7>=600,'Engine Emission Factors'!$C14,'Engine Emission Factors'!$B14),IF($E$5=rg,'Engine Emission Factors'!$E14,IF($E$5=tng,'Engine Emission Factors'!$D14,IF($E$5=ngr,'Engine Emission Factors'!$F14,IF($E$5=ngl,'Engine Emission Factors'!$G14,IF($E$5=ng2l,'Engine Emission Factors'!$H14,IF($E$5=select,'Engine Emission Factors'!$I14))))))) -> 0 | H30: =$D$18*$F$18*$G30/2000 -> 0 | I30: =IF(OR($F$8='Data Validation'!$B$39,'Data Validation'!$B$40),(($D$18*$E$18*$G30)/2000),IF($F$8='Data Validation'!$B$38,(($E$18*$G30)/2000),0)) -> 0 | J30: 0
B31: N2O 2 | C31: 298 | G31: =IF($E$5=rd,IF($E$7>=600,'Engine Emission Factors'!$C15,'Engine Emission Factors'!$B15),IF($E$5=rg,'Engine Emission Factors'!$E15,IF($E$5=tng,'Engine Emission Factors'!$D15,IF($E$5=ngr,'Engine Emission Factors'!$F15,IF($E$5=ngl,'Engine Emission Factors'!$G15,IF($E$5=ng2l,'Engine Emission Factors'!$H15,IF($E$5=select,'Engine Emission Factors'!$I15))))))) -> 0 | H31: =$D$18*$F$18*$G31/2000 -> 0 | I31: =IF(OR($F$8='Data Validation'!$B$39,'Data Validation'!$B$40),(($D$18*$E$18*$G31)/2000),IF($F$8='Data Validation'!$B$38,(($E$18*$G31)/2000),0)) -> 0 | J31: 0
F32: GHG total (CO2e) 2 | H32: =(C29*H29)+(C30*H30)+(C31*H31) -> 0 | I32: =(C29*I29)+(C30*I30)+(C31*I31) -> 0 | J32: 1 | K32: 1000
B33: Hazardous Air Pollutants | G33: see engine emission factors tab
B34: 1,1,2,2-tetrachloroethane | G34: =IF($E$5=rd,IF($E$7>=600,'Engine Emission Factors'!$C17,'Engine Emission Factors'!$B17),IF($E$5=rg,'Engine Emission Factors'!$E17,IF($E$5=tng,'Engine Emission Factors'!$D17,IF($E$5=ngr,'Engine Emission Factors'!$F17,IF($E$5=ngl,'Engine Emission Factors'!$G17,IF($E$5=ng2l,'Engine Emission Factors'!$H17,IF($E$5=select,'Engine Emission Factors'!$I17))))))) -> 0 | H34: =$D$18*$F$18*$G34/2000 -> 0 | I34: =IF(OR($F$8='Data Validation'!$B$39,'Data Validation'!$B$40),(($D$18*$E$18*$G34)/2000),IF($F$8='Data Validation'!$B$38,(($E$18*$G34)/2000),0)) -> 0
B35: 1,1,2-trichloroethane | G35: =IF($E$5=rd,IF($E$7>=600,'Engine Emission Factors'!$C18,'Engine Emission Factors'!$B18),IF($E$5=rg,'Engine Emission Factors'!$E18,IF($E$5=tng,'Engine Emission Factors'!$D18,IF($E$5=ngr,'Engine Emission Factors'!$F18,IF($E$5=ngl,'Engine Emission Factors'!$G18,IF($E$5=ng2l,'Engine Emission Factors'!$H18,IF($E$5=select,'Engine Emission Factors'!$I18))))))) -> 0 | H35: 0 | I35: =IF(OR($F$8='Data Validation'!$B$39,'Data Validation'!$B$40),(($D$18*$E$18*$G35)/2000),IF($F$8='Data Validation'!$B$38,(($E$18*$G35)/2000),0)) -> 0
B36: 1,3-butadiene | G36: =IF($E$5=rd,IF($E$7>=600,'Engine Emission Factors'!$C19,'Engine Emission Factors'!$B19),IF($E$5=rg,'Engine Emission Factors'!$E19,IF($E$5=tng,'Engine Emission Factors'!$D19,IF($E$5=ngr,'Engine Emission Factors'!$F19,IF($E$5=ngl,'Engine Emission Factors'!$G19,IF($E$5=ng2l,'Engine Emission Factors'!$H19,IF($E$5=select,'Engine Emission Factors'!$I19))))))) -> 0 | H36: 0 | I36: =IF(OR($F$8='Data Validation'!$B$39,'Data Validation'!$B$40),(($D$18*$E$18*$G36)/2000),IF($F$8='Data Validation'!$B$38,(($E$18*$G36)/2000),0)) -> 0
B37: 1,3-dichloropropene | G37: =IF($E$5=rd,IF($E$7>=600,'Engine Emission Factors'!$C20,'Engine Emission Factors'!$B20),IF($E$5=rg,'Engine Emission Factors'!$E20,IF($E$5=tng,'Engine Emission Factors'!$D20,IF($E$5=ngr,'Engine Emission Factors'!$F20,IF($E$5=ngl,'Engine Emission Factors'!$G20,IF($E$5=ng2l,'Engine Emission Factors'!$H20,IF($E$5=select,'Engine Emission Factors'!$I20))))))) -> 0 | H37: 0 | I37: =IF(OR($F$8='Data Validation'!$B$39,'Data Validation'!$B$40),(($D$18*$E$18*$G37)/2000),IF($F$8='Data Validation'!$B$38,(($E$18*$G37)/2000),0)) -> 0
B38: Acetaldehyde | G38: =IF($E$5=rd,IF($E$7>=600,'Engine Emission Factors'!$C21,'Engine Emission Factors'!$B21),IF($E$5=rg,'Engine Emission Factors'!$E21,IF($E$5=tng,'Engine Emission Factors'!$D21,IF($E$5=ngr,'Engine Emission Factors'!$F21,IF($E$5=ngl,'Engine Emission Factors'!$G21,IF($E$5=ng2l,'Engine Emission Factors'!$H21,IF($E$5=select,'Engine Emission Factors'!$I21))))))) -> 0 | H38: 0 | I38: =IF(OR($F$8='Data Validation'!$B$39,'Data Validation'!$B$40),(($D$18*$E$18*$G38)/2000),IF($F$8='Data Validation'!$B$38,(($E$18*$G38)/2000),0)) -> 0
B39: Acrolein | G39: =IF($E$5=rd,IF($E$7>=600,'Engine Emission Factors'!$C22,'Engine Emission Factors'!$B22),IF($E$5=rg,'Engine Emission Factors'!$E22,IF($E$5=tng,'Engine Emission Factors'!$D22,IF($E$5=ngr,'Engine Emission Factors'!$F22,IF($E$5=ngl,'Engine Emission Factors'!$G22,IF($E$5=ng2l,'Engine Emission Factors'!$H22,IF($E$5=select,'Engine Emission Factors'!$I22))))))) -> 0 | H39: 0 | I39: =IF(OR($F$8='Data Validation'!$B$39,'Data Validation'!$B$40),(($D$18*$E$18*$G39)/2000),IF($F$8='Data Validation'!$B$38,(($E$18*$G39)/2000),0)) -> 0
B40: Benzene | G40: =IF($E$5=rd,IF($E$7>=600,'Engine Emission Factors'!$C23,'Engine Emission Factors'!$B23),IF($E$5=rg,'Engine Emission Factors'!$E23,IF($E$5=tng,'Engine Emission Factors'!$D23,IF($E$5=ngr,'Engine Emission Factors'!$F23,IF($E$5=ngl,'Engine Emission Factors'!$G23,IF($E$5=ng2l,'Engine Emission Factors'!$H23,IF($E$5=select,'Engine Emission Factors'!$I23))))))) -> 0 | H40: 0 | I40: =IF(OR($F$8='Data Validation'!$B$39,'Data Validation'!$B$40),(($D$18*$E$18*$G40)/2000),IF($F$8='Data Validation'!$B$38,(($E$18*$G40)/2000),0)) -> 0
B41: Biphenyl | G41: =IF($E$5=rd,IF($E$7>=600,'Engine Emission Factors'!$C24,'Engine Emission Factors'!$B24),IF($E$5=rg,'Engine Emission Factors'!$E24,IF($E$5=tng,'Engine Emission Factors'!$D24,IF($E$5=ngr,'Engine Emission Factors'!$F24,IF($E$5=ngl,'Engine Emission Factors'!$G24,IF($E$5=ng2l,'Engine Emission Factors'!$H24,IF($E$5=select,'Engine Emission Factors'!$I24))))))) -> 0 | H41: 0 | I41: =IF(OR($F$8='Data Validation'!$B$39,'Data Validation'!$B$40),(($D$18*$E$18*$G41)/2000),IF($F$8='Data Validation'!$B$38,(($E$18*$G41)/2000),0)) -> 0
B42: Carbon tetrachloride | G42: =IF($E$5=rd,IF($E$7>=600,'Engine Emission Factors'!$C25,'Engine Emission Factors'!$B25),IF($E$5=rg,'Engine Emission Factors'!$E25,IF($E$5=tng,'Engine Emission Factors'!$D25,IF($E$5=ngr,'Engine Emission Factors'!$F25,IF($E$5=ngl,'Engine Emission Factors'!$G25,IF($E$5=ng2l,'Engine Emission Factors'!$H25,IF($E$5=select,'Engine Emission Factors'!$I25))))))) -> 0 | H42: 0 | I42: =IF(OR($F$8='Data Validation'!$B$39,'Data Validation'!$B$40),(($D$18*$E$18*$G42)/2000),IF($F$8='Data Validation'!$B$38,(($E$18*$G42)/2000),0)) -> 0
B43: Chlorobenzene | G43: =IF($E$5=rd,IF($E$7>=600,'Engine Emission Factors'!$C26,'Engine Emission Factors'!$B26),IF($E$5=rg,'Engine Emission Factors'!$E26,IF($E$5=tng,'Engine Emission Factors'!$D26,IF($E$5=ngr,'Engine Emission Factors'!$F26,IF($E$5=ngl,'Engine Emission Factors'!$G26,IF($E$5=ng2l,'Engine Emission Factors'!$H26,IF($E$5=select,'Engine Emission Factors'!$I26))))))) -> 0 | H43: 0 | I43: =IF(OR($F$8='Data Validation'!$B$39,'Data Validation'!$B$40),(($D$18*$E$18*$G43)/2000),IF($F$8='Data Validation'!$B$38,(($E$18*$G43)/2000),0)) -> 0
B44: Chloroform | G44: =IF($E$5=rd,IF($E$7>=600,'Engine Emission Factors'!$C27,'Engine Emission Factors'!$B27),IF($E$5=rg,'Engine Emission Factors'!$E27,IF($E$5=tng,'Engine Emission Factors'!$D27,IF($E$5=ngr,'Engine Emission Factors'!$F27,IF($E$5=ngl,'Engine Emission Factors'!$G27,IF($E$5=ng2l,'Engine Emission Factors'!$H27,IF($E$5=select,'Engine Emission Factors'!$I27))))))) -> 0 | H44: 0 | I44: =IF(OR($F$8='Data Validation'!$B$39,'Data Validation'!$B$40),(($D$18*$E$18*$G44)/2000),IF($F$8='Data Validation'!$B$38,(($E$18*$G44)/2000),0)) -> 0
B45: Ethylbenzene | G45: =IF($E$5=rd,IF($E$7>=600,'Engine Emission Factors'!$C28,'Engine Emission Factors'!$B28),IF($E$5=rg,'Engine Emission Factors'!$E28,IF($E$5=tng,'Engine Emission Factors'!$D28,IF($E$5=ngr,'Engine Emission Factors'!$F28,IF($E$5=ngl,'Engine Emission Factors'!$G28,IF($E$5=ng2l,'Engine Emission Factors'!$H28,IF($E$5=select,'Engine Emission Factors'!$I28))))))) -> 0 | H45: 0 | I45: =IF(OR($F$8='Data Validation'!$B$39,'Data Validation'!$B$40),(($D$18*$E$18*$G45)/2000),IF($F$8='Data Validation'!$B$38,(($E$18*$G45)/2000),0)) -> 0
B46: Ethylene dibromide | G46: =IF($E$5=rd,IF($E$7>=600,'Engine Emission Factors'!$C29,'Engine Emission Factors'!$B29),IF($E$5=rg,'Engine Emission Factors'!$E29,IF($E$5=tng,'Engine Emission Factors'!$D29,IF($E$5=ngr,'Engine Emission Factors'!$F29,IF($E$5=ngl,'Engine Emission Factors'!$G29,IF($E$5=ng2l,'Engine Emission Factors'!$H29,IF($E$5=select,'Engine Emission Factors'!$I29))))))) -> 0 | H46: 0 | I46: =IF(OR($F$8='Data Validation'!$B$39,'Data Validation'!$B$40),(($D$18*$E$18*$G46)/2000),IF($F$8='Data Validation'!$B$38,(($E$18*$G46)/2000),0)) -> 0
B47: Formaldehyde | G47: =IF($E$5=rd,IF($E$7>=600,'Engine Emission Factors'!$C30,'Engine Emission Factors'!$B30),IF($E$5=rg,'Engine Emission Factors'!$E30,IF($E$5=tng,'Engine Emission Factors'!$D30,IF($E$5=ngr,'Engine Emission Factors'!$F30,IF($E$5=ngl,'Engine Emission Factors'!$G30,IF($E$5=ng2l,'Engine Emission Factors'!$H30,IF($E$5=select,'Engine Emission Factors'!$I30))))))) -> 0 | H47: 0 | I47: =IF(OR($F$8='Data Validation'!$B$39,'Data Validation'!$B$40),(($D$18*$E$18*$G47)/2000),IF($F$8='Data Validation'!$B$38,(($E$18*$G47)/2000),0)) -> 0
B48: Hexane | G48: =IF($E$5=rd,IF($E$7>=600,'Engine Emission Factors'!$C31,'Engine Emission Factors'!$B31),IF($E$5=rg,'Engine Emission Factors'!$E31,IF($E$5=tng,'Engine Emission Factors'!$D31,IF($E$5=ngr,'Engine Emission Factors'!$F31,IF($E$5=ngl,'Engine Emission Factors'!$G31,IF($E$5=ng2l,'Engine Emission Factors'!$H31,IF($E$5=select,'Engine Emission Factors'!$I31))))))) -> 0 | H48: 0 | I48: =IF(OR($F$8='Data Validation'!$B$39,'Data Validation'!$B$40),(($D$18*$E$18*$G48)/2000),IF($F$8='Data Validation'!$B$38,(($E$18*$G48)/2000),0)) -> 0
B49: Methanol | G49: =IF($E$5=rd,IF($E$7>=600,'Engine Emission Factors'!$C32,'Engine Emission Factors'!$B32),IF($E$5=rg,'Engine Emission Factors'!$E32,IF($E$5=tng,'Engine Emission Factors'!$D32,IF($E$5=ngr,'Engine Emission Factors'!$F32,IF($E$5=ngl,'Engine Emission Factors'!$G32,IF($E$5=ng2l,'Engine Emission Factors'!$H32,IF($E$5=select,'Engine Emission Factors'!$I32))))))) -> 0 | H49: 0 | I49: =IF(OR($F$8='Data Validation'!$B$39,'Data Validation'!$B$40),(($D$18*$E$18*$G49)/2000),IF($F$8='Data Validation'!$B$38,(($E$18*$G49)/2000),0)) -> 0
B50: Methylene chloride | G50: =IF($E$5=rd,IF($E$7>=600,'Engine Emission Factors'!$C33,'Engine Emission Factors'!$B33),IF($E$5=rg,'Engine Emission Factors'!$E33,IF($E$5=tng,'Engine Emission Factors'!$D33,IF($E$5=ngr,'Engine Emission Factors'!$F33,IF($E$5=ngl,'Engine Emission Factors'!$G33,IF($E$5=ng2l,'Engine Emission Factors'!$H33,IF($E$5=select,'Engine Emission Factors'!$I33))))))) -> 0 | H50: 0 | I50: =IF(OR($F$8='Data Validation'!$B$39,'Data Validation'!$B$40),(($D$18*$E$18*$G50)/2000),IF($F$8='Data Validation'!$B$38,(($E$18*$G50)/2000),0)) -> 0
B51: Naphthalene | G51: =IF($E$5=rd,IF($E$7>=600,'Engine Emission Factors'!$C34,'Engine Emission Factors'!$B34),IF($E$5=rg,'Engine Emission Factors'!$E34,IF($E$5=tng,'Engine Emission Factors'!$D34,IF($E$5=ngr,'Engine Emission Factors'!$F34,IF($E$5=ngl,'Engine Emission Factors'!$G34,IF($E$5=ng2l,'Engine Emission Factors'!$H34,IF($E$5=select,'Engine Emission Factors'!$I34))))))) -> 0 | H51: 0 | I51: =IF(OR($F$8='Data Validation'!$B$39,'Data Validation'!$B$40),(($D$18*$E$18*$G51)/2000),IF($F$8='Data Validation'!$B$38,(($E$18*$G51)/2000),0)) -> 0
B52: PAH | G52: =IF($E$5=rd,IF($E$7>=600,'Engine Emission Factors'!$C35,'Engine Emission Factors'!$B35),IF($E$5=rg,'Engine Emission Factors'!$E35,IF($E$5=tng,'Engine Emission Factors'!$D35,IF($E$5=ngr,'Engine Emission Factors'!$F35,IF($E$5=ngl,'Engine Emission Factors'!$G35,IF($E$5=ng2l,'Engine Emission Factors'!$H35,IF($E$5=select,'Engine Emission Factors'!$I35))))))) -> 0 | H52: 0 | I52: =IF(OR($F$8='Data Validation'!$B$39,'Data Validation'!$B$40),(($D$18*$E$18*$G52)/2000),IF($F$8='Data Validation'!$B$38,(($E$18*$G52)/2000),0)) -> 0
B53: Phenol | G53: =IF($E$5=rd,IF($E$7>=600,'Engine Emission Factors'!$C36,'Engine Emission Factors'!$B36),IF($E$5=rg,'Engine Emission Factors'!$E36,IF($E$5=tng,'Engine Emission Factors'!$D36,IF($E$5=ngr,'Engine Emission Factors'!$F36,IF($E$5=ngl,'Engine Emission Factors'!$G36,IF($E$5=ng2l,'Engine Emission Factors'!$H36,IF($E$5=select,'Engine Emission Factors'!$I36))))))) -> 0 | H53: 0 | I53: =IF(OR($F$8='Data Validation'!$B$39,'Data Validation'!$B$40),(($D$18*$E$18*$G53)/2000),IF($F$8='Data Validation'!$B$38,(($E$18*$G53)/2000),0)) -> 0
B54: Styrene | G54: =IF($E$5=rd,IF($E$7>=600,'Engine Emission Factors'!$C37,'Engine Emission Factors'!$B37),IF($E$5=rg,'Engine Emission Factors'!$E37,IF($E$5=tng,'Engine Emission Factors'!$D37,IF($E$5=ngr,'Engine Emission Factors'!$F37,IF($E$5=ngl,'Engine Emission Factors'!$G37,IF($E$5=ng2l,'Engine Emission Factors'!$H37,IF($E$5=select,'Engine Emission Factors'!$I37))))))) -> 0 | H54: 0 | I54: =IF(OR($F$8='Data Validation'!$B$39,'Data Validation'!$B$40),(($D$18*$E$18*$G54)/2000),IF($F$8='Data Validation'!$B$38,(($E$18*$G54)/2000),0)) -> 0
B55: Tetrachloroethane | G55: =IF($E$5=rd,IF($E$7>=600,'Engine Emission Factors'!$C38,'Engine Emission Factors'!$B38),IF($E$5=rg,'Engine Emission Factors'!$E38,IF($E$5=tng,'Engine Emission Factors'!$D38,IF($E$5=ngr,'Engine Emission Factors'!$F38,IF($E$5=ngl,'Engine Emission Factors'!$G38,IF($E$5=ng2l,'Engine Emission Factors'!$H38,IF($E$5=select,'Engine Emission Factors'!$I38))))))) -> 0 | H55: 0 | I55: =IF(OR($F$8='Data Validation'!$B$39,'Data Validation'!$B$40),(($D$18*$E$18*$G55)/2000),IF($F$8='Data Validation'!$B$38,(($E$18*$G55)/2000),0)) -> 0
B56: Toluene | G56: =IF($E$5=rd,IF($E$7>=600,'Engine Emission Factors'!$C39,'Engine Emission Factors'!$B39),IF($E$5=rg,'Engine Emission Factors'!$E39,IF($E$5=tng,'Engine Emission Factors'!$D39,IF($E$5=ngr,'Engine Emission Factors'!$F39,IF($E$5=ngl,'Engine Emission Factors'!$G39,IF($E$5=ng2l,'Engine Emission Factors'!$H39,IF($E$5=select,'Engine Emission Factors'!$I39))))))) -> 0 | H56: 0 | I56: =IF(OR($F$8='Data Validation'!$B$39,'Data Validation'!$B$40),(($D$18*$E$18*$G56)/2000),IF($F$8='Data Validation'!$B$38,(($E$18*$G56)/2000),0)) -> 0
B57: Vinyl chloride | G57: =IF($E$5=rd,IF($E$7>=600,'Engine Emission Factors'!$C40,'Engine Emission Factors'!$B40),IF($E$5=rg,'Engine Emission Factors'!$E40,IF($E$5=tng,'Engine Emission Factors'!$D40,IF($E$5=ngr,'Engine Emission Factors'!$F40,IF($E$5=ngl,'Engine Emission Factors'!$G40,IF($E$5=ng2l,'Engine Emission Factors'!$H40,IF($E$5=select,'Engine Emission Factors'!$I40))))))) -> 0 | H57: 0 | I57: =IF(OR($F$8='Data Validation'!$B$39,'Data Validation'!$B$40),(($D$18*$E$18*$G57)/2000),IF($F$8='Data Validation'!$B$38,(($E$18*$G57)/2000),0)) -> 0
B58: Xylene | G58: =IF($E$5=rd,IF($E$7>=600,'Engine Emission Factors'!$C41,'Engine Emission Factors'!$B41),IF($E$5=rg,'Engine Emission Factors'!$E41,IF($E$5=tng,'Engine Emission Factors'!$D41,IF($E$5=ngr,'Engine Emission Factors'!$F41,IF($E$5=ngl,'Engine Emission Factors'!$G41,IF($E$5=ng2l,'Engine Emission Factors'!$H41,IF($E$5=select,'Engine Emission Factors'!$I41))))))) -> 0 | H58: 0 | I58: =IF(OR($F$8='Data Validation'!$B$39,'Data Validation'!$B$40),(($D$18*$E$18*$G58)/2000),IF($F$8='Data Validation'!$B$38,(($E$18*$G58)/2000),0)) -> 0
F59: HAP total | H59: =SUM(H34:H58) -> 0 | I59: =SUM(I34:I58) -> 0
B60: 1 Global Warming Potential from 40 CFR Part 98, Subpart A, Table A-1 | F60: 4 See information on insignificant activities at Minn. R. 7007.1300 and on the 'Permits & Requirements' tab.
B61: 2 CO2e = carbon dioxide equivalents
B62: 3 Routine = 24 hr/day * 365 day/yr or 8760 hr/yr; Emergency = 500 hr/yr | F62: Minn. R. 7007.1300

Sheet Potential Emissions
B1: =Instructions!O4 -> p-sbap5-25 • 9/3/19
B2: Potential emissions: Engines
B3: =IF('Data Validation'!B27="yes","The flag next to a potential emission total means your potential emissions exceed the permitting threshold and a permit is required.","These pollutant totals represent the information you entered on the blue tabs.") -> These pollutant totals represent the information you entered on the blue tabs.
B4: Pollutant | C4: ='Engine 1'!$I$5 -> Engine 1 | D4: ='Engine 2'!$I$5 -> Engine 2 | E4: ='Engine 3'!$I$5 -> Engine 3 | F4: ='Engine 4'!$I$5 -> Engine 4 | G4: ='Engine 5'!$I$5 -> Engine 5 | H4: Potential Emissions | I4: Permitting Threshold
C5: (ton/yr) | D5: (ton/yr) | E5: (ton/yr) | F5: (ton/yr) | G5: (ton/yr) | H5: (ton/yr) | I5: (ton/yr)
B6: Criteria Air Pollutants | C6: =IF('Engine 1'!$J$19=6,"Insignificant","") -> Insignificant | D6: =IF('Engine 2'!$J$19=6,"Insignificant","") -> Insignificant | E6: =IF('Engine 3'!$J$19=6,"Insignificant","") -> Insignificant | F6: =IF('Engine 4'!$J$19=6,"Insignificant","") -> Insignificant | G6: =IF('Engine 5'!$J$19=6,"Insignificant","") -> Insignificant
B7: PM | C7: ='Engine 1'!$H20 -> 0 | D7: ='Engine 2'!$H20 -> 0 | E7: ='Engine 3'!$H20 -> 0 | F7: ='Engine 4'!$H20 -> 0 | G7: ='Engine 5'!$H20 -> 0 | H7: =SUM(C7:G7) -> 0 | I7: 100
B8: PM10 | C8: ='Engine 1'!$H21 -> 0 | D8: ='Engine 2'!$H21 -> 0 | E8: ='Engine 3'!$H21 -> 0 | F8: ='Engine 4'!$H21 -> 0 | G8: ='Engine 5'!$H21 -> 0 | H8: =SUM(C8:G8) -> 0 | I8: 25
B9: PM2.5 | C9: ='Engine 1'!$H22 -> 0 | D9: ='Engine 2'!$H22 -> 0 | E9: ='Engine 3'!$H22 -> 0 | F9: ='Engine 4'!$H22 -> 0 | G9: ='Engine 5'!$H22 -> 0 | H9: 0 | I9: 100
B10: SOx | C10: ='Engine 1'!$H23 -> 0 | D10: ='Engine 2'!$H23 -> 0 | E10: ='Engine 3'!$H23 -> 0 | F10: ='Engine 4'!$H23 -> 0 | G10: ='Engine 5'!$H23 -> 0 | H10: 0 | I10: 50
B11: NOx | C11: ='Engine 1'!$H24 -> 0 | D11: ='Engine 2'!$H24 -> 0 | E11: ='Engine 3'!$H24 -> 0 | F11: ='Engine 4'!$H24 -> 0 | G11: ='Engine 5'!$H24 -> 0 | H11: 0 | I11: 100
B12: VOC | C12: ='Engine 1'!$H25 -> 0 | D12: ='Engine 2'!$H25 -> 0 | E12: ='Engine 3'!$H25 -> 0 | F12: ='Engine 4'!$H25 -> 0 | G12: ='Engine 5'!$H25 -> 0 | H12: 0 | I12: 100
B13: CO | C13: ='Engine 1'!$H26 -> 0 | D13: ='Engine 2'!$H26 -> 0 | E13: ='Engine 3'!$H26 -> 0 | F13: ='Engine 4'!$H26 -> 0 | G13: ='Engine 5'!$H26 -> 0 | H13: 0 | I13: 100
B14: Lead | C14: ='Engine 1'!$H27 -> 0 | D14: ='Engine 2'!$H27 -> 0 | E14: ='Engine 3'!$H27 -> 0 | F14: ='Engine 4'!$H27 -> 0 | G14: ='Engine 5'!$H27 -> 0 | H14: 0 | I14: 0.5
B15: Greenhouse Gas Emissions
B16: CO2 | C16: ='Engine 1'!$H29 -> 0 | D16: ='Engine 2'!$H29 -> 0 | E16: ='Engine 3'!$H29 -> 0 | F16: ='Engine 4'!$H29 -> 0 | G16: ='Engine 5'!$H29 -> 0 | H16: 0
B17: CH4 | C17: ='Engine 1'!$H30 -> 0 | D17: ='Engine 2'!$H30 -> 0 | E17: ='Engine 3'!$H30 -> 0 | F17: ='Engine 4'!$H30 -> 0 | G17: ='Engine 5'!$H30 -> 0 | H17: 0
B18: N2O | C18: ='Engine 1'!$H31 -> 0 | D18: ='Engine 2'!$H31 -> 0 | E18: ='Engine 3'!$H31 -> 0 | F18: ='Engine 4'!$H31 -> 0 | G18: ='Engine 5'!$H31 -> 0 | H18: 0
B19: GHG total CO2e | H19: =(H16*1)+(H17*25)+(H18*298) -> 0 | I19: 100000
B20: Hazardous Air Pollutants
B21: 1,1,2,2-tetrachloroethane | C21: ='Engine 1'!$H34 -> 0 | D21: ='Engine 2'!$H34 -> 0 | E21: ='Engine 3'!$H34 -> 0 | F21: ='Engine 4'!$H34 -> 0 | G21: ='Engine 5'!$H34 -> 0 | H21: =SUM(C21:G21) -> 0
B22: 1,1,2-trichloroethane | C22: ='Engine 1'!$H35 -> 0 | D22: ='Engine 2'!$H35 -> 0 | E22: ='Engine 3'!$H35 -> 0 | F22: ='Engine 4'!$H35 -> 0 | G22: ='Engine 5'!$H35 -> 0 | H22: =SUM(C22:G22) -> 0
B23: 1,3-butadiene | C23: ='Engine 1'!$H36 -> 0 | D23: ='Engine 2'!$H36 -> 0 | E23: ='Engine 3'!$H36 -> 0 | F23: ='Engine 4'!$H36 -> 0 | G23: ='Engine 5'!$H36 -> 0 | H23: 0
B24: 1,3-dichloropropene | C24: ='Engine 1'!$H37 -> 0 | D24: ='Engine 2'!$H37 -> 0 | E24: ='Engine 3'!$H37 -> 0 | F24: ='Engine 4'!$H37 -> 0 | G24: ='Engine 5'!$H37 -> 0 | H24: 0
B25: Acetaldehyde | C25: ='Engine 1'!$H38 -> 0 | D25: ='Engine 2'!$H38 -> 0 | E25: ='Engine 3'!$H38 -> 0 | F25: ='Engine 4'!$H38 -> 0 | G25: ='Engine 5'!$H38 -> 0 | H25: 0
B26: Acrolein | C26: ='Engine 1'!$H39 -> 0 | D26: ='Engine 2'!$H39 -> 0 | E26: ='Engine 3'!$H39 -> 0 | F26: ='Engine 4'!$H39 -> 0 | G26: ='Engine 5'!$H39 -> 0 | H26: 0
B27: Benzene | C27: ='Engine 1'!$H40 -> 0 | D27: ='Engine 2'!$H40 -> 0 | E27: ='Engine 3'!$H40 -> 0 | F27: ='Engine 4'!$H40 -> 0 | G27: ='Engine 5'!$H40 -> 0 | H27: 0
B28: Biphenyl | C28: ='Engine 1'!$H41 -> 0 | D28: ='Engine 2'!$H41 -> 0 | E28: ='Engine 3'!$H41 -> 0 | F28: ='Engine 4'!$H41 -> 0 | G28: ='Engine 5'!$H41 -> 0 | H28: 0
B29: Carbon tetrachloride | C29: ='Engine 1'!$H42 -> 0 | D29: ='Engine 2'!$H42 -> 0 | E29: ='Engine 3'!$H42 -> 0 | F29: ='Engine 4'!$H42 -> 0 | G29: ='Engine 5'!$H42 -> 0 | H29: 0
B30: Chlorobenzene | C30: ='Engine 1'!$H43 -> 0 | D30: ='Engine 2'!$H43 -> 0 | E30: ='Engine 3'!$H43 -> 0 | F30: ='Engine 4'!$H43 -> 0 | G30: ='Engine 5'!$H43 -> 0 | H30: 0
B31: Chloroform | C31: ='Engine 1'!$H44 -> 0 | D31: ='Engine 2'!$H44 -> 0 | E31: ='Engine 3'!$H44 -> 0 | F31: ='Engine 4'!$H44 -> 0 | G31: ='Engine 5'!$H44 -> 0 | H31: 0
B32: Ethylbenzene | C32: ='Engine 1'!$H45 -> 0 | D32: ='Engine 2'!$H45 -> 0 | E32: ='Engine 3'!$H45 -> 0 | F32: ='Engine 4'!$H45 -> 0 | G32: ='Engine 5'!$H45 -> 0 | H32: 0
B33: Ethylene dibromide | C33: ='Engine 1'!$H46 -> 0 | D33: ='Engine 2'!$H46 -> 0 | E33: ='Engine 3'!$H46 -> 0 | F33: ='Engine 4'!$H46 -> 0 | G33: ='Engine 5'!$H46 -> 0 | H33: 0
B34: Formaldehyde | C34: ='Engine 1'!$H47 -> 0 | D34: ='Engine 2'!$H47 -> 0 | E34: ='Engine 3'!$H47 -> 0 | F34: ='Engine 4'!$H47 -> 0 | G34: ='Engine 5'!$H47 -> 0 | H34: 0
B35: Hexane | C35: ='Engine 1'!$H48 -> 0 | D35: ='Engine 2'!$H48 -> 0 | E35: ='Engine 3'!$H48 -> 0 | F35: ='Engine 4'!$H48 -> 0 | G35: ='Engine 5'!$H48 -> 0 | H35: 0
B36: Methanol | C36: ='Engine 1'!$H49 -> 0 | D36: ='Engine 2'!$H49 -> 0 | E36: ='Engine 3'!$H49 -> 0 | F36: ='Engine 4'!$H49 -> 0 | G36: ='Engine 5'!$H49 -> 0 | H36: 0
B37: Methylene chloride | C37: ='Engine 1'!$H50 -> 0 | D37: ='Engine 2'!$H50 -> 0 | E37: ='Engine 3'!$H50 -> 0 | F37: ='Engine 4'!$H50 -> 0 | G37: ='Engine 5'!$H50 -> 0 | H37: 0
B38: Naphthalene | C38: ='Engine 1'!$H51 -> 0 | D38: ='Engine 2'!$H51 -> 0 | E38: ='Engine 3'!$H51 -> 0 | F38: ='Engine 4'!$H51 -> 0 | G38: ='Engine 5'!$H51 -> 0 | H38: 0
B39: PAH | C39: ='Engine 1'!$H52 -> 0 | D39: ='Engine 2'!$H52 -> 0 | E39: ='Engine 3'!$H52 -> 0 | F39: ='Engine 4'!$H52 -> 0 | G39: ='Engine 5'!$H52 -> 0 | H39: 0
B40: Phenol | C40: ='Engine 1'!$H53 -> 0 | D40: ='Engine 2'!$H53 -> 0 | E40: ='Engine 3'!$H53 -> 0 | F40: ='Engine 4'!$H53 -> 0 | G40: ='Engine 5'!$H53 -> 0 | H40: 0
B41: Styrene | C41: ='Engine 1'!$H54 -> 0 | D41: ='Engine 2'!$H54 -> 0 | E41: ='Engine 3'!$H54 -> 0 | F41: ='Engine 4'!$H54 -> 0 | G41: ='Engine 5'!$H54 -> 0 | H41: 0
B42: Tetrachloroethane | C42: ='Engine 1'!$H55 -> 0 | D42: ='Engine 2'!$H55 -> 0 | E42: ='Engine 3'!$H55 -> 0 | F42: ='Engine 4'!$H55 -> 0 | G42: ='Engine 5'!$H55 -> 0 | H42: 0
B43: Toluene | C43: ='Engine 1'!$H56 -> 0 | D43: ='Engine 2'!$H56 -> 0 | E43: ='Engine 3'!$H56 -> 0 | F43: ='Engine 4'!$H56 -> 0 | G43: ='Engine 5'!$H56 -> 0 | H43: 0
B44: Vinyl chloride | C44: ='Engine 1'!$H57 -> 0 | D44: ='Engine 2'!$H57 -> 0 | E44: ='Engine 3'!$H57 -> 0 | F44: ='Engine 4'!$H57 -> 0 | G44: ='Engine 5'!$H57 -> 0 | H44: 0
B45: Xylene | C45: ='Engine 1'!$H58 -> 0 | D45: ='Engine 2'!$H58 -> 0 | E45: ='Engine 3'!$H58 -> 0 | F45: ='Engine 4'!$H58 -> 0 | G45: ='Engine 5'!$H58 -> 0 | H45: 0
B46: HAP Indiv. Max | C46: =IF(H46=H21,B21,IF(H46=H22,B22,IF(H46=H23,B23,IF(H46=H24,B24,IF(H46=H25,B25,IF(H46=H26,B26,IF(H46=H27,B27,IF(H46=H28,B28,IF(H46=H29,B29,IF(H46=H30,B30,IF(H46=H31,B31,IF(H46=H32,B32,IF(H46=H33,B33,IF(H46=H34,B34,IF(H46=H35,B35,IF(H46=H36,B36,IF(H46=H37,B37,IF(H46=H38,B38,IF(H46=H39,B39,IF(H46=H40,B40,IF(H46=H41,B41,IF(H46=H42,B42,IF(H46=H43,B43,IF(H46=H44,B44,IF(H46=H45,B45))))))))))))))))))))))))) -> 1,1,2,2-tetrachloroethane | H46: =MAX(H21:H45) -> 0 | I46: 10
B47: HAP total | H47: =SUM(H21:H45) -> 0 | I47: 25

Sheet Actual Emissions
B1: =Instructions!O4 -> p-sbap5-25 • 9/3/19
B2: Actual emissions: Engines
B3: =IF('Data Validation'!B30="yes","The flag next to your actual emissions total indicates that your business exceeds the Option D limit and an individual permit is required.","These pollutant totals represent the information you entered on the blue tabs.") -> These pollutant totals represent the information you entered on the blue tabs.
B4: Pollutant | C4: Engine 1 | D4: Engine 2 | E4: Engine 3 | F4: Engine 4 | G4: Engine 5 | H4: Actual Emissions | I4: Opt. D Permit Limits
C5: (ton/yr) | D5: (ton/yr) | E5: (ton/yr) | F5: (ton/yr) | G5: (ton/yr) | H5: (ton/yr) | I5: (ton/yr)
B6: Criteria Air Pollutants
B7: PM | C7: ='Engine 1'!$I20 -> 0 | D7: ='Engine 2'!$I20 -> 0 | E7: ='Engine 3'!$I20 -> 0 | F7: ='Engine 4'!$I20 -> 0 | G7: ='Engine 5'!$I20 -> 0 | H7: =SUM(C7:G7) -> 0 | I7: 50
B8: PM10 | C8: ='Engine 1'!$I21 -> 0 | D8: ='Engine 2'!$I21 -> 0 | E8: ='Engine 3'!$I21 -> 0 | F8: ='Engine 4'!$I21 -> 0 | G8: ='Engine 5'!$I21 -> 0 | H8: =SUM(C8:G8) -> 0 | I8: 50
B9: PM2.5 | C9: ='Engine 1'!$I22 -> 0 | D9: ='Engine 2'!$I22 -> 0 | E9: ='Engine 3'!$I22 -> 0 | F9: ='Engine 4'!$I22 -> 0 | G9: ='Engine 5'!$I22 -> 0 | H9: 0 | I9: 50
B10: SOx | C10: ='Engine 1'!$I23 -> 0 | D10: ='Engine 2'!$I23 -> 0 | E10: ='Engine 3'!$I23 -> 0 | F10: ='Engine 4'!$I23 -> 0 | G10: ='Engine 5'!$I23 -> 0 | H10: 0 | I10: 50
B11: NOx | C11: ='Engine 1'!$I24 -> 0 | D11: ='Engine 2'!$I24 -> 0 | E11: ='Engine 3'!$I24 -> 0 | F11: ='Engine 4'!$I24 -> 0 | G11: ='Engine 5'!$I24 -> 0 | H11: 0 | I11: 50
B12: VOC | C12: ='Engine 1'!$I25 -> 0 | D12: ='Engine 2'!$I25 -> 0 | E12: ='Engine 3'!$I25 -> 0 | F12: ='Engine 4'!$I25 -> 0 | G12: ='Engine 5'!$I25 -> 0 | H12: 0 | I12: 50
B13: CO | C13: ='Engine 1'!$I26 -> 0 | D13: ='Engine 2'!$I26 -> 0 | E13: ='Engine 3'!$I26 -> 0 | F13: ='Engine 4'!$I26 -> 0 | G13: ='Engine 5'!$I26 -> 0 | H13: 0 | I13: 50
B14: Lead | C14: ='Engine 1'!$I27 -> 0 | D14: ='Engine 2'!$I27 -> 0 | E14: ='Engine 3'!$I27 -> 0 | F14: ='Engine 4'!$I27 -> 0 | G14: ='Engine 5'!$I27 -> 0 | H14: 0 | I14: 0.5
B15: Greenhouse Gas Emissions
B16: CO2 | C16: ='Engine 1'!$I29 -> 0 | D16: ='Engine 2'!$I29 -> 0 | E16: ='Engine 3'!$I29 -> 0 | F16: ='Engine 4'!$I29 -> 0 | G16: ='Engine 5'!$I29 -> 0 | H16: =SUM(C16:G16) -> 0
B17: CH4 | C17: ='Engine 1'!$I30 -> 0 | D17: ='Engine 2'!$I30 -> 0 | E17: ='Engine 3'!$I30 -> 0 | F17: ='Engine 4'!$I30 -> 0 | G17: ='Engine 5'!$I30 -> 0 | H17: 0
B18: N2O | C18: ='Engine 1'!$I31 -> 0 | D18: ='Engine 2'!$I31 -> 0 | E18: ='Engine 3'!$I31 -> 0 | F18: ='Engine 4'!$I31 -> 0 | G18: ='Engine 5'!$I31 -> 0 | H18: 0
B19: GHG Total CO2e | H19: 0 | I19: 50000
B20: Hazardous Air Pollutants
B21: 1,1,2,2-tetrachloroethane | C21: ='Engine 1'!$I34 -> 0 | D21: ='Engine 2'!$I34 -> 0 | E21: ='Engine 3'!$I34 -> 0 | F21: ='Engine 4'!$I34 -> 0 | G21: ='Engine 5'!$I34 -> 0 | H21: =SUM(C21:G21) -> 0
B22: 1,1,2-trichloroethane | C22: ='Engine 1'!$I35 -> 0 | D22: ='Engine 2'!$I35 -> 0 | E22: ='Engine 3'!$I35 -> 0 | F22: ='Engine 4'!$I35 -> 0 | G22: ='Engine 5'!$I35 -> 0 | H22: =SUM(C22:G22) -> 0
B23: 1,3-butadiene | C23: ='Engine 1'!$I36 -> 0 | D23: ='Engine 2'!$I36 -> 0 | E23: ='Engine 3'!$I36 -> 0 | F23: ='Engine 4'!$I36 -> 0 | G23: ='Engine 5'!$I36 -> 0 | H23: 0
B24: 1,3-dichloropropene | C24: ='Engine 1'!$I37 -> 0 | D24: ='Engine 2'!$I37 -> 0 | E24: ='Engine 3'!$I37 -> 0 | F24: ='Engine 4'!$I37 -> 0 | G24: ='Engine 5'!$I37 -> 0 | H24: 0
B25: Acetaldehyde | C25: ='Engine 1'!$I38 -> 0 | D25: ='Engine 2'!$I38 -> 0 | E25: ='Engine 3'!$I38 -> 0 | F25: ='Engine 4'!$I38 -> 0 | G25: ='Engine 5'!$I38 -> 0 | H25: 0
B26: Acrolein | C26: ='Engine 1'!$I39 -> 0 | D26: ='Engine 2'!$I39 -> 0 | E26: ='Engine 3'!$I39 -> 0 | F26: ='Engine 4'!$I39 -> 0 | G26: ='Engine 5'!$I39 -> 0 | H26: 0
B27: Benzene | C27: ='Engine 1'!$I40 -> 0 | D27: ='Engine 2'!$I40 -> 0 | E27: ='Engine 3'!$I40 -> 0 | F27: ='Engine 4'!$I40 -> 0 | G27: ='Engine 5'!$I40 -> 0 | H27: 0
B28: Biphenyl | C28: ='Engine 1'!$I41 -> 0 | D28: ='Engine 2'!$I41 -> 0 | E28: ='Engine 3'!$I41 -> 0 | F28: ='Engine 4'!$I41 -> 0 | G28: ='Engine 5'!$I41 -> 0 | H28: 0
B29: Carbon tetrachloride | C29: ='Engine 1'!$I42 -> 0 | D29: ='Engine 2'!$I42 -> 0 | E29: ='Engine 3'!$I42 -> 0 | F29: ='Engine 4'!$I42 -> 0 | G29: ='Engine 5'!$I42 -> 0 | H29: 0
B30: Chlorobenzene | C30: ='Engine 1'!$I43 -> 0 | D30: ='Engine 2'!$I43 -> 0 | E30: ='Engine 3'!$I43 -> 0 | F30: ='Engine 4'!$I43 -> 0 | G30: ='Engine 5'!$I43 -> 0 | H30: 0
B31: Chloroform | C31: ='Engine 1'!$I44 -> 0 | D31: ='Engine 2'!$I44 -> 0 | E31: ='Engine 3'!$I44 -> 0 | F31: ='Engine 4'!$I44 -> 0 | G31: ='Engine 5'!$I44 -> 0 | H31: 0
B32: Ethylbenzene | C32: ='Engine 1'!$I45 -> 0 | D32: ='Engine 2'!$I45 -> 0 | E32: ='Engine 3'!$I45 -> 0 | F32: ='Engine 4'!$I45 -> 0 | G32: ='Engine 5'!$I45 -> 0 | H32: 0
B33: Ethylene dibromide | C33: ='Engine 1'!$I46 -> 0 | D33: ='Engine 2'!$I46 -> 0 | E33: ='Engine 3'!$I46 -> 0 | F33: ='Engine 4'!$I46 -> 0 | G33: ='Engine 5'!$I46 -> 0 | H33: 0
B34: Formaldehyde | C34: ='Engine 1'!$I47 -> 0 | D34: ='Engine 2'!$I47 -> 0 | E34: ='Engine 3'!$I47 -> 0 | F34: ='Engine 4'!$I47 -> 0 | G34: ='Engine 5'!$I47 -> 0 | H34: 0
B35: Hexane | C35: ='Engine 1'!$I48 -> 0 | D35: ='Engine 2'!$I48 -> 0 | E35: ='Engine 3'!$I48 -> 0 | F35: ='Engine 4'!$I48 -> 0 | G35: ='Engine 5'!$I48 -> 0 | H35: 0
B36: Methanol | C36: ='Engine 1'!$I49 -> 0 | D36: ='Engine 2'!$I49 -> 0 | E36: ='Engine 3'!$I49 -> 0 | F36: ='Engine 4'!$I49 -> 0 | G36: ='Engine 5'!$I49 -> 0 | H36: 0
B37: Methylene chloride | C37: ='Engine 1'!$I50 -> 0 | D37: ='Engine 2'!$I50 -> 0 | E37: ='Engine 3'!$I50 -> 0 | F37: ='Engine 4'!$I50 -> 0 | G37: ='Engine 5'!$I50 -> 0 | H37: 0
B38: Naphthalene | C38: ='Engine 1'!$I51 -> 0 | D38: ='Engine 2'!$I51 -> 0 | E38: ='Engine 3'!$I51 -> 0 | F38: ='Engine 4'!$I51 -> 0 | G38: ='Engine 5'!$I51 -> 0 | H38: 0
B39: PAH | C39: ='Engine 1'!$I52 -> 0 | D39: ='Engine 2'!$I52 -> 0 | E39: ='Engine 3'!$I52 -> 0 | F39: ='Engine 4'!$I52 -> 0 | G39: ='Engine 5'!$I52 -> 0 | H39: 0
B40: Phenol | C40: ='Engine 1'!$I53 -> 0 | D40: ='Engine 2'!$I53 -> 0 | E40: ='Engine 3'!$I53 -> 0 | F40: ='Engine 4'!$I53 -> 0 | G40: ='Engine 5'!$I53 -> 0 | H40: 0
B41: Styrene | C41: ='Engine 1'!$I54 -> 0 | D41: ='Engine 2'!$I54 -> 0 | E41: ='Engine 3'!$I54 -> 0 | F41: ='Engine 4'!$I54 -> 0 | G41: ='Engine 5'!$I54 -> 0 | H41: 0
B42: Tetrachloroethane | C42: ='Engine 1'!$I55 -> 0 | D42: ='Engine 2'!$I55 -> 0 | E42: ='Engine 3'!$I55 -> 0 | F42: ='Engine 4'!$I55 -> 0 | G42: ='Engine 5'!$I55 -> 0 | H42: 0
B43: Toluene | C43: ='Engine 1'!$I56 -> 0 | D43: ='Engine 2'!$I56 -> 0 | E43: ='Engine 3'!$I56 -> 0 | F43: ='Engine 4'!$I56 -> 0 | G43: ='Engine 5'!$I56 -> 0 | H43: 0
B44: Vinyl chloride | C44: ='Engine 1'!$I57 -> 0 | D44: ='Engine 2'!$I57 -> 0 | E44: ='Engine 3'!$I57 -> 0 | F44: ='Engine 4'!$I57 -> 0 | G44: ='Engine 5'!$I57 -> 0 | H44: 0
B45: Xylene | C45: ='Engine 1'!$I58 -> 0 | D45: ='Engine 2'!$I58 -> 0 | E45: ='Engine 3'!$I58 -> 0 | F45: ='Engine 4'!$I58 -> 0 | G45: ='Engine 5'!$I58 -> 0 | H45: 0
B46: HAP Indiv. Max | C46: =IF(H46=H21,B21,IF(H46=H22,B22,IF(H46=H23,B23,IF(H46=H24,B24,IF(H46=H25,B25,IF(H46=H26,B26,IF(H46=H27,B27,IF(H46=H28,B28,IF(H46=H29,B29,IF(H46=H30,B30,IF(H46=H31,B31,IF(H46=H32,B32,IF(H46=H33,B33,IF(H46=H34,B34,IF(H46=H35,B35,IF(H46=H36,B36,IF(H46=H37,B37,IF(H46=H38,B38,IF(H46=H39,B39,IF(H46=H40,B40,IF(H46=H41,B41,IF(H46=H42,B42,IF(H46=H43,B43,IF(H46=H44,B44,IF(H46=H45,B45))))))))))))))))))))))))) -> 1,1,2,2-tetrachloroethane | H46: =MAX(H21:H45) -> 0 | I46: 5
B47: HAP total | H47: =SUM(H21:H45) -> 0 | I47: 12.5

Sheet Permits & Requirements
B1: =Instructions!O4 -> p-sbap5-25 • 9/3/19
B2: Permits and requirements
B3: The need for a permit is based on your entire business's potential air emissions. All activities that put pollutants into the air (including paint and solvent use, woodworking, metalworking) need to be assessed in addition to the engines included in this calculator. Once you determine if you need a permit, based on whether an NSPS applies and your total potential emissions, you can then use your actual emissions to see which permit is the best fit for your business.
B6: Content below is based on the information entered into this calculator and is not an official MPCA permit determination.
B9: Is a permit required? | F9: What type of permit? Assumes all air pollutant activities are entered into this calculator. If you have additional air emission sources, the recommendation below cannot be used. You must assess your facility's total potential emissions from all sources to identify your permitting needs.
B10: The summary below is based on information you entered in the blue tabs.
B11: Your business's potential emissions from engines | C11: Your business's actual emissions from engines | D11: A federal NSPS for engines | E11: A federal NESHAP for engines
B14: =IF('Data Validation'!B27="yes","does","does not") -> does not | C14: =IF('Data Validation'!B30="yes","does","does not") -> does not | D14: =IF('Data Validation'!B11>0,"no response, go to Federal Standards tab",IF(AND('Data Validation'!B11=0,'Data Validation'!B6>0),"does","does not")) -> no response, go to Federal Standards tab | E14: =IF('Data Validation'!B21>0,"no response, go to Federal Standards tab",IF(AND('Data Validation'!B21=0,'Data Validation'!B16>0),"does","does not")) -> no response, go to Federal Standards tab
B16: exceed permit thresholds | C16: exceed Option D limits | D16: apply to your business | E16: apply to your business
B18: Potential emissions from engines exceeds permit thresholds | C18: Actual emissions from engines exceeds Option D limits | D18: Federal NSPS for engines applies? | E18: Federal NESHAP for engines applies? | F18: Which permit do you need? | H18: More Information | I18: Forms
B19: no | C19: n/a | D19: Applicability of NSPS IIII or JJJJ does not1 indicate a need for a permit as provided by | E19: Applicability of a NESHAP does not determine if a permit is required. | F19: Below permit thresholds | H19: n/a | I19: n/a
B21: yes | C21: no | F21: Registration Option D | H21: Info about Air Registration Permits | I21: Application Forms, scroll to Section 3
B23: yes | C23: yes | F23: Other state or federal permit | H23: Info about Air Permits | I23: Application Forms, scroll to Section 1
D24: Minn. R. 7007.0300
B25: 1 If your engine did not rely on performance testing to demonstrate NSPS compliance and any compression ignition engines are less than 30 liters per cylinder.
B27: Types of insignificant activities | D27: Minn. R. 7007.1300
B28: subp. 2 | C28: Not required to be listed.
B29: supb. 3 | C29: Required to be listed but emissions do not need to be included in total facility emission calculations, unless requested by MPCA.
B30: subp. 4 | C30: Required to be listed if applying for a Part 70 (Federal permit or federally enforceable permit limits) but emissions do not need to be included in total facility emission calculations, unless requested by MPCA.
B32: If emissions units listed in 7007.1300 are subject to additional requirements under section 114(a)(3) of the act (Monitoring Requirements) or section 112 of the act (Hazardous Air Pollutants), or if part of a title I modification, or, if accounted for, make a stationary source subject to a part 70 permit, emissions from the emissions units must be calculated in the permit application.
B35: If all emission points are insignificant and total emissions do not exceed permitting thresholds, a permit is not required. Comply with any applicable regulations.
B38: Stack Height Determination
B39: Required if: | C39: 1) Installing a non-emergency engine, including insignificant activities, or
C40: 2) There are existing non-emergency engines installed after January 1, 2000, or
C41: 3) Installing any permit-required engine, including emergency engines.
B42: How: | C42: Use the EPA SCREEN3 program to enter engine and site-specific information to identify the necessary stack height for the engine at:
C43: https://www.epa.gov/scram/air-quality-dispersion-modeling-screening-models#screen3
C44: See input requirements and instructions on modeling more than one engine on the MPCA Form EC-03.
C45: https://www.pca.state.mn.us/sites/default/files/aq-f1-ec03.doc
B46: Resource: | C46: MPCA air permits webpage for engines at: | E46: https://www.pca.state.mn.us/air/engines

Sheet Engine Emission Factors
A1: =Instructions!O4 -> p-sbap5-25 • 9/3/19
A2: Engine emission factors
B3: RECIPROCATING ENGINES (<600HP) DIESEL (lb/MMBtu) | C3: RECIPROCATING ENGINES (>=600HP) DIESEL (lb/MMBtu)1 | D3: TURBINE ENGINES (electrical generation) NATURAL GAS (lb/MMBtu)1 | E3: RECIPROCATING GASOLINE (lb/MMBtu)2 | F3: RECIPROCATING Natural Gas 4-Stroke Rich-Burn (lb/MMBtu) | G3: RECIPROCATING Natural Gas 4-Stroke Lean-Burn (lb/MMBtu) | H3: RECIPROCATING Natural Gas 2-Stroke Lean-Burn (lb/MMBtu)
A4: source | B4: AP42 Chpt 3.3 (10/96) | C4: AP42 Chpt 3.4 (10/96) | D4: AP42 Chpt 3.1 (4/00) | E4: AP42 Chpt 3.3 (10/96) | F4: AP42 Chpt 3.2-3 (7/00) | G4: AP42 Chpt 3.2-2 (7/00) | H4: AP42 Chpt 3.2-2 (7/00)
A5: PM | B5: 0.31 | C5: 0.1 | D5: 0.0066 | E5: 0.1 | F5: =0.0095+0.00991 -> 0.01941 | G5: =0.0000771+0.00991 -> 0.0099871 | H5: =0.0384+0.00991 -> 0.04831
A6: PM10 | B6: 0.31 | C6: =0.0496+0.0077 -> 0.0573 | D6: =0.0019+0.0047 -> 0.0066 | E6: 0.1 | F6: =0.0095+0.00991 -> 0.01941 | G6: =G5 -> 0.0099871 | H6: =H5 -> 0.04831
A7: PM2.5 | B7: 0.31 | C7: =0.0479+0.0077 -> 0.0556 | D7: =D6 -> 0.0066 | E7: 0.1 | F7: =F6 -> 0.01941 | G7: =G5 -> 0.0099871 | H7: =H6 -> 0.04831
A8: SOx | B8: 0.29 | C8: 1.01 | D8: 0.94 | E8: 0.084 | F8: 0.000588 | G8: 0.000588 | H8: 0.000588
A9: NOx | B9: 4.41 | C9: 3.2 | D9: 0.32 | E9: 1.63 | F9: 2.21 | G9: 4.08 | H9: 3.17
A10: VOC | B10: =0.35+0+0.01+0 -> 0.36 | C10: 0.09 | D10: 0.0021 | E10: =2.1+0.09+0.69+0.15 -> 3.03 | F10: 0.0296 | G10: 0.118 | H10: 0.12
A11: CO | B11: 0.95 | C11: 0.85 | D11: 0.082 | E11: 0.99 | F11: 3.72 | G11: 0.317 | H11: 0.386
A12: 40 CFR 98, subp. C, Table C-1 and C-2
A13: CO2 | B13: =B48 -> 163.0540221 | C13: =B48 -> 163.0540221 | D13: =B47 -> 116.9773717 | E13: =B49 -> 154.8087268 | F13: =B47 -> 116.9773717 | G13: =B47 -> 116.9773717 | H13: =G13 -> 116.9773717
A14: CH4 | B14: =C48 -> 0.006613873261 | C14: =C48 -> 0.006613873261 | D14: =C47 -> 0.00220462442 | E14: =C49 -> 0.006613873261 | F14: =C47 -> 0.00220462442 | G14: =C47 -> 0.00220462442 | H14: =G14 -> 0.00220462442
A15: N2O | B15: =D48 -> 0.001322774652 | C15: =D48 -> 0.001322774652 | D15: =D47 -> 0.000220462442 | E15: =D49 -> 0.001322774652 | F15: =D47 -> 0.000220462442 | G15: =D47 -> 0.000220462442 | H15: 0.000220462442
A16: source (same as criteria) | E16: HAPs from Diesel<600HP
A17: 1,1,2,2-tetrachloroethane | F17: 2.53e-05 | G17: 4e-05 | H17: 6.63e-05
A18: 1,1,2-trichloroethane | F18: 1.53e-05 | G18: 3.18e-05 | H18: 5.27e-05
A19: 1,3-butadiene | B19: 3.91e-05 | D19: 4.3e-07 | E19: 3.91e-05 | F19: 0.000663 | G19: 0.000267 | H19: 0.00082
A20: 1,3-dichloropropene | F20: 1.27e-05 | G20: 2.64e-05 | H20: 4.38e-05
A21: Acetaldehyde | B21: 0.000767 | C21: 2.52e-05 | D21: 4e-05 | E21: =B21 -> 0.000767 | F21: 0.00279 | G21: 0.00836 | H21: 0.00776
A22: Acrolein | B22: 9.25e-05 | C22: 7.88e-06 | D22: 6.4e-06 | E22: =B22 -> 9.25e-05 | F22: 0.00263 | G22: 0.00514 | H22: 0.00778
A23: Benzene | B23: 0.000933 | C23: 0.000776 | D23: 1.2e-05 | E23: =B23 -> 0.000933 | F23: 0.00158 | G23: 0.00044 | H23: 0.00194
A24: Biphenyl | G24: 0.000212 | H24: 3.95e-06
A25: Carbon tetrachloride | F25: 1.77e-05 | G25: 3.67e-05 | H25: 6.07e-05
A26: Chlorobenzene | F26: 1.29e-05 | G26: 3.04e-05 | H26: 4.44e-05
A27: Chloroform | F27: 1.37e-05 | G27: 2.85e-05 | H27: 4.71e-05
A28: Ethylbenzene | D28: 3.2e-05 | F28: 2.48e-05 | G28: 3.97e-05 | H28: 0.000108
A29: Ethylene dibromide | F29: 2.13e-05 | G29: 4.43e-05 | H29: 7.34e-05
A30: Formaldehyde | B30: 0.00118 | C30: 7.89e-05 | D30: 0.00071 | E30: =B30 -> 0.00118 | F30: 0.0205 | G30: 0.0528 | H30: 0.0552
A31: Hexane | G31: 0.00111 | H31: 0.000445
A32: Methanol | F32: 0.00306 | G32: 0.0025 | H32: 0.00248
A33: Methylene chloride | F33: 4.12e-05 | G33: 2e-05 | H33: 0.000147
A34: Naphthalene | B34: 8.48e-05 | C34: 0.00013 | D34: 1.3e-06 | E34: =B34 -> 8.48e-05 | F34: 9.71e-05 | G34: 7.44e-05 | H34: 9.63e-05
A35: PAH | B35: 0.000168 | C35: 0.000212 | D35: 2.2e-06 | E35: 0.000168 | F35: 0.000141 | G35: 2.69e-05 | H35: 0.000134
A36: Phenol | G36: 2.4e-05 | H36: 4.21e-05
A37: Styrene | F37: 1.19e-05 | G37: 2.36e-05 | H37: 5.48e-05
A38: Tetrachloroethane | G38: 2.48e-06
A39: Toluene | B39: 0.000409 | C39: 0.000281 | D39: 0.00013 | E39: =B39 -> 0.000409 | F39: 0.000558 | G39: 0.000408 | H39: 0.000963
A40: Vinyl chloride | F40: 7.18e-06 | G40: 1.49e-05 | H40: 2.47e-05
A41: Xylene | B41: 0.000285 | C41: 0.000193 | D41: 6.4e-05 | E41: =B41 -> 0.000285 | F41: 0.000195 | G41: 0.000184 | H41: 0.000268
A42: 1 | B42: SOx emission factor given is multiplied by the sulfur content in the fuel (in percent) in the Engine (n) tabs.
A43: 2 | B43: All particulate is assumed to be less than or equal to 1 micrometer in size.
A46: Fuel | B46: CO2 Emission Factor3 (lbs/million BTU) | C46: CH4 Emission Factor3 (lbs/million BTU) | D46: N2O Emission Factor3 (lbs/million BTU) | E46: Source for Emission Factors | F46: Brake-specific fuel consumption (btu/hp*hr)4 | G46: Heat value (Btu/scf) | H46: Heat Value 5 (Btu/gal)
A47: NATURAL GAS | B47: =53.06/0.453592 -> 116.9773717 | C47: =0.001/0.453592 -> 0.00220462442 | D47: =0.0001/0.453592 -> 0.000220462442 | E47: 40 CFR 98, subp. C, Table C-1 | G47: 1020
A48: DISTILLATE OIL 2 | B48: =73.96/0.453592 -> 163.0540221 | C48: =0.003/0.453592 -> 0.006613873261 | D48: =0.0006/0.453592 -> 0.001322774652 | E48: 40 CFR 98, subp. C, Table C-1 | F48: 7000 | H48: =0.138*1000000 -> 138000
A49: GASOLINE | B49: =70.22/0.453592 -> 154.8087268 | C49: =C48 -> 0.006613873261 | D49: =D48 -> 0.001322774652 | E49: 40 CFR 98, subp. C, Table C-1 | F49: 7000 | H49: 125000
A50: 3 | B50: (1 lb = 0.453592 kg)
A51: 4 | B51: An average brake-specific fuel consumption of 7,000 Btu/hp-hr was assumed to convert from lb/MMBtu to lb/hp-hr (see AP42 Chpt 3.3).
B52: 7000 btu/hp*hr x GHG EF (lb/E6BTU)= lb GHG/hp*hr
A53: 5 | B53: Source: 40 CFR 98, Subp. C, Table C-1 and C-2

Sheet Data Validation (hidden)
A1: =Instructions!O4 -> p-sbap5-25 • 9/3/19
A2: Data Validation
A4: Engines | B4: Equation/reference
A5: Engine and Fuel Type | B5: NSPS applies
A6: Choose one | B6: =SUM(B7:B8) -> 0
A7: Reciprocating - diesel | B7: =COUNTIF('Federal Standards'!N15,"Yes") -> 0
A8: Reciprocating - gasoline
A9: Turbine - natural gas
A10: Recip - nat gas 4-stroke rich burn | B10: NSPS no selection
A11: Recip - nat gas 4-stroke lean burn | B11: =SUM(B12:B13) -> 1
A12: Recip - nat gas 2-stroke lean burn | B12: =COUNTIF('Federal Standards'!N15,"Choose Y/N") -> 1
A15: Engine Use | B15: NESHAP applies
A16: Choose one | B16: =SUM(B17:B18) -> 0
A17: Routine | B17: =COUNTIF('Federal Standards'!N24,"Yes") -> 0
A18: Emergency
B20: NESHAP no selection
A21: Input Value | B21: =SUM(B22:B23) -> 1
A22: Choose one | B22: =COUNTIF('Federal Standards'!N24,"Choose Y/N") -> 1
A23: Horsepower(HP) or Brake Power (HP-hr)
A24: Standard cubic feet/hr (scf/hr)
B26: Potential Exceed
A27: Fuel Conversion | B27: =IF(OR('Potential Emissions'!H7>=100,OR('Potential Emissions'!H8>=25,OR('Potential Emissions'!H9>=100,OR('Potential Emissions'!H10>=50,OR('Potential Emissions'!H11>=100,OR('Potential Emissions'!H12>=100,OR('Potential Emissions'!H13>=100,OR('Potential Emissions'!H14>=0.5,OR('Potential Emissions'!H19>=100000,OR('Potential Emissions'!H46>=10,'Potential Emissions'!H47>=25)))))))))),"yes","no") -> no
A28: Brake specific fuel consumption
A29: Heat value of fuel | B29: Actual Exceed
B30: =IF(OR('Actual Emissions'!H7>=50,OR('Actual Emissions'!H8>=50,OR('Actual Emissions'!H9>=50,OR('Actual Emissions'!H10>=50,OR('Actual Emissions'!H11>=50,OR('Actual Emissions'!H12>=50,OR('Actual Emissions'!H13>=50,OR('Actual Emissions'!H14>=0.5,OR('Actual Emissions'!H19>=50000,OR('Actual Emissions'!H46>=5,'Actual Emissions'!H47>=12.5)))))))))),"yes","no") -> no
A32: General selection | B32: Choose one to calculate actual emissions
A33: Response | B33: Number of hours operated per 12 months
A34: Choose Y/N | B34: Quantity of fuel actually burned per 12 months
A35: Yes
A36: No
B37: Actual emissions entry
B38: hours per year (hr/yr)
B39: million Btu per year (MMBtu/yr)
B40: gallons per year (gal/yr)
